Directorate,Department,Expenditure Type,Ref.Doc.1,Vendor Name, Expenditure Amount (exc VAT) ,Payment Date
Assurance,Assurance,Advertising,60051213,BARNARD &  WESTWOOD LTD, 261.28 ,05/04/2016
Assurance,Assurance,Clothing - Uniforms,80003448,EUROSUITS, 267.50 ,29/04/2016
Assurance,Assurance,Furniture-Purchase-Repair,60046124,WAGSTAFF INTERIORS GROUP," 2,023.91 ",12/04/2016
Assurance,Assurance,Other Contributions,60050884,THE BARNETGROUP LIMITED," 7,154.95 ",25/04/2016
Assurance,Assurance,Other Indirect Employee Expens,80003434,REDACTED - PERSONAL DATA, 203.40 ,29/04/2016
Assurance,Assurance,Other Indirect Employee Expens,80003291,ROYAL MARSDEN CANCER CHARITY, 20.00 ,26/04/2016
Assurance,Assurance,Other Indirect Employee Expens,80003432,THE MAYOR'S CHARITY APPEAL, 70.00 ,29/04/2016
Assurance,Assurance,Other Services,10013180,EASYCRATE LTD, 333.00 ,06/04/2016
Assurance,Assurance,Postage,60052883,ROYAL MAIL GROUP LIMITED, 0.90 ,15/04/2016
Assurance,Assurance,Printing-Contract,60053432,BARNARD &  WESTWOOD LTD, 86.69 ,29/04/2016
Assurance,Assurance,Publications,60052215,REDACTED - PERSONAL DATA, 150.00 ,13/04/2016
Assurance,Assurance,Rents,60053705,AVENUE HOUSE SERVICES LTD, 660.00 ,27/04/2016
Assurance,Assurance,Rents,60053729,BARNET LAWN TENNIS CLUB, 750.00 ,26/04/2016
Assurance,Assurance,Rents,60053719,BARNET MULTICULTURAL COMMUNITY CENTRE, 500.00 ,27/04/2016
Assurance,Assurance,Rents,60053745,CENTRAL SQUARE MINYAN, 750.00 ,27/04/2016
Assurance,Assurance,Rents,60053742,CHURCH OF ST MARY MAGDALEN, 500.00 ,26/04/2016
Assurance,Assurance,Rents,60053723,CHURCH OF ST PETER-LE-POER, 550.00 ,27/04/2016
Assurance,Assurance,Rents,60053704,FREEHOLD COMMUNITY ASSOCIATION, 630.00 ,27/04/2016
Assurance,Assurance,Rents,60053683,GRASVENOR AVENUE INFANT SCHOOL (ACA, 413.50 ,27/04/2016
Assurance,Assurance,Rents,60053740,HADLEY DISABLED SPORTS ASSOCIATION, 300.00 ,26/04/2016
Assurance,Assurance,Rents,60053698,HADLEY MEMORIAL HALL, 352.00 ,27/04/2016
Assurance,Assurance,Rents,60053734,HAMPSTEAD GARDEN SUBURB FELLOWSHIP, 600.00 ,27/04/2016
Assurance,Assurance,Rents,60053708,MANOR DRIVE METHODIST CHURCH, 600.00 ,27/04/2016
Assurance,Assurance,Rents,60053693,NEW BARNET COMMUNITY ASSOCIATION, 240.00 ,27/04/2016
Assurance,Assurance,Rents,60053738,ST AGNES CHURCH, 750.00 ,27/04/2016
Assurance,Assurance,Rents,60053773,ST JOHN THE APOSTLE CHURCH, 320.00 ,27/04/2016
Assurance,Assurance,Rents,60053756,ST MARKS CHURCH BARNET VALE, 420.00 ,26/04/2016
Assurance,Assurance,Rents,60053684,ST PAUL'S FINCHLEY PCC, 618.50 ,27/04/2016
Assurance,Assurance,Rents,60053726,ST STEPHENS CHURCH HALL, 240.00 ,27/04/2016
Assurance,Assurance,Rents,60053749,THE WOODSIDE PARK CLUB, 900.00 ,26/04/2016
Assurance,Assurance,Rents,60053769,TRINITY (METHODIST/URC) CHURCH, 896.75 ,27/04/2016
Assurance,Assurance,Rents,60053695,TRINITY CHURCH CENTRE, 800.00 ,26/04/2016
Assurance,Assurance,Rents,60053834,WATLING COMMUNITY ASSOCIATION, 488.00 ,28/04/2016
Assurance,Assurance,Subscriptions,60052609,CIPFA BUSINESS LIMITED," 1,943.00 ",12/04/2016
Assurance,Assurance,Subscriptions,60050627,CIPFA BUSINESS LIMITED," 1,375.00 ",14/04/2016
Assurance,Assurance,Subscriptions,60047080,REDACTED - PERSONAL DATA, 150.00 ,06/04/2016
Assurance,Assurance,Subscriptions,60052829,TAMESIDE METROPOLITAN BOROUGH COUNC," 1,000.00 ",13/04/2016
Assurance,Assurance,Training,60051628,CIPFA BUSINESS LIMITED," 2,240.00 ",05/04/2016
Central Expenses,Central Expenses,Audit Fee,60052721,GRANT THORNTON UK LLP," 4,200.00 ",12/04/2016
Central Expenses,Central Expenses,Early Retirement Service Contr,60052703,CAPITA EMPLOYEE BENEFITS," 109,470.80 ",13/04/2016
Central Expenses,Central Expenses,Early Retirement Service Contr,60052495,CAPITA EMPLOYEE BENEFITS," 328,377.72 ",13/04/2016
Central Expenses,Central Expenses,Insurance Claims,80003177,2020 LEGAL LTD, 863.70 ,19/04/2016
Central Expenses,Central Expenses,Insurance Claims,80003063,ADDINGTON MEDICAL PRACTICE, 50.00 ,08/04/2016
Central Expenses,Central Expenses,Insurance Claims,80003003,AEQUITAS LEGAL," 6,072.00 ",05/04/2016
Central Expenses,Central Expenses,Insurance Claims,80003128,AEQUITAS LEGAL," 1,560.00 ",15/04/2016
Central Expenses,Central Expenses,Insurance Claims,80003103,BUPA," 2,030.80 ",12/04/2016
Central Expenses,Central Expenses,Insurance Claims,60049303,CHARLES DUKES ASSESSORS, 60.00 ,01/04/2016
Central Expenses,Central Expenses,Insurance Claims,60049324,CHARLES DUKES ASSESSORS, 60.00 ,01/04/2016
Central Expenses,Central Expenses,Insurance Claims,60049414,CHARLES DUKES ASSESSORS, 60.00 ,01/04/2016
Central Expenses,Central Expenses,Insurance Claims,60053421,CHARLES DUKES ASSESSORS, 60.00 ,22/04/2016
Central Expenses,Central Expenses,Insurance Claims,80003248,CHURCHILL INSURANCE," 1,259.90 ",19/04/2016
Central Expenses,Central Expenses,Insurance Claims,80003229,CIS GENERAL INSURANCE LTD, 240.00 ,19/04/2016
Central Expenses,Central Expenses,Insurance Claims,60051670,CITY SUBURBAN TREE SURGEONS LTD, 406.89 ,27/04/2016
Central Expenses,Central Expenses,Insurance Claims,80003106,DWP, 647.00 ,13/04/2016
Central Expenses,Central Expenses,Insurance Claims,80003129,DWP," 2,349.00 ",14/04/2016
Central Expenses,Central Expenses,Insurance Claims,80003233,DWP, 637.00 ,20/04/2016
Central Expenses,Central Expenses,Insurance Claims,80003355,DWP, 647.00 ,27/04/2016
Central Expenses,Central Expenses,Insurance Claims,80003011,HELPHIRE LTD," 2,804.29 ",06/04/2016
Central Expenses,Central Expenses,Insurance Claims,80003272,HODGE JONES & ALLEN," 2,830.00 ",22/04/2016
Central Expenses,Central Expenses,Insurance Claims,80003271,HODGE JONES & ALLEN SOLICITORS," 1,880.00 ",21/04/2016
Central Expenses,Central Expenses,Insurance Claims,80003200,HORWICH FARRELLY SOLICITORS, 576.03 ,19/04/2016
Central Expenses,Central Expenses,Insurance Claims,80003342,JINNAH SOLICITORS," 1,007.50 ",22/04/2016
Central Expenses,Central Expenses,Insurance Claims,60035992,KENNEDYS," 3,334.00 ",22/04/2016
Central Expenses,Central Expenses,Insurance Claims,80003056,RAVENSCROFT MEDICAL CENTRE, 25.00 ,11/04/2016
Central Expenses,Central Expenses,Insurance Claims,80002973,ROYAL FREE LONDON NHS FOUNDATI, 50.00 ,05/04/2016
Central Expenses,Central Expenses,Insurance Claims,80002977,ROYAL MAIL GROUP LTD, 841.86 ,05/04/2016
Central Expenses,Central Expenses,Insurance Claims,80002978,RSA CLAIMS," 3,096.75 ",05/04/2016
Central Expenses,Central Expenses,Insurance Claims,80003295,SIMPSON MILLAR LLP," 1,059.00 ",22/04/2016
Central Expenses,Central Expenses,Insurance Claims,80003352,SIMPSON MILLAR LLP, 720.00 ,27/04/2016
Central Expenses,Central Expenses,Insurance Claims,80003351,SIMPSON MILLAR LLP," 5,800.00 ",27/04/2016
Central Expenses,Central Expenses,Insurance Claims,80003049,SIMPSON MILLAR SOLICITORS," 5,000.00 ",08/04/2016
Central Expenses,Central Expenses,Insurance Claims,80003155,TEMPLE FORTUNE MEDICAL GROUP, 50.00 ,19/04/2016
Central Expenses,Central Expenses,Insurance Claims,80003157,THE ROYAL FREE LONDON NHS TRUS, 50.00 ,19/04/2016
Central Expenses,Central Expenses,Insurance Claims,80003190,TIA ALLIANZ INSURANCE (GBP)," 1,013.35 ",20/04/2016
Central Expenses,Central Expenses,Insurance Claims,80002892,WSN ASSISTANCE," 1,605.40 ",01/04/2016
Central Expenses,Central Expenses,Joint Authorities - Third Part,60052123,LONDON BOROUGH OF HARINGEY," 63,448.25 ",08/04/2016
Central Expenses,Central Expenses,Other Establishments - Third P,EBX0111556,LEE VALLEY REGIONAL PARK AUTH.," 32,219.56 ",15/04/2016
Central Expenses,Central Expenses,Other Establishments - Third P,EBX0111547,LONDON PENSIONS FUND AUTHORITY," 49,627.80 ",15/04/2016
Central Expenses,Central Expenses,Pensions To Retired Employees,60051138,LONDON PENSIONS FUND AUTHORITY," 2,847.71 ",01/04/2016
Central Expenses,Central Expenses,Pensions To Retired Employees,60052384,LONDON PENSIONS FUND AUTHORITY," 2,765.60 ",27/04/2016
Commercial,Births Deaths & Marriages,Cleaning and domestic material,60039904,CHURCHILL CONTRACT SERVICES, 624.26 ,01/04/2016
Commercial,Births Deaths & Marriages,Cleaning and domestic material,60048724,CHURCHILL CONTRACT SERVICES, 624.26 ,01/04/2016
Commercial,Births Deaths & Marriages,Cleaning and domestic material,60045477,CHURCHILL CONTRACT SERVICES, 653.07 ,13/04/2016
Commercial,Births Deaths & Marriages,Cleaning and domestic material,60052493,CHURCHILL CONTRACT SERVICES, 624.26 ,28/04/2016
Commercial,Customer Support Group,Advertising,60051287,LONDON WEEKLY NEWSPAPERS LTD, 59.40 ,07/04/2016
Commercial,Customer Support Group,Advertising,60052071,LONDON WEEKLY NEWSPAPERS LTD, 59.40 ,14/04/2016
Commercial,Customer Support Group,Advertising,60052822,LONDON WEEKLY NEWSPAPERS LTD, 59.40 ,21/04/2016
Commercial,Customer Support Group,Books-CDs-Audio-Video,60052507,SM ELECTRICAL SERVICES, 565.00 ,12/04/2016
Commercial,Customer Support Group,Books-CDs-Audio-Video,60052030,SM ELECTRICAL SERVICES, 125.00 ,21/04/2016
Commercial,Customer Support Group,Building Repairs & Maintenance,60052431,AJS LTD, 16.50 ,12/04/2016
Commercial,Customer Support Group,Building Repairs & Maintenance,60052451,AJS LTD, 33.00 ,12/04/2016
Commercial,Customer Support Group,Building Repairs & Maintenance,60052460,AJS LTD, 33.00 ,12/04/2016
Commercial,Customer Support Group,Building Repairs & Maintenance,60052575,AJS LTD, 33.00 ,12/04/2016
Commercial,Customer Support Group,Building Repairs & Maintenance,60052489,AJS LTD, 41.25 ,12/04/2016
Commercial,Customer Support Group,Building Repairs & Maintenance,60052522,AJS LTD, 41.25 ,12/04/2016
Commercial,Customer Support Group,Building Repairs & Maintenance,60052476,AJS LTD, 57.75 ,12/04/2016
Commercial,Customer Support Group,Building Repairs & Maintenance,60052666,AJS LTD, 66.00 ,12/04/2016
Commercial,Customer Support Group,Building Repairs & Maintenance,60052700,AJS LTD, 66.00 ,12/04/2016
Commercial,Customer Support Group,Building Repairs & Maintenance,60052541,AJS LTD, 82.50 ,12/04/2016
Commercial,Customer Support Group,Building Repairs & Maintenance,60052291,AJS LTD, 575.13 ,12/04/2016
Commercial,Customer Support Group,Building Repairs & Maintenance,60052398,AJS LTD, 891.00 ,12/04/2016
Commercial,Customer Support Group,Building Repairs & Maintenance,60053447,AJS LTD, 33.00 ,22/04/2016
Commercial,Customer Support Group,Building Repairs & Maintenance,60053466,AJS LTD, 66.00 ,22/04/2016
Commercial,Customer Support Group,Building Repairs & Maintenance,60052636,AJS LTD, 41.25 ,29/04/2016
Commercial,Customer Support Group,Building Repairs & Maintenance,60050813,ASBESTOS CONSULTANTS EUROPE LTD T/A ACE," 1,261.00 ",14/04/2016
Commercial,Customer Support Group,Building Repairs & Maintenance,60053288,DOORWAY-MAINTENANCE CO., 250.00 ,26/04/2016
Commercial,Customer Support Group,Building Repairs & Maintenance,60009362,HERTEL (UK) LTD, 40.83 ,01/04/2016
Commercial,Customer Support Group,Building Repairs & Maintenance,60049004,HERTEL (UK) LTD, 40.83 ,01/04/2016
Commercial,Customer Support Group,Building Repairs & Maintenance,60049128,HERTEL (UK) LTD, 40.83 ,01/04/2016
Commercial,Customer Support Group,Building Repairs & Maintenance,60048850,HERTEL (UK) LTD, 40.83 ,01/04/2016
Commercial,Customer Support Group,Building Repairs & Maintenance,60047791,HERTEL (UK) LTD, 40.83 ,01/04/2016
Commercial,Customer Support Group,Building Repairs & Maintenance,60053103,HERTEL (UK) LTD, 45.00 ,18/04/2016
Commercial,Customer Support Group,Building Repairs & Maintenance,60053108,HERTEL (UK) LTD, 45.00 ,18/04/2016
Commercial,Customer Support Group,Building Repairs & Maintenance,60053165,HERTEL (UK) LTD, 45.00 ,18/04/2016
Commercial,Customer Support Group,Building Repairs & Maintenance,60053173,HERTEL (UK) LTD, 45.00 ,18/04/2016
Commercial,Customer Support Group,Building Repairs & Maintenance,60053155,HERTEL (UK) LTD, 65.00 ,18/04/2016
Commercial,Customer Support Group,Building Repairs & Maintenance,60053100,HERTEL (UK) LTD, 90.00 ,18/04/2016
Commercial,Customer Support Group,Building Repairs & Maintenance,60053092,HERTEL (UK) LTD, 134.00 ,18/04/2016
Commercial,Customer Support Group,Building Repairs & Maintenance,60053163,HERTEL (UK) LTD, 175.00 ,18/04/2016
Commercial,Customer Support Group,Building Repairs & Maintenance,60053166,HERTEL (UK) LTD, 260.00 ,18/04/2016
Commercial,Customer Support Group,Building Repairs & Maintenance,60053104,HERTEL (UK) LTD, 472.00 ,18/04/2016
Commercial,Customer Support Group,Building Repairs & Maintenance,60053157,HERTEL (UK) LTD," 1,807.00 ",18/04/2016
Commercial,Customer Support Group,Building Repairs & Maintenance,60053115,HERTEL (UK) LTD, 122.50 ,21/04/2016
Commercial,Customer Support Group,Building Repairs & Maintenance,60053124,HERTEL (UK) LTD, 122.50 ,21/04/2016
Commercial,Customer Support Group,Building Repairs & Maintenance,60053181,HERTEL (UK) LTD, 122.50 ,21/04/2016
Commercial,Customer Support Group,Building Repairs & Maintenance,60053094,HERTEL (UK) LTD, 140.00 ,21/04/2016
Commercial,Customer Support Group,Building Repairs & Maintenance,60053109,HERTEL (UK) LTD, 210.00 ,21/04/2016
Commercial,Customer Support Group,Building Repairs & Maintenance,60033361,HERTEL (UK) LTD, 7.00 ,22/04/2016
Commercial,Customer Support Group,Building Repairs & Maintenance,60033651,HERTEL (UK) LTD, 7.00 ,22/04/2016
Commercial,Customer Support Group,Building Repairs & Maintenance,60014969,HERTEL (UK) LTD, 40.83 ,22/04/2016
Commercial,Customer Support Group,Building Repairs & Maintenance,60033362,HERTEL (UK) LTD, 81.66 ,22/04/2016
Commercial,Customer Support Group,Building Repairs & Maintenance,60018190,HERTEL (UK) LTD, 140.00 ,25/04/2016
Commercial,Customer Support Group,Building Repairs & Maintenance,60046672,HERTEL (UK) LTD, 40.83 ,28/04/2016
Commercial,Customer Support Group,Building Repairs & Maintenance,60048768,HERTEL (UK) LTD, 40.83 ,28/04/2016
Commercial,Customer Support Group,Building Repairs & Maintenance,60048979,HERTEL (UK) LTD, 40.83 ,28/04/2016
Commercial,Customer Support Group,Building Repairs & Maintenance,60053161,HERTEL (UK) LTD, 130.00 ,28/04/2016
Commercial,Customer Support Group,Building Repairs & Maintenance,60053134,KENT COUNTY COUNCIL (KCS), 308.16 ,18/04/2016
Commercial,Customer Support Group,Building Repairs & Maintenance,60053119,KENT COUNTY COUNCIL (KCS), 377.86 ,18/04/2016
Commercial,Customer Support Group,Building Repairs & Maintenance,60050847,LEE SECURITY LONDON LIMITED, 15.00 ,07/04/2016
Commercial,Customer Support Group,Building Repairs & Maintenance,60050892,LEE SECURITY LONDON LIMITED, 102.62 ,07/04/2016
Commercial,Customer Support Group,Building Repairs & Maintenance,60051154,LEE SECURITY LONDON LIMITED, 232.18 ,14/04/2016
Commercial,Customer Support Group,Building Repairs & Maintenance,60052974,LEE SECURITY LONDON LIMITED, 997.00 ,15/04/2016
Commercial,Customer Support Group,Building Repairs & Maintenance,60052605,LEE SECURITY LONDON LIMITED, 82.00 ,19/04/2016
Commercial,Customer Support Group,Building Repairs & Maintenance,60051286,LIFT & ENGINEERING SERVICES LTD, 174.00 ,07/04/2016
Commercial,Customer Support Group,Building Repairs & Maintenance,60051280,LIFT & ENGINEERING SERVICES LTD, 174.00 ,07/04/2016
Commercial,Customer Support Group,Building Repairs & Maintenance,60053035,LIFT & ENGINEERING SERVICES LTD, 99.17 ,15/04/2016
Commercial,Customer Support Group,Building Repairs & Maintenance,60049738,LIFT & ENGINEERING SERVICES LTD, 99.17 ,15/04/2016
Commercial,Customer Support Group,Building Repairs & Maintenance,60034926,LIFT & ENGINEERING SERVICES LTD, 49.58 ,22/04/2016
Commercial,Customer Support Group,Building Repairs & Maintenance,60034977,LIFT & ENGINEERING SERVICES LTD, 49.58 ,22/04/2016
Commercial,Customer Support Group,Building Repairs & Maintenance,60034985,LIFT & ENGINEERING SERVICES LTD, 49.58 ,22/04/2016
Commercial,Customer Support Group,Building Repairs & Maintenance,60038194,LIFT & ENGINEERING SERVICES LTD, 49.58 ,22/04/2016
Commercial,Customer Support Group,Building Repairs & Maintenance,60038304,LIFT & ENGINEERING SERVICES LTD, 49.58 ,22/04/2016
Commercial,Customer Support Group,Building Repairs & Maintenance,60038333,LIFT & ENGINEERING SERVICES LTD, 49.58 ,22/04/2016
Commercial,Customer Support Group,Building Repairs & Maintenance,60038350,LIFT & ENGINEERING SERVICES LTD, 99.17 ,22/04/2016
Commercial,Customer Support Group,Building Repairs & Maintenance,60041031,LIFT & ENGINEERING SERVICES LTD, 49.50 ,25/04/2016
Commercial,Customer Support Group,Building Repairs & Maintenance,60041185,LIFT & ENGINEERING SERVICES LTD, 49.50 ,25/04/2016
Commercial,Customer Support Group,Building Repairs & Maintenance,60040994,LIFT & ENGINEERING SERVICES LTD, 49.58 ,25/04/2016
Commercial,Customer Support Group,Building Repairs & Maintenance,60052970,LIFT & ENGINEERING SERVICES LTD, 67.50 ,28/04/2016
Commercial,Customer Support Group,Building Repairs & Maintenance,60052967,LIFT & ENGINEERING SERVICES LTD, 99.17 ,28/04/2016
Commercial,Customer Support Group,Building Repairs & Maintenance,60053171,LIFT & ENGINEERING SERVICES LTD, 145.00 ,28/04/2016
Commercial,Customer Support Group,Building Repairs & Maintenance,60053319,LIFT & ENGINEERING SERVICES LTD, 145.00 ,28/04/2016
Commercial,Customer Support Group,Building Repairs & Maintenance,60053183,LIFT & ENGINEERING SERVICES LTD, 232.00 ,28/04/2016
Commercial,Customer Support Group,Building Repairs & Maintenance,60047486,OAKRAY LIMITED, 64.00 ,01/04/2016
Commercial,Customer Support Group,Building Repairs & Maintenance,60041815,OAKRAY LIMITED, 879.75 ,01/04/2016
Commercial,Customer Support Group,Building Repairs & Maintenance,60048205,OAKRAY LIMITED," 2,036.93 ",01/04/2016
Commercial,Customer Support Group,Building Repairs & Maintenance,60051072,OAKRAY LIMITED, 313.00 ,21/04/2016
Commercial,Customer Support Group,Building Repairs & Maintenance,60032035,OAKRAY LIMITED, 48.00 ,27/04/2016
Commercial,Customer Support Group,Building Repairs & Maintenance,60032066,OAKRAY LIMITED, 56.00 ,27/04/2016
Commercial,Customer Support Group,Building Repairs & Maintenance,60032148,OAKRAY LIMITED, 56.00 ,27/04/2016
Commercial,Customer Support Group,Building Repairs & Maintenance,60028426,OAKRAY LIMITED, 64.00 ,27/04/2016
Commercial,Customer Support Group,Building Repairs & Maintenance,60031034,OAKRAY LIMITED, 64.00 ,27/04/2016
Commercial,Customer Support Group,Building Repairs & Maintenance,60032041,OAKRAY LIMITED, 64.00 ,27/04/2016
Commercial,Customer Support Group,Building Repairs & Maintenance,60032082,OAKRAY LIMITED, 64.00 ,27/04/2016
Commercial,Customer Support Group,Building Repairs & Maintenance,60032128,OAKRAY LIMITED, 64.00 ,27/04/2016
Commercial,Customer Support Group,Building Repairs & Maintenance,60032139,OAKRAY LIMITED, 64.00 ,27/04/2016
Commercial,Customer Support Group,Building Repairs & Maintenance,60032142,OAKRAY LIMITED, 64.00 ,27/04/2016
Commercial,Customer Support Group,Building Repairs & Maintenance,60032060,OAKRAY LIMITED, 72.00 ,27/04/2016
Commercial,Customer Support Group,Building Repairs & Maintenance,60028528,OAKRAY LIMITED, 80.00 ,27/04/2016
Commercial,Customer Support Group,Building Repairs & Maintenance,60032094,OAKRAY LIMITED, 80.00 ,27/04/2016
Commercial,Customer Support Group,Building Repairs & Maintenance,60032098,OAKRAY LIMITED, 80.00 ,27/04/2016
Commercial,Customer Support Group,Building Repairs & Maintenance,60032102,OAKRAY LIMITED, 80.00 ,27/04/2016
Commercial,Customer Support Group,Building Repairs & Maintenance,60032111,OAKRAY LIMITED, 80.00 ,27/04/2016
Commercial,Customer Support Group,Building Repairs & Maintenance,60032147,OAKRAY LIMITED, 80.00 ,27/04/2016
Commercial,Customer Support Group,Building Repairs & Maintenance,60032110,OAKRAY LIMITED, 507.65 ,27/04/2016
Commercial,Customer Support Group,Building Repairs & Maintenance,60045336,RGE SERVICES, 46.20 ,01/04/2016
Commercial,Customer Support Group,Building Repairs & Maintenance,60045338,RGE SERVICES, 52.25 ,01/04/2016
Commercial,Customer Support Group,Building Repairs & Maintenance,60046677,RGE SERVICES, 52.25 ,01/04/2016
Commercial,Customer Support Group,Building Repairs & Maintenance,60047035,RGE SERVICES, 59.85 ,01/04/2016
Commercial,Customer Support Group,Building Repairs & Maintenance,60046724,RGE SERVICES, 71.25 ,01/04/2016
Commercial,Customer Support Group,Building Repairs & Maintenance,60045405,RGE SERVICES, 95.95 ,01/04/2016
Commercial,Customer Support Group,Building Repairs & Maintenance,60046702,RGE SERVICES, 109.25 ,01/04/2016
Commercial,Customer Support Group,Building Repairs & Maintenance,60047023,RGE SERVICES, 128.25 ,01/04/2016
Commercial,Customer Support Group,Building Repairs & Maintenance,60046662,RGE SERVICES, 130.15 ,01/04/2016
Commercial,Customer Support Group,Building Repairs & Maintenance,60046706,RGE SERVICES, 140.60 ,01/04/2016
Commercial,Customer Support Group,Building Repairs & Maintenance,60046661,RGE SERVICES, 147.25 ,01/04/2016
Commercial,Customer Support Group,Building Repairs & Maintenance,60047057,RGE SERVICES, 150.10 ,01/04/2016
Commercial,Customer Support Group,Building Repairs & Maintenance,60047074,RGE SERVICES, 152.00 ,01/04/2016
Commercial,Customer Support Group,Building Repairs & Maintenance,60046634,RGE SERVICES, 162.45 ,01/04/2016
Commercial,Customer Support Group,Building Repairs & Maintenance,60045324,RGE SERVICES, 166.25 ,01/04/2016
Commercial,Customer Support Group,Building Repairs & Maintenance,60045360,RGE SERVICES, 185.25 ,01/04/2016
Commercial,Customer Support Group,Building Repairs & Maintenance,60042167,RGE SERVICES, 190.00 ,01/04/2016
Commercial,Customer Support Group,Building Repairs & Maintenance,60046749,RGE SERVICES, 201.40 ,01/04/2016
Commercial,Customer Support Group,Building Repairs & Maintenance,60045339,RGE SERVICES, 207.10 ,01/04/2016
Commercial,Customer Support Group,Building Repairs & Maintenance,60046713,RGE SERVICES, 209.95 ,01/04/2016
Commercial,Customer Support Group,Building Repairs & Maintenance,60047082,RGE SERVICES, 223.25 ,01/04/2016
Commercial,Customer Support Group,Building Repairs & Maintenance,60045387,RGE SERVICES, 405.97 ,01/04/2016
Commercial,Customer Support Group,Building Repairs & Maintenance,60046675,RGE SERVICES, 426.99 ,01/04/2016
Commercial,Customer Support Group,Building Repairs & Maintenance,60040238,RGE SERVICES, 451.89 ,01/04/2016
Commercial,Customer Support Group,Building Repairs & Maintenance,60045074,RGE SERVICES, 568.65 ,01/04/2016
Commercial,Customer Support Group,Building Repairs & Maintenance,60045090,RGE SERVICES, 574.83 ,01/04/2016
Commercial,Customer Support Group,Building Repairs & Maintenance,60045403,RGE SERVICES, 686.56 ,01/04/2016
Commercial,Customer Support Group,Building Repairs & Maintenance,60045923,RGE SERVICES," 1,838.25 ",01/04/2016
Commercial,Customer Support Group,Building Repairs & Maintenance,60050472,RGE SERVICES," 4,699.03 ",07/04/2016
Commercial,Customer Support Group,Building Repairs & Maintenance,60050417,RGE SERVICES, 67.09 ,12/04/2016
Commercial,Customer Support Group,Building Repairs & Maintenance,60050448,RGE SERVICES, 86.90 ,12/04/2016
Commercial,Customer Support Group,Building Repairs & Maintenance,60050485,RGE SERVICES, 166.71 ,12/04/2016
Commercial,Customer Support Group,Building Repairs & Maintenance,60050484,RGE SERVICES, 173.33 ,12/04/2016
Commercial,Customer Support Group,Building Repairs & Maintenance,60050430,RGE SERVICES, 183.03 ,12/04/2016
Commercial,Customer Support Group,Building Repairs & Maintenance,60050532,RGE SERVICES, 340.34 ,12/04/2016
Commercial,Customer Support Group,Building Repairs & Maintenance,60050463,RGE SERVICES, 627.57 ,12/04/2016
Commercial,Customer Support Group,Building Repairs & Maintenance,60050566,RGE SERVICES, 825.71 ,12/04/2016
Commercial,Customer Support Group,Building Repairs & Maintenance,60050478,RGE SERVICES, 62.00 ,13/04/2016
Commercial,Customer Support Group,Building Repairs & Maintenance,60050488,RGE SERVICES, 62.00 ,13/04/2016
Commercial,Customer Support Group,Building Repairs & Maintenance,60050481,RGE SERVICES, 62.00 ,13/04/2016
Commercial,Customer Support Group,Building Repairs & Maintenance,60050542,RGE SERVICES, 62.00 ,13/04/2016
Commercial,Customer Support Group,Building Repairs & Maintenance,60050534,RGE SERVICES, 67.78 ,13/04/2016
Commercial,Customer Support Group,Building Repairs & Maintenance,60050497,RGE SERVICES, 93.00 ,13/04/2016
Commercial,Customer Support Group,Building Repairs & Maintenance,60050517,RGE SERVICES, 95.98 ,13/04/2016
Commercial,Customer Support Group,Building Repairs & Maintenance,60050479,RGE SERVICES, 106.03 ,13/04/2016
Commercial,Customer Support Group,Building Repairs & Maintenance,60050491,RGE SERVICES, 115.67 ,13/04/2016
Commercial,Customer Support Group,Building Repairs & Maintenance,60050500,RGE SERVICES, 213.36 ,13/04/2016
Commercial,Customer Support Group,Building Repairs & Maintenance,60050495,RGE SERVICES, 257.03 ,13/04/2016
Commercial,Customer Support Group,Building Repairs & Maintenance,60050434,RGE SERVICES, 276.66 ,13/04/2016
Commercial,Customer Support Group,Building Repairs & Maintenance,60050531,RGE SERVICES," 2,387.99 ",13/04/2016
Commercial,Customer Support Group,Building Repairs & Maintenance,60051867,RGE SERVICES, 26.60 ,21/04/2016
Commercial,Customer Support Group,Building Repairs & Maintenance,60051869,RGE SERVICES, 31.00 ,21/04/2016
Commercial,Customer Support Group,Building Repairs & Maintenance,60051827,RGE SERVICES, 62.00 ,21/04/2016
Commercial,Customer Support Group,Building Repairs & Maintenance,60051898,RGE SERVICES, 93.00 ,21/04/2016
Commercial,Customer Support Group,Building Repairs & Maintenance,60051861,RGE SERVICES, 93.00 ,21/04/2016
Commercial,Customer Support Group,Building Repairs & Maintenance,60051823,RGE SERVICES, 124.00 ,21/04/2016
Commercial,Customer Support Group,Building Repairs & Maintenance,60051804,RGE SERVICES, 210.71 ,21/04/2016
Commercial,Customer Support Group,Building Repairs & Maintenance,60051884,RGE SERVICES, 210.71 ,21/04/2016
Commercial,Customer Support Group,Building Repairs & Maintenance,60051883,RGE SERVICES, 250.54 ,21/04/2016
Commercial,Customer Support Group,Building Repairs & Maintenance,60051776,RGE SERVICES, 372.00 ,21/04/2016
Commercial,Customer Support Group,Building Repairs & Maintenance,60051859,RGE SERVICES, 490.48 ,21/04/2016
Commercial,Customer Support Group,Building Repairs & Maintenance,60048462,RGE SERVICES, 74.87 ,22/04/2016
Commercial,Customer Support Group,Building Repairs & Maintenance,60048418,RGE SERVICES, 99.28 ,22/04/2016
Commercial,Customer Support Group,Building Repairs & Maintenance,60048554,RGE SERVICES, 106.48 ,22/04/2016
Commercial,Customer Support Group,Building Repairs & Maintenance,60048541,RGE SERVICES, 144.14 ,22/04/2016
Commercial,Customer Support Group,Building Repairs & Maintenance,60050095,RGE SERVICES, 165.12 ,22/04/2016
Commercial,Customer Support Group,Building Repairs & Maintenance,60048578,RGE SERVICES, 165.88 ,22/04/2016
Commercial,Customer Support Group,Building Repairs & Maintenance,60048486,RGE SERVICES, 196.54 ,22/04/2016
Commercial,Customer Support Group,Building Repairs & Maintenance,60048498,RGE SERVICES, 243.30 ,22/04/2016
Commercial,Customer Support Group,Building Repairs & Maintenance,60047030,RGE SERVICES, 274.55 ,22/04/2016
Commercial,Customer Support Group,Building Repairs & Maintenance,60048443,RGE SERVICES, 401.98 ,22/04/2016
Commercial,Customer Support Group,Building Repairs & Maintenance,60048525,RGE SERVICES, 586.58 ,22/04/2016
Commercial,Customer Support Group,Building Repairs & Maintenance,60047065,RGE SERVICES, 167.20 ,25/04/2016
Commercial,Customer Support Group,Building Repairs & Maintenance,60042177,RGE SERVICES, 231.80 ,25/04/2016
Commercial,Customer Support Group,Building Repairs & Maintenance,60047052,RGE SERVICES, 331.55 ,25/04/2016
Commercial,Customer Support Group,Building Repairs & Maintenance,60045361,RGE SERVICES, 365.75 ,25/04/2016
Commercial,Customer Support Group,Building Repairs & Maintenance,60046717,RGE SERVICES, 542.45 ,25/04/2016
Commercial,Customer Support Group,Building Repairs & Maintenance,60046998,RGE SERVICES, 985.00 ,25/04/2016
Commercial,Customer Support Group,Building Repairs & Maintenance,60046926,S W BRUCE & CO LTD, 25.00 ,01/04/2016
Commercial,Customer Support Group,Building Repairs & Maintenance,60044434,S W BRUCE & CO LTD, 401.73 ,15/04/2016
Commercial,Customer Support Group,Building Repairs & Maintenance,60049407,S W BRUCE & CO LTD, 999.00 ,15/04/2016
Commercial,Customer Support Group,Building Repairs & Maintenance,60044034,S W BRUCE & CO LTD, 57.00 ,25/04/2016
Commercial,Customer Support Group,Building Repairs & Maintenance,60043962,S W BRUCE & CO LTD, 158.56 ,25/04/2016
Commercial,Customer Support Group,Building Repairs & Maintenance,60052054,S W BRUCE & CO LTD, 25.00 ,28/04/2016
Commercial,Customer Support Group,Building Repairs & Maintenance,60052093,S W BRUCE & CO LTD, 28.50 ,28/04/2016
Commercial,Customer Support Group,Building Repairs & Maintenance,60052138,S W BRUCE & CO LTD, 28.50 ,28/04/2016
Commercial,Customer Support Group,Building Repairs & Maintenance,60052115,S W BRUCE & CO LTD, 28.50 ,28/04/2016
Commercial,Customer Support Group,Building Repairs & Maintenance,60052085,S W BRUCE & CO LTD, 28.50 ,28/04/2016
Commercial,Customer Support Group,Building Repairs & Maintenance,60052086,S W BRUCE & CO LTD, 66.56 ,28/04/2016
Commercial,Customer Support Group,Building Repairs & Maintenance,60052070,S W BRUCE & CO LTD, 76.06 ,28/04/2016
Commercial,Customer Support Group,Building Repairs & Maintenance,60052067,S W BRUCE & CO LTD, 85.58 ,28/04/2016
Commercial,Customer Support Group,Building Repairs & Maintenance,60052082,S W BRUCE & CO LTD, 85.58 ,28/04/2016
Commercial,Customer Support Group,Building Repairs & Maintenance,60052055,S W BRUCE & CO LTD, 95.66 ,28/04/2016
Commercial,Customer Support Group,Building Repairs & Maintenance,60051862,S W BRUCE & CO LTD, 96.00 ,28/04/2016
Commercial,Customer Support Group,Building Repairs & Maintenance,60052075,S W BRUCE & CO LTD, 98.34 ,28/04/2016
Commercial,Customer Support Group,Building Repairs & Maintenance,60052104,S W BRUCE & CO LTD, 122.57 ,28/04/2016
Commercial,Customer Support Group,Building Repairs & Maintenance,60052088,S W BRUCE & CO LTD, 123.61 ,28/04/2016
Commercial,Customer Support Group,Building Repairs & Maintenance,60052073,S W BRUCE & CO LTD, 128.05 ,28/04/2016
Commercial,Customer Support Group,Building Repairs & Maintenance,60052066,S W BRUCE & CO LTD, 130.14 ,28/04/2016
Commercial,Customer Support Group,Building Repairs & Maintenance,60052099,S W BRUCE & CO LTD, 156.38 ,28/04/2016
Commercial,Customer Support Group,Building Repairs & Maintenance,60052064,S W BRUCE & CO LTD, 185.93 ,28/04/2016
Commercial,Customer Support Group,Building Repairs & Maintenance,60052105,S W BRUCE & CO LTD, 203.91 ,28/04/2016
Commercial,Customer Support Group,Building Repairs & Maintenance,60051826,S W BRUCE & CO LTD, 207.50 ,28/04/2016
Commercial,Customer Support Group,Building Repairs & Maintenance,60052146,S W BRUCE & CO LTD, 213.95 ,28/04/2016
Commercial,Customer Support Group,Building Repairs & Maintenance,60051860,S W BRUCE & CO LTD, 294.52 ,28/04/2016
Commercial,Customer Support Group,Building Repairs & Maintenance,60051825,S W BRUCE & CO LTD, 368.00 ,28/04/2016
Commercial,Customer Support Group,Building Repairs & Maintenance,60051893,S W BRUCE & CO LTD, 402.00 ,28/04/2016
Commercial,Customer Support Group,Building Repairs & Maintenance,60051851,S W BRUCE & CO LTD, 418.44 ,28/04/2016
Commercial,Customer Support Group,Building Repairs & Maintenance,60051783,S W BRUCE & CO LTD, 425.58 ,28/04/2016
Commercial,Customer Support Group,Building Repairs & Maintenance,60051764,S W BRUCE & CO LTD, 454.54 ,28/04/2016
Commercial,Customer Support Group,Building Repairs & Maintenance,60051852,S W BRUCE & CO LTD, 488.75 ,28/04/2016
Commercial,Customer Support Group,Building Repairs & Maintenance,60051845,S W BRUCE & CO LTD, 540.00 ,28/04/2016
Commercial,Customer Support Group,Building Repairs & Maintenance,60051841,S W BRUCE & CO LTD, 833.28 ,28/04/2016
Commercial,Customer Support Group,Building Repairs & Maintenance,60052111,S W BRUCE & CO LTD," 1,128.00 ",28/04/2016
Commercial,Customer Support Group,Building Repairs & Maintenance,60051770,S W BRUCE & CO LTD," 2,530.00 ",28/04/2016
Commercial,Customer Support Group,Building Repairs & Maintenance,60053786,S W BRUCE & CO LTD, 67.63 ,29/04/2016
Commercial,Customer Support Group,Building Repairs & Maintenance,60053394,SIMPLY ALARMING SECURITY LTD," 3,770.00 ",22/04/2016
Commercial,Customer Support Group,Building Repairs & Maintenance,60053413,SUPERCLEAN SERVICES WOTHORPE LTD, 602.55 ,22/04/2016
Commercial,Customer Support Group,Building Repairs & Maintenance,60052370,TANN SYNCHRONOME LTD, 125.00 ,13/04/2016
Commercial,Customer Support Group,Building Repairs & Maintenance,60052530,TANN SYNCHRONOME LTD, 125.00 ,13/04/2016
Commercial,Customer Support Group,Building Repairs & Maintenance,60053461,THE KEYHOLDING CO LTD, 39.38 ,22/04/2016
Commercial,Customer Support Group,Cleaning and domestic material,60039922,CHURCHILL CONTRACT SERVICES, 661.80 ,01/04/2016
Commercial,Customer Support Group,Cleaning and domestic material,60048714,CHURCHILL CONTRACT SERVICES, 661.80 ,01/04/2016
Commercial,Customer Support Group,Cleaning and domestic material,60045473,CHURCHILL CONTRACT SERVICES," 1,133.45 ",01/04/2016
Commercial,Customer Support Group,Cleaning and domestic material,60048687,CHURCHILL CONTRACT SERVICES," 7,329.82 ",01/04/2016
Commercial,Customer Support Group,Cleaning and domestic material,60039880,CHURCHILL CONTRACT SERVICES," 11,562.54 ",01/04/2016
Commercial,Customer Support Group,Cleaning and domestic material,60048726,CHURCHILL CONTRACT SERVICES," 11,562.54 ",01/04/2016
Commercial,Customer Support Group,Cleaning and domestic material,60051822,CHURCHILL CONTRACT SERVICES, 96.00 ,06/04/2016
Commercial,Customer Support Group,Cleaning and domestic material,60045450,CHURCHILL CONTRACT SERVICES," 1,080.02 ",13/04/2016
Commercial,Customer Support Group,Cleaning and domestic material,60045501,CHURCHILL CONTRACT SERVICES," 7,668.12 ",13/04/2016
Commercial,Customer Support Group,Cleaning and domestic material,60045483,CHURCHILL CONTRACT SERVICES," 12,096.20 ",13/04/2016
Commercial,Customer Support Group,Cleaning and domestic material,60045428,CHURCHILL CONTRACT SERVICES, 692.34 ,14/04/2016
Commercial,Customer Support Group,Cleaning and domestic material,60052942,CHURCHILL CONTRACT SERVICES, 640.00 ,28/04/2016
Commercial,Customer Support Group,Cleaning and domestic material,60052949,CHURCHILL CONTRACT SERVICES, 640.00 ,28/04/2016
Commercial,Customer Support Group,Cleaning and domestic material,60052287,CHURCHILL CONTRACT SERVICES, 661.80 ,28/04/2016
Commercial,Customer Support Group,Cleaning and domestic material,60052572,CHURCHILL CONTRACT SERVICES," 1,032.37 ",28/04/2016
Commercial,Customer Support Group,Cleaning and domestic material,60052647,CHURCHILL CONTRACT SERVICES," 1,133.45 ",28/04/2016
Commercial,Customer Support Group,Cleaning and domestic material,60052704,CHURCHILL CONTRACT SERVICES," 7,329.82 ",28/04/2016
Commercial,Customer Support Group,Cleaning and domestic material,60052632,CHURCHILL CONTRACT SERVICES," 11,562.54 ",28/04/2016
Commercial,Customer Support Group,Cleaning and domestic material,60052578,HERTFORDSHIRE SUPPLIES   COUNTY CO, 63.00 ,12/04/2016
Commercial,Customer Support Group,Cleaning and domestic material,60052709,HERTFORDSHIRE SUPPLIES   COUNTY CO, 90.00 ,14/04/2016
Commercial,Customer Support Group,Cleaning and domestic material,60052441,HERTFORDSHIRE SUPPLIES   COUNTY CO, 995.80 ,14/04/2016
Commercial,Customer Support Group,Cleaning and domestic material,60052664,HERTFORDSHIRE SUPPLIES   COUNTY CO," 1,918.05 ",14/04/2016
Commercial,Customer Support Group,Consultants Fees,60052036,VALUATION OFFICE AGENCY," 2,499.66 ",14/04/2016
Commercial,Customer Support Group,Contract Cleaning,60039873,CHURCHILL CONTRACT SERVICES, 294.16 ,01/04/2016
Commercial,Customer Support Group,Contract Cleaning,60036296,CHURCHILL CONTRACT SERVICES, 848.90 ,01/04/2016
Commercial,Customer Support Group,Contract Cleaning,60039897,CHURCHILL CONTRACT SERVICES," 1,133.45 ",01/04/2016
Commercial,Customer Support Group,Contract Cleaning,60048716,CHURCHILL CONTRACT SERVICES, 294.16 ,13/04/2016
Commercial,Customer Support Group,Contract Cleaning,60045446,CHURCHILL CONTRACT SERVICES, 307.74 ,14/04/2016
Commercial,Customer Support Group,Contract Cleaning,60052169,CHURCHILL CONTRACT SERVICES, 294.16 ,28/04/2016
Commercial,Customer Support Group,CSG Services Contract Payment,10013148,CAPITA BUSINESS SERVICES LTD," 8,587.45 ",05/04/2016
Commercial,Customer Support Group,CSG Services Contract Payment,60051771,CAPITA BUSINESS SERVICES LTD," 11,004.70 ",13/04/2016
Commercial,Customer Support Group,CSG Services Contract Payment,60051819,CAPITA BUSINESS SERVICES LTD," 75,482.68 ",13/04/2016
Commercial,Customer Support Group,CSG Services Contract Payment,60051809,CAPITA BUSINESS SERVICES LTD," 5,088.00 ",14/04/2016
Commercial,Customer Support Group,CSG Services Contract Payment,60051800,CAPITA BUSINESS SERVICES LTD," 36,400.00 ",14/04/2016
Commercial,Customer Support Group,Electricity,60053370,BRITISH GAS BUSINESS," 1,105.63 ",21/04/2016
Commercial,Customer Support Group,Electricity,60053206,KENT COUNTY COUNCIL (KCS)," 5,952.85 ",28/04/2016
Commercial,Customer Support Group,Electricity,60052964,KENT COUNTY COUNCIL (KCS)," 8,536.51 ",28/04/2016
Commercial,Customer Support Group,Electricity,60051674,MIDDLESEX UNIVERSITY," 1,057.52 ",07/04/2016
Commercial,Customer Support Group,Electricity,60051668,MIDDLESEX UNIVERSITY," 1,194.95 ",07/04/2016
Commercial,Customer Support Group,Fixtures and fittings,60053396,LYCO DIRECT LTD, 187.20 ,22/04/2016
Commercial,Customer Support Group,Fixtures and fittings,60051998,WAGSTAFF INTERIORS GROUP, 25.00 ,28/04/2016
Commercial,Customer Support Group,Furniture-Purchase-Repair,60050702,LYCO DIRECT LTD, 70.20 ,14/04/2016
Commercial,Customer Support Group,Furniture-Purchase-Repair,60053448,LYCO DIRECT LTD, 63.83 ,22/04/2016
Commercial,Customer Support Group,Gas,60053366,BRITISH GAS BUSINESS, 216.37 ,21/04/2016
Commercial,Customer Support Group,Gas,60052385,KENT COUNTY COUNCIL (KCS), 175.97 ,12/04/2016
Commercial,Customer Support Group,Gas,60053533,KENT COUNTY COUNCIL (KCS), 186.85 ,29/04/2016
Commercial,Customer Support Group,Gas,60053534,KENT COUNTY COUNCIL (KCS), 217.25 ,29/04/2016
Commercial,Customer Support Group,Gas,60053503,KENT COUNTY COUNCIL (KCS), 309.59 ,29/04/2016
Commercial,Customer Support Group,Gas,60053334,KENT COUNTY COUNCIL (KCS), 649.12 ,29/04/2016
Commercial,Customer Support Group,Gas,60053323,KENT COUNTY COUNCIL (KCS)," 7,598.04 ",29/04/2016
Commercial,Customer Support Group,Gas,60053383,KENT COUNTY COUNCIL (KCS)," 13,628.40 ",29/04/2016
Commercial,Customer Support Group,Gas,60051600,MIDDLESEX UNIVERSITY, 591.94 ,07/04/2016
Commercial,Customer Support Group,Gas,60051607,MIDDLESEX UNIVERSITY, 627.32 ,07/04/2016
Commercial,Customer Support Group,Grounds maintenance,60052937,RIBBEX UK LTD, 802.25 ,28/04/2016
Commercial,Customer Support Group,Other Services,60052213,BLUE 9 SECURITY LIMITED, 895.29 ,12/04/2016
Commercial,Customer Support Group,Other Services,60052357,BLUE 9 SECURITY LIMITED," 11,584.08 ",12/04/2016
Commercial,Customer Support Group,Other Services,60052333,BLUE 9 SECURITY LIMITED," 21,384.16 ",12/04/2016
Commercial,Customer Support Group,Other Services,60052257,BLUE 9 SECURITY LIMITED," 22,773.84 ",12/04/2016
Commercial,Customer Support Group,Other Services,60052219,BLUE 9 SECURITY LIMITED, 62.28 ,13/04/2016
Commercial,Customer Support Group,Other Services,60052299,BLUE 9 SECURITY LIMITED, 201.45 ,13/04/2016
Commercial,Customer Support Group,Other Services,60053045,BLUE 9 SECURITY LIMITED," 27,104.17 ",15/04/2016
Commercial,Customer Support Group,Other Services,60053048,BLUE 9 SECURITY LIMITED," 58,942.71 ",15/04/2016
Commercial,Customer Support Group,Postage,60052239,ROYAL MAIL GROUP LIMITED, 340.80 ,12/04/2016
Commercial,Customer Support Group,Postage,60052232,ROYAL MAIL GROUP LIMITED," 3,705.44 ",12/04/2016
Commercial,Customer Support Group,Postage,60053034,ROYAL MAIL GROUP LIMITED," 2,719.62 ",15/04/2016
Commercial,Customer Support Group,Postage,60053681,ROYAL MAIL GROUP LIMITED," 5,078.83 ",26/04/2016
Commercial,Customer Support Group,Postage,80003415,ROYAL MAIL GROUP LIMITED, 331.38 ,27/04/2016
Commercial,Customer Support Group,Postage,80003418,ROYAL MAIL GROUP LIMITED, 331.38 ,27/04/2016
Commercial,Customer Support Group,Postage,60053624,ROYAL MAIL GROUP LIMITED," 6,847.47 ",28/04/2016
Commercial,Customer Support Group,Postage,60053290,TABBERS, 108.00 ,28/04/2016
Commercial,Customer Support Group,Professional Services,60052580,MARYLEBONE ASSET MANAGEMENT LTD," 1,835.47 ",28/04/2016
Commercial,Customer Support Group,Professional Services,60052675,MARYLEBONE ASSET MANAGEMENT LTD, 9.83 ,29/04/2016
Commercial,Customer Support Group,Professional Services,60040416,ROSSENDALES (COLLECT) LTD, 62.02 ,01/04/2016
Commercial,Customer Support Group,Rents,60053136,MIDDLESEX UNIVERSITY," 26,375.00 ",18/04/2016
Commercial,Customer Support Group,Rents,60053497,MIDDLESEX UNIVERSITY," 26,375.00 ",28/04/2016
Commercial,Customer Support Group,Rents,60053002,RIDGELAND PROPERTIES LTD," 25,150.68 ",15/04/2016
Commercial,Customer Support Group,Rents,60053003,RIDGELAND PROPERTIES LTD," 33,750.00 ",15/04/2016
Commercial,Customer Support Group,Rents,60053080,RIDGELAND PROPERTIES LTD," 33,750.00 ",15/04/2016
Commercial,Customer Support Group,Rubbish Collection,60052955,G.B.HOLDINGS LTD, 33.60 ,15/04/2016
Commercial,Customer Support Group,Rubbish Collection,60052932,G.B.HOLDINGS LTD, 77.40 ,15/04/2016
Commercial,Customer Support Group,Rubbish Collection,60052972,G.B.HOLDINGS LTD, 102.00 ,15/04/2016
Commercial,Customer Support Group,Rubbish Collection,60051793,PEARCE RECYCLING CO. LTD, 39.00 ,28/04/2016
Commercial,Customer Support Group,Rubbish Collection,60053005,PREMIER SHREDDING, 103.00 ,15/04/2016
Commercial,Customer Support Group,Service Charges,60050280,MARYLEBONE ASSET MANAGEMENT LTD," 27,966.24 ",13/04/2016
Commercial,Customer Support Group,Service Charges,60052372,MARYLEBONE ASSET MANAGEMENT LTD, 718.52 ,28/04/2016
Commercial,Customer Support Group,Service Charges,60052479,MARYLEBONE ASSET MANAGEMENT LTD, 0.82 ,29/04/2016
Commercial,Customer Support Group,Subscriptions,60053512,LONDON BOROUGH OF HARINGEY," 7,750.00 ",29/04/2016
Commercial,Customer Support Group,Ttl IT & Comms,20029786,VODAFONE LTD (BILLS ONLY)," 11,767.44 ",27/04/2016
Commercial,Customer Support Group,Vending Machines,10013165,CONNECT VENDING LIMITED," 1,226.99 ",18/04/2016
Commercial,Customer Support Group,Water Services,60052263,AFFINITY WATER LIMITED, 500.99 ,13/04/2016
Commercial,Customer Support Group,Water Services,60052596,ANGEL SPRINGS LTD, 78.00 ,28/04/2016
Commercial,Customer Support Group,Water Services,60052343,ANGEL SPRINGS LTD, 154.00 ,28/04/2016
Commercial,Customer Support Group,Water Services,60051702,MIDDLESEX UNIVERSITY, 159.65 ,07/04/2016
Commercial,Customer Support Group,Water Services,60051641,MIDDLESEX UNIVERSITY, 343.49 ,07/04/2016
Commercial,HB LAW,LEGAL REAL,60046369,LONDON BOROUGH OF HARROW," 150,684.56 ",05/04/2016
Commercial,Housing Needs Resources,Other Transfer Payments to Soc,60053694,THE BARNETGROUP LIMITED," 100,202.73 ",29/04/2016
Commercial,Housing Needs Resources,Private Contractors - Third Pa,10013183,THE BARNETGROUP LIMITED," 1,600,000.00 ",20/04/2016
Commercial,Housing Needs Resources,Private Contractors - Third Pa,60053731,THE BARNETGROUP LIMITED," 53,559.87 ",27/04/2016
Commercial,Housing Needs Resources,Private Contractors - Third Pa,60053711,THE BARNETGROUP LIMITED," 1,600,000.00 ",27/04/2016
Commercial,HRA,Consultants Fees,60051028,STRATEGIC URBAN FUTURES LIMITED, 399.98 ,21/04/2016
Commercial,HRA,Consultants Fees,60051768,THE BARNETGROUP LIMITED," 12,574.70 ",06/04/2016
Commercial,HRA,Consultants Fees,60051797,THE BARNETGROUP LIMITED," 58,882.50 ",11/04/2016
Commercial,HRA,Consultants Fees,60053162,TROWERS & HAMLINS, 175.00 ,18/04/2016
Commercial,Parking & Infrastructure,Equipment and Materials Purcha,60053486,AGGREGATE INDUSTRIES," 1,960.12 ",28/04/2016
Commercial,Parking & Infrastructure,Equipment and Materials Purcha,60050598,ASD METAL SERVICES, 624.00 ,06/04/2016
Commercial,Parking & Infrastructure,Equipment and Materials Purcha,60053837,COLAS LTD," 3,024.00 ",29/04/2016
Commercial,Parking & Infrastructure,Equipment and Materials Purcha,60051005,GREENHAM TRADING LIMITED, 52.08 ,20/04/2016
Commercial,Parking & Infrastructure,Equipment and Materials Purcha,60052968,INSTARMAC GROUP PLC," 3,211.52 ",15/04/2016
Commercial,Parking & Infrastructure,Equipment and Materials Purcha,60050591,LAFARGE TARMAC TRADING LIMITED, 115.13 ,05/04/2016
Commercial,Parking & Infrastructure,Equipment and Materials Purcha,60050652,LAFARGE TARMAC TRADING LIMITED, 116.99 ,07/04/2016
Commercial,Parking & Infrastructure,Equipment and Materials Purcha,60052878,RENNICK UK LTD, 208.29 ,13/04/2016
Commercial,Parking & Infrastructure,Equipment and Materials Purcha,60053792,RENNICK UK LTD, 781.22 ,28/04/2016
Commercial,Parking & Infrastructure,Miscellaneous Expenses,60050688,PARKEON LIMITED, 796.50 ,14/04/2016
Commercial,Parking & Infrastructure,Other Services,60051712,REDCORN LTD, 70.00 ,06/04/2016
Commercial,Parking & Infrastructure,Other Services,60049609,REDCORN LTD, 95.00 ,06/04/2016
Commercial,Parking & Infrastructure,Other Services,60051583,REDCORN LTD, 95.00 ,06/04/2016
Commercial,Parking & Infrastructure,Other Services,60051631,REDCORN LTD, 95.00 ,06/04/2016
Commercial,Parking & Infrastructure,Professional Services,60051732,NSL LTD, 37.50 ,06/04/2016
Commercial,Parking & Infrastructure,Professional Services,60051590,NSL LTD," 218,032.31 ",06/04/2016
Commercial,Parking & Infrastructure,Professional Services,60051772,NSL LTD," 49,496.70 ",08/04/2016
Commercial,Parking & Infrastructure,Professional Services,60051849,NSL LTD," 12,419.46 ",11/04/2016
Commercial,Parking & Infrastructure,Professional Services,60051889,NSL LTD," 16,685.32 ",11/04/2016
Commercial,Parking & Infrastructure,Professional Services,60051815,NSL LTD," 51,243.05 ",11/04/2016
Commercial,Parking & Infrastructure,Professional Services,60051830,NSL LTD," 81,135.05 ",11/04/2016
Commercial,Parking & Infrastructure,Software Licences & Support,60051899,NSL LTD," 4,400.00 ",11/04/2016
Commercial,Public Health,Equipment and Materials Purcha,60050087,CENTRAL LONDONCOMMUNITY HEALTHCARE," 755,733.00 ",06/04/2016
Commercial,Regional Enterprise,Advertising,60049171,TMP (UK) LTD, 32.08 ,01/04/2016
Commercial,Regional Enterprise,Advertising,60049228,TMP (UK) LTD, 32.08 ,01/04/2016
Commercial,Regional Enterprise,Advertising,60048160,TMP (UK) LTD, 35.64 ,01/04/2016
Commercial,Regional Enterprise,Advertising,60048152,TMP (UK) LTD, 112.08 ,01/04/2016
Commercial,Regional Enterprise,Advertising,60048173,TMP (UK) LTD, 112.08 ,01/04/2016
Commercial,Regional Enterprise,Advertising,60050800,TMP (UK) LTD, 276.92 ,01/04/2016
Commercial,Regional Enterprise,Advertising,60050780,TMP (UK) LTD, 291.18 ,01/04/2016
Commercial,Regional Enterprise,Advertising,60051615,TMP (UK) LTD, 132.66 ,05/04/2016
Commercial,Regional Enterprise,Advertising,60051568,TMP (UK) LTD, 443.52 ,05/04/2016
Commercial,Regional Enterprise,Advertising,60051563,TMP (UK) LTD, 112.08 ,06/04/2016
Commercial,Regional Enterprise,Advertising,60051610,TMP (UK) LTD, 112.08 ,06/04/2016
Commercial,Regional Enterprise,Advertising,60051602,TMP (UK) LTD, 276.92 ,06/04/2016
Commercial,Regional Enterprise,Advertising,60051742,TMP (UK) LTD, 291.18 ,06/04/2016
Commercial,Regional Enterprise,Advertising,60052491,TMP (UK) LTD, 32.08 ,12/04/2016
Commercial,Regional Enterprise,Advertising,60052662,TMP (UK) LTD, 32.08 ,12/04/2016
Commercial,Regional Enterprise,Building Repairs & Maintenance,10013182,SOLON SECURITY," 1,111.50 ",15/04/2016
Commercial,Regional Enterprise,Cleaning and domestic material,60048593,CHURCHILL CONTRACT SERVICES, 488.56 ,01/04/2016
Commercial,Regional Enterprise,Cleaning and domestic material,60045491,CHURCHILL CONTRACT SERVICES, 511.11 ,14/04/2016
Commercial,Regional Enterprise,Cleaning and domestic material,60052388,CHURCHILL CONTRACT SERVICES, 488.56 ,28/04/2016
Commercial,Regional Enterprise,Consultants Fees,60051634,JACOBS UK LTD," 4,500.00 ",13/04/2016
Commercial,Regional Enterprise,Consultants Fees,60051748,RAILFREIGHT CONSULTING LTD," 7,850.00 ",06/04/2016
Commercial,Regional Enterprise,Consultants Fees,60052714,RAILFREIGHT CONSULTING LTD," 2,062.50 ",26/04/2016
Commercial,Regional Enterprise,Consultants Fees,10013149,RE (REGIONAL ENTERPRISE) LIMITED,"-220,000.00 ",04/04/2016
Commercial,Regional Enterprise,Consultants Fees,10013125,RE (REGIONAL ENTERPRISE) LIMITED,"-180,732.67 ",04/04/2016
Commercial,Regional Enterprise,Consultants Fees,60051840,SAPIENS CONSULTANCY," 1,774.00 ",27/04/2016
Commercial,Regional Enterprise,Equipment and Materials Purcha,60048919,EMC ADVERTISING GIFTS, 693.50 ,01/04/2016
Commercial,Regional Enterprise,Equipment and Materials Purcha,20029752,REDACTED - PERSONAL DATA," 1,260.00 ",22/04/2016
Commercial,Regional Enterprise,Equipment and Materials Purcha,60050727,SUN HILL SURVEYS," 2,665.00 ",19/04/2016
Commercial,Regional Enterprise,Grant Payments,80003419,AMWELL CONSTRUCTION LTD," 9,936.00 ",27/04/2016
Commercial,Regional Enterprise,Grant Payments,80002895,ARTHUR J. FERRYMAN ASSOCIATES, 480.00 ,01/04/2016
Commercial,Regional Enterprise,Grant Payments,80002916,BELLHAMWOOD LTD," 2,340.00 ",01/04/2016
Commercial,Regional Enterprise,Grant Payments,80002917,BELLHAMWOOD LTD," 2,340.00 ",01/04/2016
Commercial,Regional Enterprise,Grant Payments,80002918,BELLHAMWOOD LTD," 2,340.00 ",01/04/2016
Commercial,Regional Enterprise,Grant Payments,80002919,BELLHAMWOOD LTD," 3,120.00 ",01/04/2016
Commercial,Regional Enterprise,Grant Payments,80003062,CALL OUT LTD," 5,475.00 ",12/04/2016
Commercial,Regional Enterprise,Grant Payments,80003277,CAPITAL  LOCKSMITHS, 80.00 ,28/04/2016
Commercial,Regional Enterprise,Grant Payments,80003281,CAPITAL  LOCKSMITHS, 80.00 ,28/04/2016
Commercial,Regional Enterprise,Grant Payments,80003278,CAPITAL  LOCKSMITHS, 170.00 ,28/04/2016
Commercial,Regional Enterprise,Grant Payments,80003279,CAPITAL  LOCKSMITHS, 248.00 ,28/04/2016
Commercial,Regional Enterprise,Grant Payments,80003422,DEREK LOFTY & ASSOCIATES, 570.00 ,27/04/2016
Commercial,Regional Enterprise,Grant Payments,80003046,DOLPHIN MOBILITY LTD.," 2,410.00 ",12/04/2016
Commercial,Regional Enterprise,Grant Payments,80003275,DOMESTIC LIFT SERVICES LTD," 5,735.00 ",27/04/2016
Commercial,Regional Enterprise,Grant Payments,80003135,DP BUILDERS DISABLED ADAPTATIONS," 5,552.00 ",21/04/2016
Commercial,Regional Enterprise,Grant Payments,80003141,DP BUILDERS DISABLED ADAPTATIONS," 5,824.00 ",21/04/2016
Commercial,Regional Enterprise,Grant Payments,80003232,DP BUILDERS DISABLED ADAPTATIONS," 4,798.00 ",27/04/2016
Commercial,Regional Enterprise,Grant Payments,80003235,DP BUILDERS DISABLED ADAPTATIONS," 4,798.00 ",27/04/2016
Commercial,Regional Enterprise,Grant Payments,80003237,DP BUILDERS DISABLED ADAPTATIONS," 5,070.00 ",27/04/2016
Commercial,Regional Enterprise,Grant Payments,80003257,DP BUILDERS DISABLED ADAPTATIONS," 4,972.00 ",28/04/2016
Commercial,Regional Enterprise,Grant Payments,80002953,GHYLLSIDE," 1,891.00 ",12/04/2016
Commercial,Regional Enterprise,Grant Payments,80002943,H D PROPERTY SERVICES LTD," 5,089.00 ",01/04/2016
Commercial,Regional Enterprise,Grant Payments,80003386,H D PROPERTY SERVICES LTD, 138.00 ,26/04/2016
Commercial,Regional Enterprise,Grant Payments,80003182,REDACTED - PERSONAL DATA," 5,936.00 ",20/04/2016
Commercial,Regional Enterprise,Grant Payments,80003421,REDACTED - PERSONAL DATA," 6,820.00 ",27/04/2016
Commercial,Regional Enterprise,Grant Payments,80002996,SOUTH HERTFORDSHIRE," 8,840.00 ",12/04/2016
Commercial,Regional Enterprise,Grant Payments,80003261,SOUTH HERTFORDSHIRE," 5,351.00 ",21/04/2016
Commercial,Regional Enterprise,Grant Payments,80003408,SOUTH HERTFORDSHIRE," 4,683.00 ",26/04/2016
Commercial,Regional Enterprise,Grant Payments,80003274,SOUTH HERTFORDSHIRE," 10,000.00 ",27/04/2016
Commercial,Regional Enterprise,Grant Payments,80003160,STANNAH STAIRLIFTS LTD, 346.00 ,20/04/2016
Commercial,Regional Enterprise,Grant Payments,80003234,STANNAH STAIRLIFTS LTD," 4,414.00 ",20/04/2016
Commercial,Regional Enterprise,Grant Payments,80003239,STANNAH STAIRLIFTS LTD," 6,118.00 ",20/04/2016
Commercial,Regional Enterprise,Other Services,60051705,AYESHA COMMUNITY EDUCATION, 800.00 ,07/04/2016
Commercial,Regional Enterprise,Other Services,60044480,CONWAY AECOM LTD, 86.25 ,01/04/2016
Commercial,Regional Enterprise,Other Services,60045134,CONWAY AECOM LTD," 1,173.00 ",01/04/2016
Commercial,Regional Enterprise,Other Services,60047996,CONWAY AECOM LTD," 48,106.10 ",04/04/2016
Commercial,Regional Enterprise,Other Services,60047987,CONWAY AECOM LTD," 94,338.37 ",04/04/2016
Commercial,Regional Enterprise,Other Services,60048770,CONWAY AECOM LTD," 13,229.55 ",08/04/2016
Commercial,Regional Enterprise,Other Services,60050634,CONWAY AECOM LTD," 2,737.15 ",14/04/2016
Commercial,Regional Enterprise,Other Services,60050618,CONWAY AECOM LTD," 12,229.21 ",14/04/2016
Commercial,Regional Enterprise,Other Services,60053006,CONWAY AECOM LTD," 102,817.50 ",15/04/2016
Commercial,Regional Enterprise,Other Services,60051184,CONWAY AECOM LTD," 5,890.08 ",21/04/2016
Commercial,Regional Enterprise,Other Services,60031006,CONWAY AECOM LTD," 7,726.08 ",22/04/2016
Commercial,Regional Enterprise,Other Services,60040713,CONWAY AECOM LTD," 6,037.37 ",27/04/2016
Commercial,Regional Enterprise,Other Services,60051723,CONWAY AECOM LTD," 20,016.12 ",27/04/2016
Commercial,Regional Enterprise,Other Services,60052802,CONWAY AECOM LTD, 12.27 ,28/04/2016
Commercial,Regional Enterprise,Other Services,60052763,CONWAY AECOM LTD, 13.05 ,28/04/2016
Commercial,Regional Enterprise,Other Services,60052766,CONWAY AECOM LTD, 13.05 ,28/04/2016
Commercial,Regional Enterprise,Other Services,60052896,CONWAY AECOM LTD, 13.05 ,28/04/2016
Commercial,Regional Enterprise,Other Services,60052898,CONWAY AECOM LTD, 13.05 ,28/04/2016
Commercial,Regional Enterprise,Other Services,60052791,CONWAY AECOM LTD, 13.57 ,28/04/2016
Commercial,Regional Enterprise,Other Services,60052916,CONWAY AECOM LTD, 17.47 ,28/04/2016
Commercial,Regional Enterprise,Other Services,60052919,CONWAY AECOM LTD, 17.84 ,28/04/2016
Commercial,Regional Enterprise,Other Services,60052821,CONWAY AECOM LTD, 18.27 ,28/04/2016
Commercial,Regional Enterprise,Other Services,60052782,CONWAY AECOM LTD, 19.05 ,28/04/2016
Commercial,Regional Enterprise,Other Services,60052838,CONWAY AECOM LTD, 28.19 ,28/04/2016
Commercial,Regional Enterprise,Other Services,60052743,CONWAY AECOM LTD, 32.10 ,28/04/2016
Commercial,Regional Enterprise,Other Services,60052799,CONWAY AECOM LTD, 38.63 ,28/04/2016
Commercial,Regional Enterprise,Other Services,60052769,CONWAY AECOM LTD, 49.59 ,28/04/2016
Commercial,Regional Enterprise,Other Services,60052425,CONWAY AECOM LTD, 121.26 ,28/04/2016
Commercial,Regional Enterprise,Other Services,60053156,CONWAY AECOM LTD, 394.00 ,28/04/2016
Commercial,Regional Enterprise,Other Services,60052870,CONWAY AECOM LTD, 668.30 ,28/04/2016
Commercial,Regional Enterprise,Other Services,60052899,CONWAY AECOM LTD, 830.61 ,28/04/2016
Commercial,Regional Enterprise,Other Services,60052795,CONWAY AECOM LTD, 972.01 ,28/04/2016
Commercial,Regional Enterprise,Other Services,60052880,CONWAY AECOM LTD," 1,094.64 ",28/04/2016
Commercial,Regional Enterprise,Other Services,60052839,CONWAY AECOM LTD," 1,283.31 ",28/04/2016
Commercial,Regional Enterprise,Other Services,60052888,CONWAY AECOM LTD," 1,362.14 ",28/04/2016
Commercial,Regional Enterprise,Other Services,60052806,CONWAY AECOM LTD," 1,396.78 ",28/04/2016
Commercial,Regional Enterprise,Other Services,60052780,CONWAY AECOM LTD," 1,411.31 ",28/04/2016
Commercial,Regional Enterprise,Other Services,60052902,CONWAY AECOM LTD," 1,851.04 ",28/04/2016
Commercial,Regional Enterprise,Other Services,60052847,CONWAY AECOM LTD," 1,876.19 ",28/04/2016
Commercial,Regional Enterprise,Other Services,60053113,CONWAY AECOM LTD," 1,944.00 ",28/04/2016
Commercial,Regional Enterprise,Other Services,60052868,CONWAY AECOM LTD," 1,959.10 ",28/04/2016
Commercial,Regional Enterprise,Other Services,60052865,CONWAY AECOM LTD," 2,100.89 ",28/04/2016
Commercial,Regional Enterprise,Other Services,60052832,CONWAY AECOM LTD," 2,120.50 ",28/04/2016
Commercial,Regional Enterprise,Other Services,60052856,CONWAY AECOM LTD," 2,199.42 ",28/04/2016
Commercial,Regional Enterprise,Other Services,60052830,CONWAY AECOM LTD," 2,237.67 ",28/04/2016
Commercial,Regional Enterprise,Other Services,60052827,CONWAY AECOM LTD," 2,356.30 ",28/04/2016
Commercial,Regional Enterprise,Other Services,60052809,CONWAY AECOM LTD," 2,402.40 ",28/04/2016
Commercial,Regional Enterprise,Other Services,60052804,CONWAY AECOM LTD," 2,414.67 ",28/04/2016
Commercial,Regional Enterprise,Other Services,60052845,CONWAY AECOM LTD," 2,773.50 ",28/04/2016
Commercial,Regional Enterprise,Other Services,60052812,CONWAY AECOM LTD," 2,843.82 ",28/04/2016
Commercial,Regional Enterprise,Other Services,60052873,CONWAY AECOM LTD," 2,881.12 ",28/04/2016
Commercial,Regional Enterprise,Other Services,60052866,CONWAY AECOM LTD," 3,032.58 ",28/04/2016
Commercial,Regional Enterprise,Other Services,60052395,CONWAY AECOM LTD," 3,050.31 ",28/04/2016
Commercial,Regional Enterprise,Other Services,60052659,CONWAY AECOM LTD," 3,153.25 ",28/04/2016
Commercial,Regional Enterprise,Other Services,60052788,CONWAY AECOM LTD," 3,334.77 ",28/04/2016
Commercial,Regional Enterprise,Other Services,60052815,CONWAY AECOM LTD," 3,439.64 ",28/04/2016
Commercial,Regional Enterprise,Other Services,60052826,CONWAY AECOM LTD," 3,568.64 ",28/04/2016
Commercial,Regional Enterprise,Other Services,60052787,CONWAY AECOM LTD," 3,638.40 ",28/04/2016
Commercial,Regional Enterprise,Other Services,60052850,CONWAY AECOM LTD," 4,020.37 ",28/04/2016
Commercial,Regional Enterprise,Other Services,60052844,CONWAY AECOM LTD," 4,045.84 ",28/04/2016
Commercial,Regional Enterprise,Other Services,60052800,CONWAY AECOM LTD," 4,720.87 ",28/04/2016
Commercial,Regional Enterprise,Other Services,60052574,CONWAY AECOM LTD," 4,759.44 ",28/04/2016
Commercial,Regional Enterprise,Other Services,60052875,CONWAY AECOM LTD," 4,783.40 ",28/04/2016
Commercial,Regional Enterprise,Other Services,60051974,CONWAY AECOM LTD," 5,000.00 ",28/04/2016
Commercial,Regional Enterprise,Other Services,60052922,CONWAY AECOM LTD," 5,220.59 ",28/04/2016
Commercial,Regional Enterprise,Other Services,60052945,CONWAY AECOM LTD," 5,326.51 ",28/04/2016
Commercial,Regional Enterprise,Other Services,60052794,CONWAY AECOM LTD," 5,383.85 ",28/04/2016
Commercial,Regional Enterprise,Other Services,60052836,CONWAY AECOM LTD," 5,490.98 ",28/04/2016
Commercial,Regional Enterprise,Other Services,60052907,CONWAY AECOM LTD," 6,399.02 ",28/04/2016
Commercial,Regional Enterprise,Other Services,60052857,CONWAY AECOM LTD," 8,913.18 ",28/04/2016
Commercial,Regional Enterprise,Other Services,60052259,CONWAY AECOM LTD," 13,232.72 ",28/04/2016
Commercial,Regional Enterprise,Other Services,60052561,CONWAY AECOM LTD," 14,679.77 ",28/04/2016
Commercial,Regional Enterprise,Other Services,60052417,CONWAY AECOM LTD," 30,414.62 ",28/04/2016
Commercial,Regional Enterprise,Other Services,60051968,CONWAY AECOM LTD," 30,998.00 ",28/04/2016
Commercial,Regional Enterprise,Other Services,60051992,CONWAY AECOM LTD," 35,059.87 ",28/04/2016
Commercial,Regional Enterprise,Other Services,60052485,CONWAY AECOM LTD," 35,349.23 ",28/04/2016
Commercial,Regional Enterprise,Other Services,60051932,CONWAY AECOM LTD," 36,976.07 ",28/04/2016
Commercial,Regional Enterprise,Other Services,60051965,CONWAY AECOM LTD," 40,000.00 ",28/04/2016
Commercial,Regional Enterprise,Other Services,60052018,CONWAY AECOM LTD," 40,000.00 ",28/04/2016
Commercial,Regional Enterprise,Other Services,60051919,CONWAY AECOM LTD," 47,285.47 ",28/04/2016
Commercial,Regional Enterprise,Other Services,60052424,CONWAY AECOM LTD," 52,083.89 ",28/04/2016
Commercial,Regional Enterprise,Other Services,60052554,CONWAY AECOM LTD," 54,403.10 ",28/04/2016
Commercial,Regional Enterprise,Other Services,60051699,CONWAY AECOM LTD," 66,899.31 ",28/04/2016
Commercial,Regional Enterprise,Other Services,60052546,CONWAY AECOM LTD," 83,518.88 ",28/04/2016
Commercial,Regional Enterprise,Other Services,60052427,CONWAY AECOM LTD," 85,478.79 ",28/04/2016
Commercial,Regional Enterprise,Other Services,60052374,CONWAY AECOM LTD," 89,344.06 ",28/04/2016
Commercial,Regional Enterprise,Other Services,60051945,CONWAY AECOM LTD," 100,000.00 ",28/04/2016
Commercial,Regional Enterprise,Other Services,60051964,CONWAY AECOM LTD," 101,732.00 ",28/04/2016
Commercial,Regional Enterprise,Other Services,60051946,CONWAY AECOM LTD," 125,000.00 ",28/04/2016
Commercial,Regional Enterprise,Other Services,60052619,CONWAY AECOM LTD," 19,042.96 ",29/04/2016
Commercial,Regional Enterprise,Other Services,60050013,CYCLE CONFIDENT LTD," 1,889.00 ",07/04/2016
Commercial,Regional Enterprise,Other Services,60051110,CYCLE CONFIDENT LTD," 1,308.59 ",21/04/2016
Commercial,Regional Enterprise,Other Services,60051071,CYCLE CONFIDENT LTD," 7,516.07 ",21/04/2016
Commercial,Regional Enterprise,Other Services,60051137,CYCLE CONFIDENT LTD," 39,030.43 ",21/04/2016
Commercial,Regional Enterprise,Other Services,60051757,ENVIRONMENT AGENCY," 11,500.00 ",05/04/2016
Commercial,Regional Enterprise,Other Services,60051648,GILLETT AND JOHNSTON, 877.80 ,08/04/2016
Commercial,Regional Enterprise,Other Services,60051606,GILLETT AND JOHNSTON," 1,885.50 ",12/04/2016
Commercial,Regional Enterprise,Other Services,60051229,GRASVENOR AVENUE INFANT SCHOOL (ACA, 950.00 ,01/04/2016
Commercial,Regional Enterprise,Other Services,60051624,GROUNDWORK LONDON," 9,400.00 ",21/04/2016
Commercial,Regional Enterprise,Other Services,60053523,J C DECAUX UK LTD," 21,181.16 ",25/04/2016
Commercial,Regional Enterprise,Other Services,60027872,KENT COUNTY COUNCIL (KCS), 36.19 ,18/04/2016
Commercial,Regional Enterprise,Other Services,60051714,LIBERTY SERVICES," 6,757.61 ",06/04/2016
Commercial,Regional Enterprise,Other Services,60051681,LIBERTY SERVICES," 7,365.46 ",06/04/2016
Commercial,Regional Enterprise,Other Services,60051103,LONDON AMBULANCE SERVICE NHS TRUST, 800.00 ,14/04/2016
Commercial,Regional Enterprise,Other Services,60051625,REDCORN LTD," 2,784.00 ",05/04/2016
Commercial,Regional Enterprise,Other Services,60051577,REDCORN LTD," 1,160.00 ",06/04/2016
Commercial,Regional Enterprise,Other Services,60051651,REDCORN LTD," 3,480.00 ",06/04/2016
Commercial,Regional Enterprise,Other Services,60051564,REDCORN LTD," 5,104.00 ",06/04/2016
Commercial,Regional Enterprise,Other Services,60051616,REDCORN LTD," 5,800.00 ",06/04/2016
Commercial,Regional Enterprise,Other Services,60050950,STYLEBRANDS MARKETING LTD," 1,000.00 ",19/04/2016
Commercial,Regional Enterprise,Other Services,60052911,WESTCOTEC LIMITED," 47,000.00 ",28/04/2016
Commercial,Regional Enterprise,Other Services,60051635,WREN ACADEMY," 1,000.00 ",07/04/2016
Commercial,Regional Enterprise,Professional Services,10013150,RE (REGIONAL ENTERPRISE) LIMITED,"-2,880.48 ",04/04/2016
Commercial,Regional Enterprise,Professional Services,10013128,RE (REGIONAL ENTERPRISE) LIMITED," 63,256.00 ",04/04/2016
Commercial,Regional Enterprise,Professional Services,60052309,WATES LIVING SPACE, 190.15 ,12/04/2016
Commercial,Regional Enterprise,Professional Services,60052185,WATES LIVING SPACE, 743.70 ,12/04/2016
Commercial,Regional Enterprise,Professional Services,60052281,WATES LIVING SPACE," 1,952.68 ",12/04/2016
Commercial,Regional Enterprise,Professional Services,60052585,WATES LIVING SPACE," 2,519.58 ",12/04/2016
Commercial,Regional Enterprise,Professional Services,60052262,WATES LIVING SPACE," 2,603.57 ",12/04/2016
Commercial,Regional Enterprise,Professional Services,60052301,WATES LIVING SPACE," 2,603.57 ",12/04/2016
Commercial,Regional Enterprise,Professional Services,60053073,WATES LIVING SPACE, 26.12 ,15/04/2016
Commercial,Regional Enterprise,Professional Services,60053214,WATES LIVING SPACE," 1,826.70 ",19/04/2016
Commercial,Regional Enterprise,Professional Services,60053223,WATES LIVING SPACE," 1,952.68 ",19/04/2016
Commercial,Regional Enterprise,Professional Services,60053217,WATES LIVING SPACE," 5,318.93 ",19/04/2016
Commercial,Regional Enterprise,Professional Services,60053376,WATES LIVING SPACE," 2,519.58 ",21/04/2016
Commercial,Regional Enterprise,Publications,60053594,SHELLEY MCPHEE LTD TRAINING, 403.28 ,29/04/2016
Commercial,Regional Enterprise,Publications,60053645,SHELLEY MCPHEE LTD TRAINING," 4,050.00 ",29/04/2016
Commercial,Regional Enterprise,RE Services Contract Payment,10013177,RE (REGIONAL ENTERPRISE) LIMITED," 4,027,293.00 ",04/04/2016
Commercial,Regional Enterprise,RE Services Contract Payment,10013202,RE (REGIONAL ENTERPRISE) LIMITED," 503,844.00 ",28/04/2016
Commissioning,Commissioning,Building Repairs & Maintenance,60050583,COPPER CONSULTING LTD," 1,925.00 ",01/04/2016
Commissioning,Commissioning,Cleaning and domestic material,60051789,CHURCHILL CONTRACT SERVICES," 2,604.00 ",08/04/2016
Commissioning,Commissioning,Consultants Fees,60051687,BARNET & DISTRICT ATHLETIC CLUB, 100.00 ,07/04/2016
Commissioning,Commissioning,Consultants Fees,60053140,BARNET & DISTRICT ATHLETIC CLUB, 50.00 ,20/04/2016
Commissioning,Commissioning,Consultants Fees,60053554,COPPER CONSULTING LTD, 600.00 ,28/04/2016
Commissioning,Commissioning,Consultants Fees,60051847,KAZOU CONSULTANCY LTD, 440.27 ,08/04/2016
Commissioning,Commissioning,Consultants Fees,60051013,PRICEWATERHOUSE COOPERS," 6,000.00 ",15/04/2016
Commissioning,Commissioning,Consultants Fees,60052023,REDACTED - PERSONAL DATA, 25.00 ,28/04/2016
Commissioning,Commissioning,Consultants Fees,60053281,SAVILLS (L&P) LTD," 12,500.00 ",19/04/2016
Commissioning,Commissioning,Consultants Fees,60048299,SPORT ENGLAND," 6,600.00 ",01/04/2016
Commissioning,Commissioning,Consultants Fees,60050022,THE ASSOCIATION OF DIRECTORS OF," 3,135.00 ",07/04/2016
Commissioning,Commissioning,Consultants Fees,60053721,VALUATION OFFICE AGENCY," 2,800.00 ",27/04/2016
Commissioning,Commissioning,Consultants Fees,60051778,WATES CONSTRUCTION LTD," 17,935.79 ",11/04/2016
Commissioning,Commissioning,Consultants Fees,60051820,WATES CONSTRUCTION LTD," 18,462.53 ",11/04/2016
Commissioning,Commissioning,Consultants Fees,60051780,WATES CONSTRUCTION LTD," 38,785.99 ",11/04/2016
Commissioning,Commissioning,Consultants Fees,60051836,WATES CONSTRUCTION LTD," 111,650.16 ",11/04/2016
Commissioning,Commissioning,Consultants Fees,60051892,WATES CONSTRUCTION LTD," 121,870.96 ",11/04/2016
Commissioning,Commissioning,Discretionary awards,60050010,THE BARNETGROUP LIMITED," 118,428.84 ",04/04/2016
Commissioning,Commissioning,Discretionary awards,60051485,THE BARNETGROUP LIMITED," 51,846.06 ",11/04/2016
Commissioning,Commissioning,Electricity,60053178,SOUTHERN ELECTRIC PLC, 108.26 ,15/04/2016
Commissioning,Commissioning,Employee Expenses,60052753,TMP (UK) LTD," 2,353.00 ",25/04/2016
Commissioning,Commissioning,Employee Expenses,60052819,TMP (UK) LTD," 2,353.00 ",25/04/2016
Commissioning,Commissioning,Equipment and Materials Purcha,60053676,GALLIFORD TRY," 38,657.17 ",26/04/2016
Commissioning,Commissioning,Equipment and Materials Purcha,60053500,OCS GROUP UK LIMITED," 1,229.00 ",22/04/2016
Commissioning,Commissioning,Equipment and Materials Purcha,60053402,OCS GROUP UK LIMITED," 46,304.00 ",28/04/2016
Commissioning,Commissioning,Furniture-Purchase-Repair,20029779,EUROWORKSPACE LIMITED," 9,206.00 ",25/04/2016
Commissioning,Commissioning,Government Contributions,60053353,UKCT SUPPORT SERVICES LIMITED," 1,350.00 ",21/04/2016
Commissioning,Commissioning,Government Grants,80003005,LONDON BOROUGH OF EALING," 99,000.00 ",06/04/2016
Commissioning,Commissioning,Grant Payments,80003004,BARNET ELDERLY ASIANS GROUP," 2,000.00 ",13/04/2016
Commissioning,Commissioning,Joint Authorities - Third Part,EBX0114106,NORTH LONDON WASTE AUTHORITY," 904,617.00 ",28/04/2016
Commissioning,Commissioning,Other Agencies - Third Party P,10013178,ADVOCACY IN BARNET," 2,200.00 ",04/04/2016
Commissioning,Commissioning,Other Agencies - Third Party P,60049060,FAMILY FUND TRADING LTD,-755.30 ,06/04/2016
Commissioning,Commissioning,Other Agencies - Third Party P,60048956,FAMILY FUND TRADING LTD, 143.00 ,06/04/2016
Commissioning,Commissioning,Other Agencies - Third Party P,60051650,FAMILY FUND TRADING LTD, 666.67 ,06/04/2016
Commissioning,Commissioning,Other Agencies - Third Party P,60051903,SOLACE WOMEN'S AID," 60,780.52 ",07/04/2016
Commissioning,Commissioning,Other Services,60053052,BLUE 9 SECURITY LIMITED," 4,000.00 ",15/04/2016
Commissioning,Commissioning,Other Services,60053228,BRITISH GYMNASTICS, 20.00 ,28/04/2016
Commissioning,Commissioning,Other Services,60051603,IMPOWER CONSULTING LIMITED," 13,200.00 ",27/04/2016
Commissioning,Commissioning,Other Services,60053227,LOCAL PARTNERSHIPS LLP," 9,000.00 ",19/04/2016
Commissioning,Commissioning,Other Services,60053494,LONDON COMMUNITY REHABILITATION COMPANY," 13,250.00 ",28/04/2016
Commissioning,Commissioning,Other Services,60051022,LONDON YOUTH GAMES, 236.42 ,20/04/2016
Commissioning,Commissioning,Other Services,80003187,MAYOR OF THE LBB BENEVOLENT FUND," 8,315.00 ",20/04/2016
Commissioning,Commissioning,Other Services,60051801,MIDDLESEX UNIVERSITY, 270.00 ,08/04/2016
Commissioning,Commissioning,Other Services,60052358,SOLON SECURITY," 5,985.00 ",21/04/2016
Commissioning,Commissioning,Other Services,60051614,VICTIM SUPPORT SERVICES," 5,587.50 ",05/04/2016
Commissioning,Commissioning,Private Contractors - Third Pa,60053025,GREENWICH LEISURE LTD," 100,273.55 ",15/04/2016
Commissioning,Commissioning,Private Contractors - Third Pa,60053532,GREENWICH LEISURE LTD," 100,273.55 ",29/04/2016
Commissioning,Commissioning,Professional Services,60051897,MIDDLESEX UNIVERSITY," 4,220.00 ",07/04/2016
Commissioning,Commissioning,Professional Services,60051636,OPINION RESEARCH SERVICES," 53,806.00 ",08/04/2016
Commissioning,Commissioning,Professional Services,60051605,OPINION RESEARCH SERVICES," 28,895.00 ",11/04/2016
Commissioning,Commissioning,Publications,10013179,COMMUNITY LINKS TRADING LTD," 3,745.50 ",05/04/2016
Commissioning,Commissioning,Publications,60051775,REDACTED - PERSONAL DATA, 150.00 ,06/04/2016
Commissioning,Commissioning,Publications,60051608,REDACTED - PERSONAL DATA, 220.00 ,21/04/2016
Commissioning,Commissioning,Software Licences & Support,10013173,EXPERIAN LTD," 5,150.00 ",01/04/2016
Commissioning,Commissioning,Subscriptions,10013176,ALARM, 666.00 ,04/04/2016
Commissioning,Commissioning,Subscriptions,60053282,STANDING TOGETHER AGAINST, 75.00 ,22/04/2016
Commissioning,Commissioning,Training,60051921,ADASS, 270.00 ,28/04/2016
Commissioning,Commissioning,Training,60050381,DOD'S PARLIAMENTARY, 998.80 ,20/04/2016
Commissioning,Commissioning,Training,60049238,THE ASSOCIATION OF DIRECTORS OF, 780.00 ,04/04/2016
Commissioning,Commissioning,Ttl IT & Comms,60050324,STOR-A FILE LTD, 720.20 ,12/04/2016
Commissioning,Commissioning,Venue Hire,60049915,ARIANA BANQUETING HALL, 450.00 ,07/04/2016
Commissioning,Commissioning,Venue Hire,60053309,BARNET & SOUTHGATE COLLEGE, 434.00 ,25/04/2016
Commissioning,Commissioning,Venue Hire,60053814,BARNET & SOUTHGATE COLLEGE, 325.50 ,29/04/2016
Corporate Accounting,Corporate Accounting,Other Agencies - Third Party P,60053739,THE BARNETGROUP LIMITED," 3,100,000.00 ",27/04/2016
Corporate Accounting,Corporate Accounting,Other Establishments - Third P,20029362,PARKFIELD ACADEMY," 1,615.23 ",07/04/2016
Corporate Accounting,Corporate Accounting,Other Establishments - Third P,20029338,PARKFIELD ACADEMY," 1,918.10 ",07/04/2016
Corporate Accounting,Corporate Accounting,Other Local Authorities - Thir,EBX0111549,GREATER LONDON AUTHORITY," 3,891,785.35 ",15/04/2016
Corporate Accounting,Corporate Accounting,Other Local Authorities - Thir,EBX0112221,GREATER LONDON AUTHORITY," 230,277.00 ",21/04/2016
Corporate Accounting,Corporate Accounting,Other Local Authorities - Thir,EBX0113061,GREATER LONDON AUTHORITY," 1,711,467.00 ",22/04/2016
Corporate Accounting,Corporate Accounting,Other Transfer Payments to Soc,80002902,CITIBANK NA LONDON, 215.80 ,01/04/2016
Corporate Accounting,Corporate Accounting,Other Transfer Payments to Soc,60051346,CITIBANK NA LONDON, 140.00 ,04/04/2016
Corporate Accounting,Corporate Accounting,Other Transfer Payments to Soc,60051319,CITIBANK NA LONDON, 371.11 ,04/04/2016
Corporate Accounting,Corporate Accounting,Other Transfer Payments to Soc,60051424,CITIBANK NA LONDON, 460.08 ,04/04/2016
Corporate Accounting,Corporate Accounting,Other Transfer Payments to Soc,60051320,CITIBANK NA LONDON," 2,366.71 ",04/04/2016
Corporate Accounting,Corporate Accounting,Other Transfer Payments to Soc,60052348,CITIBANK NA LONDON, 77.90 ,13/04/2016
Corporate Accounting,Corporate Accounting,Other Transfer Payments to Soc,60052206,CITIBANK NA LONDON, 331.00 ,13/04/2016
Corporate Accounting,Corporate Accounting,Other Transfer Payments to Soc,60052583,CITIBANK NA LONDON," 1,096.00 ",13/04/2016
Corporate Accounting,Corporate Accounting,Other Transfer Payments to Soc,60052276,CITIBANK NA LONDON," 2,922.72 ",13/04/2016
Corporate Accounting,Corporate Accounting,Other Transfer Payments to Soc,60052270,CITIBANK NA LONDON," 3,187.72 ",13/04/2016
Corporate Accounting,Corporate Accounting,Other Transfer Payments to Soc,60052593,CITIBANK NA LONDON," 10,508.44 ",13/04/2016
Corporate Accounting,Corporate Accounting,Other Transfer Payments to Soc,60052524,CITIBANK NA LONDON, 284.07 ,29/04/2016
Delivery Units,Adults and Communities,Advertising,60044553,TMP (UK) LTD," 1,534.60 ",05/04/2016
Delivery Units,Adults and Communities,Capital Construction and Works,60049890,MURPHY SURVEYS LIMITED," 7,400.00 ",04/04/2016
Delivery Units,Adults and Communities,Cleaning and domestic material,60048661,CHURCHILL CONTRACT SERVICES, 391.37 ,01/04/2016
Delivery Units,Adults and Communities,Cleaning and domestic material,60052519,CHURCHILL CONTRACT SERVICES, 377.81 ,28/04/2016
Delivery Units,Adults and Communities,Cleaning and domestic material,60052450,CHURCHILL CONTRACT SERVICES, 391.37 ,28/04/2016
Delivery Units,Adults and Communities,Consultants Fees,60049838,BRITISH INSTITUTE OF LEARNING DISABILITI," 1,200.00 ",05/04/2016
Delivery Units,Adults and Communities,Consultants Fees,60049891,BRITISH INSTITUTE OF LEARNING DISABILITI," 2,393.90 ",06/04/2016
Delivery Units,Adults and Communities,Consultants Fees,60053803,LONDON BOROUGH OF BRENT, 468.75 ,29/04/2016
Delivery Units,Adults and Communities,Contract Cleaning,60039890,CHURCHILL CONTRACT SERVICES, 377.81 ,01/04/2016
Delivery Units,Adults and Communities,Contract Cleaning,60039960,CHURCHILL CONTRACT SERVICES, 391.37 ,01/04/2016
Delivery Units,Adults and Communities,Electricity,20029792,BRITISH GAS BUSINESS, 729.15 ,27/04/2016
Delivery Units,Adults and Communities,Electricity,20029791,BRITISH GAS BUSINESS," 2,255.65 ",27/04/2016
Delivery Units,Adults and Communities,Electricity,60051578,KENT COUNTY COUNCIL (KCS), 331.80 ,05/04/2016
Delivery Units,Adults and Communities,Electricity,60051734,KENT COUNTY COUNCIL (KCS), 377.86 ,05/04/2016
Delivery Units,Adults and Communities,Electricity,60051640,KENT COUNTY COUNCIL (KCS), 414.39 ,05/04/2016
Delivery Units,Adults and Communities,Employee Expenses,60052683,BARNET ENFIELD & HARINGEY MENTAL," 51,173.04 ",27/04/2016
Delivery Units,Adults and Communities,Employee Expenses,60052192,CENTRAL LONDONCOMMUNITY HEALTHCARE," 88,097.00 ",12/04/2016
Delivery Units,Adults and Communities,Employee Expenses,60051711,THE BARNETGROUP LIMITED," 32,620.04 ",05/04/2016
Delivery Units,Adults and Communities,Equipment and Materials Purcha,60049615,BACK CARE SOLUTIONS LIMITED, 415.00 ,04/04/2016
Delivery Units,Adults and Communities,Equipment and Materials Purcha,60049590,BACK CARE SOLUTIONS LIMITED, 439.00 ,04/04/2016
Delivery Units,Adults and Communities,Equipment and Materials Purcha,60049737,BACK CARE SOLUTIONS LIMITED, 515.91 ,04/04/2016
Delivery Units,Adults and Communities,Equipment and Materials Purcha,60049746,BACK CARE SOLUTIONS LIMITED, 531.96 ,04/04/2016
Delivery Units,Adults and Communities,Equipment and Materials Purcha,60052221,MEDEQUIP ASSISTIVE TECHNOLOGY LTD," 182,846.74 ",13/04/2016
Delivery Units,Adults and Communities,Food Costs,60049735,DAIRY CREST LIMITED, 1.44 ,01/04/2016
Delivery Units,Adults and Communities,Food Costs,60050377,DAIRY CREST LIMITED, 1.44 ,01/04/2016
Delivery Units,Adults and Communities,Food Costs,60051026,DAIRY CREST LIMITED, 1.44 ,08/04/2016
Delivery Units,Adults and Communities,Food Costs,60052125,MULLER MILK & INGREDIENTS, 1.44 ,15/04/2016
Delivery Units,Adults and Communities,Furniture-Purchase-Repair,60037906,NORTH LONDON LOCKSMITHS LTD, 75.00 ,01/04/2016
Delivery Units,Adults and Communities,Furniture-Purchase-Repair,60043757,NORTH LONDON LOCKSMITHS LTD, 75.00 ,01/04/2016
Delivery Units,Adults and Communities,Furniture-Purchase-Repair,60044632,NORTH LONDON LOCKSMITHS LTD, 75.00 ,01/04/2016
Delivery Units,Adults and Communities,Furniture-Purchase-Repair,60049903,NORTH LONDON LOCKSMITHS LTD, 75.00 ,01/04/2016
Delivery Units,Adults and Communities,Furniture-Purchase-Repair,60050572,NORTH LONDON LOCKSMITHS LTD, 95.00 ,01/04/2016
Delivery Units,Adults and Communities,Furniture-Purchase-Repair,60044694,NORTH LONDON LOCKSMITHS LTD, 130.00 ,01/04/2016
Delivery Units,Adults and Communities,Furniture-Purchase-Repair,60043789,NORTH LONDON LOCKSMITHS LTD, 75.00 ,05/04/2016
Delivery Units,Adults and Communities,Furniture-Purchase-Repair,60049687,NORTH LONDON LOCKSMITHS LTD, 75.00 ,05/04/2016
Delivery Units,Adults and Communities,Gas,60053587,KENT COUNTY COUNCIL (KCS), 273.78 ,29/04/2016
Delivery Units,Adults and Communities,General Office Expenses,60052264,ST ANDREWS MEDICAL PRACTICE, 560.00 ,20/04/2016
Delivery Units,Adults and Communities,Grounds maintenance,60052383,REDACTED - PERSONAL DATA, 200.00 ,25/04/2016
Delivery Units,Adults and Communities,Other Agencies - Third Party P,30117903,AARON COURT CARE HOME," 2,216.41 ",12/04/2016
Delivery Units,Adults and Communities,Other Agencies - Third Party P,30117427,ABBEY RAVENSCROFT PARK NURSING HOME," 2,397.72 ",11/04/2016
Delivery Units,Adults and Communities,Other Agencies - Third Party P,30117436,ABBEY RAVENSCROFT PARK NURSING HOME," 2,448.78 ",11/04/2016
Delivery Units,Adults and Communities,Other Agencies - Third Party P,30117437,ABBEY RAVENSCROFT PARK NURSING HOME," 2,654.88 ",11/04/2016
Delivery Units,Adults and Communities,Other Agencies - Third Party P,30117424,ABBEY RAVENSCROFT PARK NURSING HOME," 2,655.55 ",11/04/2016
Delivery Units,Adults and Communities,Other Agencies - Third Party P,30117425,ABBEY RAVENSCROFT PARK NURSING HOME," 2,655.55 ",11/04/2016
Delivery Units,Adults and Communities,Other Agencies - Third Party P,30117428,ABBEY RAVENSCROFT PARK NURSING HOME," 2,655.55 ",11/04/2016
Delivery Units,Adults and Communities,Other Agencies - Third Party P,30117429,ABBEY RAVENSCROFT PARK NURSING HOME," 2,655.55 ",11/04/2016
Delivery Units,Adults and Communities,Other Agencies - Third Party P,30117430,ABBEY RAVENSCROFT PARK NURSING HOME," 2,655.55 ",11/04/2016
Delivery Units,Adults and Communities,Other Agencies - Third Party P,30117432,ABBEY RAVENSCROFT PARK NURSING HOME," 2,655.55 ",11/04/2016
Delivery Units,Adults and Communities,Other Agencies - Third Party P,30117433,ABBEY RAVENSCROFT PARK NURSING HOME," 2,655.55 ",11/04/2016
Delivery Units,Adults and Communities,Other Agencies - Third Party P,30117438,ABBEY RAVENSCROFT PARK NURSING HOME," 3,100.00 ",11/04/2016
Delivery Units,Adults and Communities,Other Agencies - Third Party P,30117439,ABBEY RAVENSCROFT PARK NURSING HOME," 3,100.00 ",11/04/2016
Delivery Units,Adults and Communities,Other Agencies - Third Party P,30117434,ABBEY RAVENSCROFT PARK NURSING HOME," 3,100.00 ",11/04/2016
Delivery Units,Adults and Communities,Other Agencies - Third Party P,30117435,ABBEY RAVENSCROFT PARK NURSING HOME," 3,100.00 ",11/04/2016
Delivery Units,Adults and Communities,Other Agencies - Third Party P,30117440,ABBEY RAVENSCROFT PARK NURSING HOME," 3,100.00 ",11/04/2016
Delivery Units,Adults and Communities,Other Agencies - Third Party P,30117982,ABBEY RAVENSCROFT PARK NURSING HOME," 2,900.00 ",13/04/2016
Delivery Units,Adults and Communities,Other Agencies - Third Party P,30119472,ABBEY RAVENSCROFT PARK NURSING HOME," 3,000.00 ",25/04/2016
Delivery Units,Adults and Communities,Other Agencies - Third Party P,30119469,ABBEY RAVENSCROFT PARK NURSING HOME," 3,100.00 ",25/04/2016
Delivery Units,Adults and Communities,Other Agencies - Third Party P,30120087,ABBEY RAVENSCROFT PARK NURSING HOME,"-1,370.61 ",28/04/2016
Delivery Units,Adults and Communities,Other Agencies - Third Party P,30120085,ABBEY RAVENSCROFT PARK NURSING HOME,"-1,285.71 ",28/04/2016
Delivery Units,Adults and Communities,Other Agencies - Third Party P,30120071,ABBEY RAVENSCROFT PARK NURSING HOME," 2,568.57 ",28/04/2016
Delivery Units,Adults and Communities,Other Agencies - Third Party P,30120084,ABBEY RAVENSCROFT PARK NURSING HOME," 2,569.24 ",28/04/2016
Delivery Units,Adults and Communities,Other Agencies - Third Party P,30120077,ABBEY RAVENSCROFT PARK NURSING HOME," 2,569.89 ",28/04/2016
Delivery Units,Adults and Communities,Other Agencies - Third Party P,30120074,ABBEY RAVENSCROFT PARK NURSING HOME," 2,570.70 ",28/04/2016
Delivery Units,Adults and Communities,Other Agencies - Third Party P,30120078,ABBEY RAVENSCROFT PARK NURSING HOME," 2,571.43 ",28/04/2016
Delivery Units,Adults and Communities,Other Agencies - Third Party P,30120079,ABBEY RAVENSCROFT PARK NURSING HOME," 2,571.43 ",28/04/2016
Delivery Units,Adults and Communities,Other Agencies - Third Party P,30120075,ABBEY RAVENSCROFT PARK NURSING HOME," 2,892.86 ",28/04/2016
Delivery Units,Adults and Communities,Other Agencies - Third Party P,30120090,ABBEY RAVENSCROFT PARK NURSING HOME," 2,892.86 ",28/04/2016
Delivery Units,Adults and Communities,Other Agencies - Third Party P,30120070,ABBEY RAVENSCROFT PARK NURSING HOME," 2,989.29 ",28/04/2016
Delivery Units,Adults and Communities,Other Agencies - Third Party P,30120073,ABBEY RAVENSCROFT PARK NURSING HOME," 2,989.29 ",28/04/2016
Delivery Units,Adults and Communities,Other Agencies - Third Party P,30120076,ABBEY RAVENSCROFT PARK NURSING HOME," 2,989.29 ",28/04/2016
Delivery Units,Adults and Communities,Other Agencies - Third Party P,30120086,ABBEY RAVENSCROFT PARK NURSING HOME," 2,989.29 ",28/04/2016
Delivery Units,Adults and Communities,Other Agencies - Third Party P,30120088,ABBEY RAVENSCROFT PARK NURSING HOME," 2,989.29 ",28/04/2016
Delivery Units,Adults and Communities,Other Agencies - Third Party P,30120089,ABBEY RAVENSCROFT PARK NURSING HOME," 2,989.29 ",28/04/2016
Delivery Units,Adults and Communities,Other Agencies - Third Party P,30120080,ABBEY RAVENSCROFT PARK NURSING HOME," 3,000.00 ",28/04/2016
Delivery Units,Adults and Communities,Other Agencies - Third Party P,30120081,ABBEY RAVENSCROFT PARK NURSING HOME," 3,000.00 ",28/04/2016
Delivery Units,Adults and Communities,Other Agencies - Third Party P,30120082,ABBEY RAVENSCROFT PARK NURSING HOME," 3,000.00 ",28/04/2016
Delivery Units,Adults and Communities,Other Agencies - Third Party P,30120092,ABBEY RAVENSCROFT PARK NURSING HOME," 3,000.00 ",28/04/2016
Delivery Units,Adults and Communities,Other Agencies - Third Party P,30120072,ABBEY RAVENSCROFT PARK NURSING HOME," 3,100.00 ",28/04/2016
Delivery Units,Adults and Communities,Other Agencies - Third Party P,30120069,ABBEY RAVENSCROFT PARK NURSING HOME," 3,278.57 ",28/04/2016
Delivery Units,Adults and Communities,Other Agencies - Third Party P,30120068,ABBEY RAVENSCROFT PARK NURSING HOME," 3,400.00 ",28/04/2016
Delivery Units,Adults and Communities,Other Agencies - Third Party P,30120091,ABBEY RAVENSCROFT PARK NURSING HOME," 9,000.00 ",28/04/2016
Delivery Units,Adults and Communities,Other Agencies - Third Party P,30117110,ACCEDO CARE LTD, 700.00 ,06/04/2016
Delivery Units,Adults and Communities,Other Agencies - Third Party P,30117109,ACCEDO CARE LTD," 5,600.00 ",06/04/2016
Delivery Units,Adults and Communities,Other Agencies - Third Party P,30117108,ACCEDO CARE LTD," 6,594.14 ",06/04/2016
Delivery Units,Adults and Communities,Other Agencies - Third Party P,30117107,ACCEDO CARE LTD," 8,960.00 ",06/04/2016
Delivery Units,Adults and Communities,Other Agencies - Third Party P,30118414,ACCEDO CARE LTD, 906.48 ,21/04/2016
Delivery Units,Adults and Communities,Other Agencies - Third Party P,30120231,ACCEDO CARE LTD," 1,020.00 ",29/04/2016
Delivery Units,Adults and Communities,Other Agencies - Third Party P,30118485,ADVENT CARE PLUS," 8,935.00 ",21/04/2016
Delivery Units,Adults and Communities,Other Agencies - Third Party P,30118491,ADVENT CARE PLUS," 9,665.00 ",21/04/2016
Delivery Units,Adults and Communities,Other Agencies - Third Party P,30118471,ADVENT CARE PLUS," 14,400.00 ",21/04/2016
Delivery Units,Adults and Communities,Other Agencies - Third Party P,30117317,AGUDAS ISRAEL HOUSING ASSCTN LTD," 2,364.74 ",11/04/2016
Delivery Units,Adults and Communities,Other Agencies - Third Party P,30117410,AGUDAS ISRAEL HOUSING ASSCTN LTD," 2,527.83 ",11/04/2016
Delivery Units,Adults and Communities,Other Agencies - Third Party P,30117409,AGUDAS ISRAEL HOUSING ASSCTN LTD," 3,154.25 ",11/04/2016
Delivery Units,Adults and Communities,Other Agencies - Third Party P,20029529,AMWELL CONSTRUCTION LTD," 2,623.20 ",08/04/2016
Delivery Units,Adults and Communities,Other Agencies - Third Party P,30117344,ANASTASIA LODGE," 3,000.00 ",11/04/2016
Delivery Units,Adults and Communities,Other Agencies - Third Party P,30117413,APPLE TREE COURT CARE HOME," 2,318.93 ",11/04/2016
Delivery Units,Adults and Communities,Other Agencies - Third Party P,30117411,APPLE TREE COURT CARE HOME," 2,397.72 ",11/04/2016
Delivery Units,Adults and Communities,Other Agencies - Third Party P,30117421,APPLE TREE COURT CARE HOME," 2,418.04 ",11/04/2016
Delivery Units,Adults and Communities,Other Agencies - Third Party P,30117414,APPLE TREE COURT CARE HOME," 2,570.70 ",11/04/2016
Delivery Units,Adults and Communities,Other Agencies - Third Party P,30117415,APPLE TREE COURT CARE HOME," 2,570.70 ",11/04/2016
Delivery Units,Adults and Communities,Other Agencies - Third Party P,30117416,APPLE TREE COURT CARE HOME," 2,570.70 ",11/04/2016
Delivery Units,Adults and Communities,Other Agencies - Third Party P,30117417,APPLE TREE COURT CARE HOME," 2,570.70 ",11/04/2016
Delivery Units,Adults and Communities,Other Agencies - Third Party P,30117422,APPLE TREE COURT CARE HOME," 2,570.70 ",11/04/2016
Delivery Units,Adults and Communities,Other Agencies - Third Party P,30117412,APPLE TREE COURT CARE HOME," 2,655.55 ",11/04/2016
Delivery Units,Adults and Communities,Other Agencies - Third Party P,30117419,APPLE TREE COURT CARE HOME," 2,657.14 ",11/04/2016
Delivery Units,Adults and Communities,Other Agencies - Third Party P,30117367,APPLE TREE COURT CARE HOME," 2,826.87 ",11/04/2016
Delivery Units,Adults and Communities,Other Agencies - Third Party P,30117418,APPLE TREE COURT CARE HOME," 3,100.00 ",11/04/2016
Delivery Units,Adults and Communities,Other Agencies - Third Party P,30117420,APPLE TREE COURT CARE HOME," 3,100.00 ",11/04/2016
Delivery Units,Adults and Communities,Other Agencies - Third Party P,30117423,APPLE TREE COURT CARE HOME," 3,542.86 ",11/04/2016
Delivery Units,Adults and Communities,Other Agencies - Third Party P,30118141,APPLE TREE COURT CARE HOME, 580.50 ,18/04/2016
Delivery Units,Adults and Communities,Other Agencies - Third Party P,30117132,ASHFIELDS RESIDENTIAL CARE HOME," 2,249.27 ",06/04/2016
Delivery Units,Adults and Communities,Other Agencies - Third Party P,30117133,ASHFIELDS RESIDENTIAL CARE HOME," 2,290.79 ",06/04/2016
Delivery Units,Adults and Communities,Other Agencies - Third Party P,30117128,ASHFIELDS RESIDENTIAL CARE HOME," 2,448.78 ",06/04/2016
Delivery Units,Adults and Communities,Other Agencies - Third Party P,30117129,ASHFIELDS RESIDENTIAL CARE HOME," 2,448.78 ",06/04/2016
Delivery Units,Adults and Communities,Other Agencies - Third Party P,30117131,ASHFIELDS RESIDENTIAL CARE HOME," 2,448.78 ",06/04/2016
Delivery Units,Adults and Communities,Other Agencies - Third Party P,30117127,ASHFIELDS RESIDENTIAL CARE HOME," 2,657.14 ",06/04/2016
Delivery Units,Adults and Communities,Other Agencies - Third Party P,30117130,ASHFIELDS RESIDENTIAL CARE HOME," 4,208.31 ",06/04/2016
Delivery Units,Adults and Communities,Other Agencies - Third Party P,20029683,ASHFIELDS RESIDENTIAL CARE HOME," 2,448.78 ",21/04/2016
Delivery Units,Adults and Communities,Other Agencies - Third Party P,20029672,ASHFIELDS RESIDENTIAL CARE HOME," 3,712.67 ",21/04/2016
Delivery Units,Adults and Communities,Other Agencies - Third Party P,20029846,ASHFIELDS RESIDENTIAL CARE HOME," 2,290.79 ",28/04/2016
Delivery Units,Adults and Communities,Other Agencies - Third Party P,30117941,ASHTON LODGE CARE CENTRE," 12,685.72 ",12/04/2016
Delivery Units,Adults and Communities,Other Agencies - Third Party P,30117983,ASHTON LODGE CARE CENTRE," 2,397.72 ",13/04/2016
Delivery Units,Adults and Communities,Other Agencies - Third Party P,30118443,ASHTON LODGE CARE CENTRE," 2,707.10 ",21/04/2016
Delivery Units,Adults and Communities,Other Agencies - Third Party P,30117716,ASPEN VILLAGES LTD," 2,216.41 ",11/04/2016
Delivery Units,Adults and Communities,Other Agencies - Third Party P,30117486,ASPEN VILLAGES LTD," 2,418.04 ",11/04/2016
Delivery Units,Adults and Communities,Other Agencies - Third Party P,30117483,ASPEN VILLAGES LTD," 3,321.43 ",11/04/2016
Delivery Units,Adults and Communities,Other Agencies - Third Party P,30117484,ASPEN VILLAGES LTD," 3,542.86 ",11/04/2016
Delivery Units,Adults and Communities,Other Agencies - Third Party P,30117488,ASPEN VILLAGES LTD," 3,764.29 ",11/04/2016
Delivery Units,Adults and Communities,Other Agencies - Third Party P,30117481,ASPEN VILLAGES LTD," 4,207.14 ",11/04/2016
Delivery Units,Adults and Communities,Other Agencies - Third Party P,30117482,ASPEN VILLAGES LTD," 4,871.43 ",11/04/2016
Delivery Units,Adults and Communities,Other Agencies - Third Party P,30117487,ASPEN VILLAGES LTD," 4,871.43 ",11/04/2016
Delivery Units,Adults and Communities,Other Agencies - Third Party P,30117485,ASPEN VILLAGES LTD," 5,978.57 ",11/04/2016
Delivery Units,Adults and Communities,Other Agencies - Third Party P,30117376,AUTUMN GARDENS," 2,184.04 ",11/04/2016
Delivery Units,Adults and Communities,Other Agencies - Third Party P,30117375,AUTUMN GARDENS," 2,800.00 ",11/04/2016
Delivery Units,Adults and Communities,Other Agencies - Third Party P,30117374,AUTUMN GARDENS," 2,880.00 ",11/04/2016
Delivery Units,Adults and Communities,Other Agencies - Third Party P,30117373,AUTUMN GARDENS," 3,080.00 ",11/04/2016
Delivery Units,Adults and Communities,Other Agencies - Third Party P,30117372,AUTUMN GARDENS," 3,160.00 ",11/04/2016
Delivery Units,Adults and Communities,Other Agencies - Third Party P,30118059,AUTUMN GARDENS," 2,257.14 ",18/04/2016
Delivery Units,Adults and Communities,Other Agencies - Third Party P,30117520,B & M CARE," 3,082.29 ",11/04/2016
Delivery Units,Adults and Communities,Other Agencies - Third Party P,80002897,BARNET ENFIELD & HARINGEY MENTAL," 5,836.04 ",27/04/2016
Delivery Units,Adults and Communities,Other Agencies - Third Party P,80002896,BARNET ENFIELD & HARINGEY MENTAL," 39,267.00 ",27/04/2016
Delivery Units,Adults and Communities,Other Agencies - Third Party P,30118134,BARNET EXECUTIVE CAR SERVICE, 400.00 ,18/04/2016
Delivery Units,Adults and Communities,Other Agencies - Third Party P,30118135,BARNET EXECUTIVE CAR SERVICE, 400.00 ,18/04/2016
Delivery Units,Adults and Communities,Other Agencies - Third Party P,30118126,BARNET EXECUTIVE CAR SERVICE, 456.00 ,18/04/2016
Delivery Units,Adults and Communities,Other Agencies - Third Party P,30118130,BARNET EXECUTIVE CAR SERVICE, 480.00 ,18/04/2016
Delivery Units,Adults and Communities,Other Agencies - Third Party P,30118131,BARNET EXECUTIVE CAR SERVICE, 480.00 ,18/04/2016
Delivery Units,Adults and Communities,Other Agencies - Third Party P,30118132,BARNET EXECUTIVE CAR SERVICE, 480.00 ,18/04/2016
Delivery Units,Adults and Communities,Other Agencies - Third Party P,30118133,BARNET EXECUTIVE CAR SERVICE, 480.00 ,18/04/2016
Delivery Units,Adults and Communities,Other Agencies - Third Party P,30120277,BARNET MENCAP, 589.65 ,29/04/2016
Delivery Units,Adults and Communities,Other Agencies - Third Party P,30117870,BAYTREE COMMUNITY CARE (LONDON) LTD," 2,686.64 ",12/04/2016
Delivery Units,Adults and Communities,Other Agencies - Third Party P,30117869,BAYTREE COMMUNITY CARE (LONDON) LTD," 2,890.26 ",12/04/2016
Delivery Units,Adults and Communities,Other Agencies - Third Party P,30118426,BAYTREE COMMUNITY CARE (LONDON) LTD," 2,081.97 ",21/04/2016
Delivery Units,Adults and Communities,Other Agencies - Third Party P,30118427,BAYTREE COMMUNITY CARE (LONDON) LTD," 2,371.46 ",21/04/2016
Delivery Units,Adults and Communities,Other Agencies - Third Party P,30118428,BAYTREE COMMUNITY CARE (LONDON) LTD," 3,538.37 ",21/04/2016
Delivery Units,Adults and Communities,Other Agencies - Third Party P,30118451,BELMONT LODGE CARE CENTRE," 1,861.71 ",21/04/2016
Delivery Units,Adults and Communities,Other Agencies - Third Party P,30118453,BELMONT LODGE CARE CENTRE," 2,249.57 ",21/04/2016
Delivery Units,Adults and Communities,Other Agencies - Third Party P,30118455,BELMONT LODGE CARE CENTRE," 2,327.14 ",21/04/2016
Delivery Units,Adults and Communities,Other Agencies - Third Party P,30118452,BELMONT LODGE CARE CENTRE," 2,404.71 ",21/04/2016
Delivery Units,Adults and Communities,Other Agencies - Third Party P,30118454,BELMONT LODGE CARE CENTRE," 2,404.71 ",21/04/2016
Delivery Units,Adults and Communities,Other Agencies - Third Party P,30117977,BENSLOW MANAGEMENT COMPANY LIMITED," 2,418.04 ",13/04/2016
Delivery Units,Adults and Communities,Other Agencies - Third Party P,30116882,BROOKDALE HEALTHCARE," 3,759.36 ",06/04/2016
Delivery Units,Adults and Communities,Other Agencies - Third Party P,30117266,BROOKDALE HEALTHCARE," 7,806.73 ",11/04/2016
Delivery Units,Adults and Communities,Other Agencies - Third Party P,30117268,BROOKDALE HEALTHCARE," 9,610.00 ",11/04/2016
Delivery Units,Adults and Communities,Other Agencies - Third Party P,30117269,BROOKDALE HEALTHCARE," 9,995.33 ",11/04/2016
Delivery Units,Adults and Communities,Other Agencies - Third Party P,30120227,BROOKDALE HEALTHCARE," 7,554.90 ",29/04/2016
Delivery Units,Adults and Communities,Other Agencies - Third Party P,30120224,BROOKDALE HEALTHCARE," 9,000.00 ",29/04/2016
Delivery Units,Adults and Communities,Other Agencies - Third Party P,30120225,BROOKDALE HEALTHCARE," 9,300.00 ",29/04/2016
Delivery Units,Adults and Communities,Other Agencies - Third Party P,30120229,BROOKDALE HEALTHCARE," 9,497.70 ",29/04/2016
Delivery Units,Adults and Communities,Other Agencies - Third Party P,30120226,BROOKDALE HEALTHCARE," 9,672.90 ",29/04/2016
Delivery Units,Adults and Communities,Other Agencies - Third Party P,30119623,BRUNSWICK SUPPORTED LIVING SERVICES," 1,412.68 ",26/04/2016
Delivery Units,Adults and Communities,Other Agencies - Third Party P,30119624,BRUNSWICK SUPPORTED LIVING SERVICES," 1,942.84 ",26/04/2016
Delivery Units,Adults and Communities,Other Agencies - Third Party P,30119626,BRUNSWICK SUPPORTED LIVING SERVICES," 2,153.92 ",26/04/2016
Delivery Units,Adults and Communities,Other Agencies - Third Party P,30117555,BUPA CARE HOMES," 2,153.54 ",11/04/2016
Delivery Units,Adults and Communities,Other Agencies - Third Party P,30117553,BUPA CARE HOMES," 2,169.32 ",11/04/2016
Delivery Units,Adults and Communities,Other Agencies - Third Party P,30117556,BUPA CARE HOMES," 2,169.32 ",11/04/2016
Delivery Units,Adults and Communities,Other Agencies - Third Party P,30117545,BUPA CARE HOMES," 2,169.32 ",11/04/2016
Delivery Units,Adults and Communities,Other Agencies - Third Party P,30117546,BUPA CARE HOMES," 2,169.32 ",11/04/2016
Delivery Units,Adults and Communities,Other Agencies - Third Party P,30117714,BUPA CARE HOMES," 2,252.51 ",11/04/2016
Delivery Units,Adults and Communities,Other Agencies - Third Party P,30117713,BUPA CARE HOMES," 2,404.85 ",11/04/2016
Delivery Units,Adults and Communities,Other Agencies - Third Party P,30117547,BUPA CARE HOMES," 2,692.86 ",11/04/2016
Delivery Units,Adults and Communities,Other Agencies - Third Party P,30117554,BUPA CARE HOMES," 2,735.40 ",11/04/2016
Delivery Units,Adults and Communities,Other Agencies - Third Party P,30117550,BUPA CARE HOMES," 3,258.81 ",11/04/2016
Delivery Units,Adults and Communities,Other Agencies - Third Party P,30117551,BUPA CARE HOMES," 3,321.43 ",11/04/2016
Delivery Units,Adults and Communities,Other Agencies - Third Party P,30117552,BUPA CARE HOMES," 3,321.43 ",11/04/2016
Delivery Units,Adults and Communities,Other Agencies - Third Party P,30117548,BUPA CARE HOMES," 4,142.86 ",11/04/2016
Delivery Units,Adults and Communities,Other Agencies - Third Party P,30117544,BUPA CARE HOMES," 7,750.00 ",11/04/2016
Delivery Units,Adults and Communities,Other Agencies - Third Party P,30117935,BUPA CARE HOMES," 2,314.02 ",12/04/2016
Delivery Units,Adults and Communities,Other Agencies - Third Party P,30118044,BUPA CARE HOMES," 2,314.02 ",12/04/2016
Delivery Units,Adults and Communities,Other Agencies - Third Party P,30117906,BUPA CARE HOMES," 2,418.04 ",12/04/2016
Delivery Units,Adults and Communities,Other Agencies - Third Party P,30117936,BUPA CARE HOMES," 2,570.70 ",12/04/2016
Delivery Units,Adults and Communities,Other Agencies - Third Party P,30117534,BUPA CARE HOMES,-496.00 ,18/04/2016
Delivery Units,Adults and Communities,Other Agencies - Third Party P,30117535,BUPA CARE HOMES,-496.00 ,18/04/2016
Delivery Units,Adults and Communities,Other Agencies - Third Party P,30117537,BUPA CARE HOMES,-496.00 ,18/04/2016
Delivery Units,Adults and Communities,Other Agencies - Third Party P,30117539,BUPA CARE HOMES,-496.00 ,18/04/2016
Delivery Units,Adults and Communities,Other Agencies - Third Party P,30117540,BUPA CARE HOMES,-496.00 ,18/04/2016
Delivery Units,Adults and Communities,Other Agencies - Third Party P,30117528,BUPA CARE HOMES,-496.00 ,18/04/2016
Delivery Units,Adults and Communities,Other Agencies - Third Party P,30117530,BUPA CARE HOMES,-496.00 ,18/04/2016
Delivery Units,Adults and Communities,Other Agencies - Third Party P,30117533,BUPA CARE HOMES,-480.00 ,18/04/2016
Delivery Units,Adults and Communities,Other Agencies - Third Party P,30117536,BUPA CARE HOMES,-480.00 ,18/04/2016
Delivery Units,Adults and Communities,Other Agencies - Third Party P,30117538,BUPA CARE HOMES,-480.00 ,18/04/2016
Delivery Units,Adults and Communities,Other Agencies - Third Party P,30117527,BUPA CARE HOMES,-480.00 ,18/04/2016
Delivery Units,Adults and Communities,Other Agencies - Third Party P,30117529,BUPA CARE HOMES,-480.00 ,18/04/2016
Delivery Units,Adults and Communities,Other Agencies - Third Party P,30117541,BUPA CARE HOMES,-464.00 ,18/04/2016
Delivery Units,Adults and Communities,Other Agencies - Third Party P,30117526,BUPA CARE HOMES,-224.00 ,18/04/2016
Delivery Units,Adults and Communities,Other Agencies - Third Party P,30117531,BUPA CARE HOMES,-208.00 ,18/04/2016
Delivery Units,Adults and Communities,Other Agencies - Third Party P,30117532,BUPA CARE HOMES,-64.00 ,18/04/2016
Delivery Units,Adults and Communities,Other Agencies - Third Party P,30118091,BUPA CARE HOMES, 798.19 ,18/04/2016
Delivery Units,Adults and Communities,Other Agencies - Third Party P,30118090,BUPA CARE HOMES," 1,970.25 ",18/04/2016
Delivery Units,Adults and Communities,Other Agencies - Third Party P,30117525,BUPA CARE HOMES," 2,104.32 ",18/04/2016
Delivery Units,Adults and Communities,Other Agencies - Third Party P,30117524,BUPA CARE HOMES," 2,243.03 ",18/04/2016
Delivery Units,Adults and Communities,Other Agencies - Third Party P,30118089,BUPA CARE HOMES," 2,249.45 ",18/04/2016
Delivery Units,Adults and Communities,Other Agencies - Third Party P,30118096,BUPA CARE HOMES," 2,302.06 ",18/04/2016
Delivery Units,Adults and Communities,Other Agencies - Third Party P,30118094,BUPA CARE HOMES," 2,318.93 ",18/04/2016
Delivery Units,Adults and Communities,Other Agencies - Third Party P,30118097,BUPA CARE HOMES," 2,318.93 ",18/04/2016
Delivery Units,Adults and Communities,Other Agencies - Third Party P,30118088,BUPA CARE HOMES," 2,397.72 ",18/04/2016
Delivery Units,Adults and Communities,Other Agencies - Third Party P,30118119,BUPA CARE HOMES," 2,407.86 ",18/04/2016
Delivery Units,Adults and Communities,Other Agencies - Third Party P,30118118,BUPA CARE HOMES," 2,570.70 ",18/04/2016
Delivery Units,Adults and Communities,Other Agencies - Third Party P,30118095,BUPA CARE HOMES," 2,924.05 ",18/04/2016
Delivery Units,Adults and Communities,Other Agencies - Third Party P,30118092,BUPA CARE HOMES," 3,153.69 ",18/04/2016
Delivery Units,Adults and Communities,Other Agencies - Third Party P,30118093,BUPA CARE HOMES," 3,214.29 ",18/04/2016
Delivery Units,Adults and Communities,Other Agencies - Third Party P,20029687,BUPA CARE HOMES," 3,272.86 ",21/04/2016
Delivery Units,Adults and Communities,Other Agencies - Third Party P,20029684,BUPA CARE HOMES," 3,498.57 ",21/04/2016
Delivery Units,Adults and Communities,Other Agencies - Third Party P,20029686,BUPA CARE HOMES," 3,498.57 ",21/04/2016
Delivery Units,Adults and Communities,Other Agencies - Third Party P,30119505,BUPA CARE HOMES," 4,842.64 ",22/04/2016
Delivery Units,Adults and Communities,Other Agencies - Third Party P,30119484,BUPA CARE HOMES, 507.94 ,25/04/2016
Delivery Units,Adults and Communities,Other Agencies - Third Party P,30120107,BUPA CARE HOMES, 507.94 ,28/04/2016
Delivery Units,Adults and Communities,Other Agencies - Third Party P,30120140,BUPA CARE HOMES," 2,318.93 ",28/04/2016
Delivery Units,Adults and Communities,Other Agencies - Third Party P,30120141,BUPA CARE HOMES," 2,318.93 ",28/04/2016
Delivery Units,Adults and Communities,Other Agencies - Third Party P,30120142,BUPA CARE HOMES," 2,878.57 ",28/04/2016
Delivery Units,Adults and Communities,Other Agencies - Third Party P,30120143,BUPA CARE HOMES," 4,428.57 ",28/04/2016
Delivery Units,Adults and Communities,Other Agencies - Third Party P,30120270,BUPA CARE HOMES,-217.69 ,29/04/2016
Delivery Units,Adults and Communities,Other Agencies - Third Party P,30120268,BUPA CARE HOMES, 217.69 ,29/04/2016
Delivery Units,Adults and Communities,Other Agencies - Third Party P,30120269,BUPA CARE HOMES, 507.94 ,29/04/2016
Delivery Units,Adults and Communities,Other Agencies - Third Party P,30120271,BUPA CARE HOMES," 7,500.00 ",29/04/2016
Delivery Units,Adults and Communities,Other Agencies - Third Party P,30117219,BUPA NURSING HOMES LTD - ARKLEY, 541.42 ,08/04/2016
Delivery Units,Adults and Communities,Other Agencies - Third Party P,30117216,BUPA NURSING HOMES LTD - ARKLEY," 1,553.92 ",08/04/2016
Delivery Units,Adults and Communities,Other Agencies - Third Party P,30117212,BUPA NURSING HOMES LTD - ARKLEY," 1,604.52 ",08/04/2016
Delivery Units,Adults and Communities,Other Agencies - Third Party P,30117213,BUPA NURSING HOMES LTD - ARKLEY," 2,094.52 ",08/04/2016
Delivery Units,Adults and Communities,Other Agencies - Third Party P,30117214,BUPA NURSING HOMES LTD - ARKLEY," 2,094.52 ",08/04/2016
Delivery Units,Adults and Communities,Other Agencies - Third Party P,30117215,BUPA NURSING HOMES LTD - ARKLEY," 2,094.52 ",08/04/2016
Delivery Units,Adults and Communities,Other Agencies - Third Party P,30117217,BUPA NURSING HOMES LTD - ARKLEY," 2,094.52 ",08/04/2016
Delivery Units,Adults and Communities,Other Agencies - Third Party P,30117218,BUPA NURSING HOMES LTD - ARKLEY," 2,211.80 ",08/04/2016
Delivery Units,Adults and Communities,Other Agencies - Third Party P,30117447,BUPA NURSING HOMES LTD - ARKLEY," 2,570.70 ",11/04/2016
Delivery Units,Adults and Communities,Other Agencies - Third Party P,30117448,BUPA NURSING HOMES LTD - ARKLEY," 2,657.14 ",11/04/2016
Delivery Units,Adults and Communities,Other Agencies - Third Party P,30118196,BUPA NURSING HOMES LTD - ARKLEY, 428.98 ,18/04/2016
Delivery Units,Adults and Communities,Other Agencies - Third Party P,20029757,BUPA NURSING HOMES LTD - ARKLEY," 2,370.00 ",25/04/2016
Delivery Units,Adults and Communities,Other Agencies - Third Party P,30119478,BUPA NURSING HOMES LTD - ARKLEY," 2,726.84 ",25/04/2016
Delivery Units,Adults and Communities,Other Agencies - Third Party P,20029754,BUPA NURSING HOMES LTD - ARKLEY," 3,498.57 ",25/04/2016
Delivery Units,Adults and Communities,Other Agencies - Third Party P,30120263,BUPA NURSING HOMES LTD - ARKLEY, 653.04 ,29/04/2016
Delivery Units,Adults and Communities,Other Agencies - Third Party P,30117717,CAMBIAN BEECHES," 13,164.46 ",11/04/2016
Delivery Units,Adults and Communities,Other Agencies - Third Party P,20029838,CAMDEN LODGE RESIDENTIAL CARE HOME," 2,657.14 ",26/04/2016
Delivery Units,Adults and Communities,Other Agencies - Third Party P,20029839,CAMDEN LODGE RESIDENTIAL CARE HOME," 2,657.14 ",26/04/2016
Delivery Units,Adults and Communities,Other Agencies - Third Party P,20029840,CAMDEN LODGE RESIDENTIAL CARE HOME," 3,342.86 ",26/04/2016
Delivery Units,Adults and Communities,Other Agencies - Third Party P,30120010,CAMDEN LODGE RESIDENTIAL CARE HOME," 2,571.43 ",29/04/2016
Delivery Units,Adults and Communities,Other Agencies - Third Party P,30120009,CAMDEN LODGE RESIDENTIAL CARE HOME," 2,657.14 ",29/04/2016
Delivery Units,Adults and Communities,Other Agencies - Third Party P,30117329,CANDLE COURT NURSING HOME,"-9,720.00 ",11/04/2016
Delivery Units,Adults and Communities,Other Agencies - Third Party P,30117330,CANDLE COURT NURSING HOME," 2,655.55 ",11/04/2016
Delivery Units,Adults and Communities,Other Agencies - Third Party P,30117332,CANDLE COURT NURSING HOME," 2,655.55 ",11/04/2016
Delivery Units,Adults and Communities,Other Agencies - Third Party P,30117331,CANDLE COURT NURSING HOME," 3,764.29 ",11/04/2016
Delivery Units,Adults and Communities,Other Agencies - Third Party P,30117328,CANDLE COURT NURSING HOME," 9,720.00 ",11/04/2016
Delivery Units,Adults and Communities,Other Agencies - Third Party P,30117479,CARE UK COMMUNITY PARTNERSHIPS," 2,867.46 ",11/04/2016
Delivery Units,Adults and Communities,Other Agencies - Third Party P,30116894,CARE WORLDWIDE (LONDON) LTD," 2,680.88 ",06/04/2016
Delivery Units,Adults and Communities,Other Agencies - Third Party P,30117859,CARE WORLDWIDE (LONDON) LTD," 2,680.88 ",12/04/2016
Delivery Units,Adults and Communities,Other Agencies - Third Party P,30117862,CARE WORLDWIDE (LONDON) LTD," 2,685.98 ",12/04/2016
Delivery Units,Adults and Communities,Other Agencies - Third Party P,30117867,CARE WORLDWIDE (LONDON) LTD," 2,794.44 ",12/04/2016
Delivery Units,Adults and Communities,Other Agencies - Third Party P,30117860,CARE WORLDWIDE (LONDON) LTD," 3,936.46 ",12/04/2016
Delivery Units,Adults and Communities,Other Agencies - Third Party P,30117861,CARE WORLDWIDE (LONDON) LTD," 4,246.53 ",12/04/2016
Delivery Units,Adults and Communities,Other Agencies - Third Party P,30117863,CARE WORLDWIDE (LONDON) LTD," 4,400.13 ",12/04/2016
Delivery Units,Adults and Communities,Other Agencies - Third Party P,30113103,CAREBASE BURNT OAK 2006 LIMITED," 10,536.53 ",04/04/2016
Delivery Units,Adults and Communities,Other Agencies - Third Party P,30117648,CARETECH COMMUNITY SERVICES LTD, 475.27 ,11/04/2016
Delivery Units,Adults and Communities,Other Agencies - Third Party P,30117653,CARETECH COMMUNITY SERVICES LTD, 816.14 ,11/04/2016
Delivery Units,Adults and Communities,Other Agencies - Third Party P,30117672,CARETECH COMMUNITY SERVICES LTD, 919.15 ,11/04/2016
Delivery Units,Adults and Communities,Other Agencies - Third Party P,30117659,CARETECH COMMUNITY SERVICES LTD," 1,088.14 ",11/04/2016
Delivery Units,Adults and Communities,Other Agencies - Third Party P,30117664,CARETECH COMMUNITY SERVICES LTD," 1,088.14 ",11/04/2016
Delivery Units,Adults and Communities,Other Agencies - Third Party P,30117667,CARETECH COMMUNITY SERVICES LTD," 1,088.14 ",11/04/2016
Delivery Units,Adults and Communities,Other Agencies - Third Party P,30117670,CARETECH COMMUNITY SERVICES LTD," 1,527.86 ",11/04/2016
Delivery Units,Adults and Communities,Other Agencies - Third Party P,30117649,CARETECH COMMUNITY SERVICES LTD," 4,627.86 ",11/04/2016
Delivery Units,Adults and Communities,Other Agencies - Third Party P,30117654,CARETECH COMMUNITY SERVICES LTD," 4,627.86 ",11/04/2016
Delivery Units,Adults and Communities,Other Agencies - Third Party P,30117657,CARETECH COMMUNITY SERVICES LTD," 4,627.86 ",11/04/2016
Delivery Units,Adults and Communities,Other Agencies - Third Party P,30117668,CARETECH COMMUNITY SERVICES LTD," 4,627.86 ",11/04/2016
Delivery Units,Adults and Communities,Other Agencies - Third Party P,30117650,CARETECH COMMUNITY SERVICES LTD," 4,646.55 ",11/04/2016
Delivery Units,Adults and Communities,Other Agencies - Third Party P,30117669,CARETECH COMMUNITY SERVICES LTD," 4,782.86 ",11/04/2016
Delivery Units,Adults and Communities,Other Agencies - Third Party P,30120282,CARETECH COMMUNITY SERVICES LTD," 2,149.94 ",29/04/2016
Delivery Units,Adults and Communities,Other Agencies - Third Party P,30120280,CARETECH COMMUNITY SERVICES LTD," 2,589.74 ",29/04/2016
Delivery Units,Adults and Communities,Other Agencies - Third Party P,30120279,CARETECH COMMUNITY SERVICES LTD," 7,621.57 ",29/04/2016
Delivery Units,Adults and Communities,Other Agencies - Third Party P,30117300,CARLTON COURT (TLC GROUP)," 2,249.45 ",11/04/2016
Delivery Units,Adults and Communities,Other Agencies - Third Party P,30117301,CARLTON COURT (TLC GROUP)," 2,249.45 ",11/04/2016
Delivery Units,Adults and Communities,Other Agencies - Third Party P,30117310,CARLTON COURT (TLC GROUP)," 2,397.72 ",11/04/2016
Delivery Units,Adults and Communities,Other Agencies - Third Party P,30117306,CARLTON COURT (TLC GROUP)," 2,397.72 ",11/04/2016
Delivery Units,Adults and Communities,Other Agencies - Third Party P,30117299,CARLTON COURT (TLC GROUP)," 2,448.78 ",11/04/2016
Delivery Units,Adults and Communities,Other Agencies - Third Party P,30117312,CARLTON COURT (TLC GROUP)," 2,448.78 ",11/04/2016
Delivery Units,Adults and Communities,Other Agencies - Third Party P,30117302,CARLTON COURT (TLC GROUP)," 2,655.55 ",11/04/2016
Delivery Units,Adults and Communities,Other Agencies - Third Party P,30117307,CARLTON COURT (TLC GROUP)," 2,655.55 ",11/04/2016
Delivery Units,Adults and Communities,Other Agencies - Third Party P,30117309,CARLTON COURT (TLC GROUP)," 2,655.55 ",11/04/2016
Delivery Units,Adults and Communities,Other Agencies - Third Party P,30117313,CARLTON COURT (TLC GROUP)," 2,655.55 ",11/04/2016
Delivery Units,Adults and Communities,Other Agencies - Third Party P,30117303,CARLTON COURT (TLC GROUP)," 2,655.55 ",11/04/2016
Delivery Units,Adults and Communities,Other Agencies - Third Party P,30117305,CARLTON COURT (TLC GROUP)," 2,655.55 ",11/04/2016
Delivery Units,Adults and Communities,Other Agencies - Third Party P,30117308,CARLTON COURT (TLC GROUP)," 3,720.93 ",11/04/2016
Delivery Units,Adults and Communities,Other Agencies - Third Party P,30117296,CARLTON COURT (TLC GROUP)," 3,764.29 ",11/04/2016
Delivery Units,Adults and Communities,Other Agencies - Third Party P,30117297,CARLTON COURT (TLC GROUP)," 4,428.57 ",11/04/2016
Delivery Units,Adults and Communities,Other Agencies - Third Party P,30118128,CARLTON COURT (TLC GROUP), 541.42 ,18/04/2016
Delivery Units,Adults and Communities,Other Agencies - Third Party P,30118129,CARLTON COURT (TLC GROUP), 599.64 ,18/04/2016
Delivery Units,Adults and Communities,Other Agencies - Third Party P,30118127,CARLTON COURT (TLC GROUP)," 2,243.03 ",18/04/2016
Delivery Units,Adults and Communities,Other Agencies - Third Party P,30118125,CARLTON COURT (TLC GROUP)," 2,340.04 ",18/04/2016
Delivery Units,Adults and Communities,Other Agencies - Third Party P,20029837,CARLTON COURT (TLC GROUP)," 2,418.04 ",27/04/2016
Delivery Units,Adults and Communities,Other Agencies - Third Party P,30120051,CARLTON COURT (TLC GROUP),-770.97 ,28/04/2016
Delivery Units,Adults and Communities,Other Agencies - Third Party P,30119886,CARLTON COURT (TLC GROUP),-428.31 ,28/04/2016
Delivery Units,Adults and Communities,Other Agencies - Third Party P,30120035,CARLTON COURT (TLC GROUP)," 2,176.89 ",28/04/2016
Delivery Units,Adults and Communities,Other Agencies - Third Party P,30120037,CARLTON COURT (TLC GROUP)," 2,176.89 ",28/04/2016
Delivery Units,Adults and Communities,Other Agencies - Third Party P,30120046,CARLTON COURT (TLC GROUP)," 2,320.37 ",28/04/2016
Delivery Units,Adults and Communities,Other Agencies - Third Party P,30120042,CARLTON COURT (TLC GROUP)," 2,320.37 ",28/04/2016
Delivery Units,Adults and Communities,Other Agencies - Third Party P,30120034,CARLTON COURT (TLC GROUP)," 2,369.79 ",28/04/2016
Delivery Units,Adults and Communities,Other Agencies - Third Party P,30120048,CARLTON COURT (TLC GROUP)," 2,369.79 ",28/04/2016
Delivery Units,Adults and Communities,Other Agencies - Third Party P,30120036,CARLTON COURT (TLC GROUP)," 2,569.89 ",28/04/2016
Delivery Units,Adults and Communities,Other Agencies - Third Party P,30120038,CARLTON COURT (TLC GROUP)," 2,569.89 ",28/04/2016
Delivery Units,Adults and Communities,Other Agencies - Third Party P,30120043,CARLTON COURT (TLC GROUP)," 2,569.89 ",28/04/2016
Delivery Units,Adults and Communities,Other Agencies - Third Party P,30120045,CARLTON COURT (TLC GROUP)," 2,569.89 ",28/04/2016
Delivery Units,Adults and Communities,Other Agencies - Third Party P,30120039,CARLTON COURT (TLC GROUP)," 2,569.89 ",28/04/2016
Delivery Units,Adults and Communities,Other Agencies - Third Party P,30120041,CARLTON COURT (TLC GROUP)," 2,569.89 ",28/04/2016
Delivery Units,Adults and Communities,Other Agencies - Third Party P,30119885,CARLTON COURT (TLC GROUP)," 2,655.55 ",28/04/2016
Delivery Units,Adults and Communities,Other Agencies - Third Party P,30120049,CARLTON COURT (TLC GROUP)," 3,571.43 ",28/04/2016
Delivery Units,Adults and Communities,Other Agencies - Third Party P,30120044,CARLTON COURT (TLC GROUP)," 3,600.90 ",28/04/2016
Delivery Units,Adults and Communities,Other Agencies - Third Party P,30120032,CARLTON COURT (TLC GROUP)," 3,642.86 ",28/04/2016
Delivery Units,Adults and Communities,Other Agencies - Third Party P,30120050,CARLTON COURT (TLC GROUP)," 4,285.71 ",28/04/2016
Delivery Units,Adults and Communities,Other Agencies - Third Party P,30120033,CARLTON COURT (TLC GROUP)," 4,285.71 ",28/04/2016
Delivery Units,Adults and Communities,Other Agencies - Third Party P,30120109,CARMEN LODGE RESIDENTIAL HOME," 2,651.10 ",28/04/2016
Delivery Units,Adults and Communities,Other Agencies - Third Party P,30119468,CARTREF CARE HOME," 11,029.55 ",25/04/2016
Delivery Units,Adults and Communities,Other Agencies - Third Party P,30117838,CDR CARE LTD, 700.00 ,12/04/2016
Delivery Units,Adults and Communities,Other Agencies - Third Party P,30117837,CDR CARE LTD, 800.00 ,12/04/2016
Delivery Units,Adults and Communities,Other Agencies - Third Party P,30117839,CDR CARE LTD, 800.00 ,12/04/2016
Delivery Units,Adults and Communities,Other Agencies - Third Party P,30119821,CDR CARE LTD," 1,800.00 ",28/04/2016
Delivery Units,Adults and Communities,Other Agencies - Third Party P,30119822,CDR CARE LTD," 1,800.00 ",28/04/2016
Delivery Units,Adults and Communities,Other Agencies - Third Party P,30117467,CEDARS NURSING HOME," 2,314.02 ",11/04/2016
Delivery Units,Adults and Communities,Other Agencies - Third Party P,30117465,CEDARS NURSING HOME," 2,353.25 ",11/04/2016
Delivery Units,Adults and Communities,Other Agencies - Third Party P,30117469,CEDARS NURSING HOME," 2,353.25 ",11/04/2016
Delivery Units,Adults and Communities,Other Agencies - Third Party P,30117464,CEDARS NURSING HOME," 2,565.78 ",11/04/2016
Delivery Units,Adults and Communities,Other Agencies - Third Party P,30117463,CEDARS NURSING HOME," 2,565.78 ",11/04/2016
Delivery Units,Adults and Communities,Other Agencies - Third Party P,30117466,CEDARS NURSING HOME," 2,565.78 ",11/04/2016
Delivery Units,Adults and Communities,Other Agencies - Third Party P,30117468,CEDARS NURSING HOME," 2,565.78 ",11/04/2016
Delivery Units,Adults and Communities,Other Agencies - Third Party P,30118197,CEDARS NURSING HOME," 2,483.01 ",18/04/2016
Delivery Units,Adults and Communities,Other Agencies - Third Party P,30118324,CENTRAL MIDDLESEX SKILLS, 723.68 ,20/04/2016
Delivery Units,Adults and Communities,Other Agencies - Third Party P,30118323,CENTRAL MIDDLESEX SKILLS," 1,175.98 ",20/04/2016
Delivery Units,Adults and Communities,Other Agencies - Third Party P,30118865,CHEQUERS TRANSPORT LIMITED, 161.04 ,21/04/2016
Delivery Units,Adults and Communities,Other Agencies - Third Party P,30118864,CHEQUERS TRANSPORT LIMITED, 491.00 ,21/04/2016
Delivery Units,Adults and Communities,Other Agencies - Third Party P,30117987,CLARE HOUSE NURSING HOME," 2,094.52 ",13/04/2016
Delivery Units,Adults and Communities,Other Agencies - Third Party P,30120093,CLARE HOUSE NURSING HOME," 2,094.52 ",28/04/2016
Delivery Units,Adults and Communities,Other Agencies - Third Party P,30117475,CLEARWATER CARE (HACKNEY) LTD," 5,356.00 ",11/04/2016
Delivery Units,Adults and Communities,Other Agencies - Third Party P,30117476,CLEARWATER CARE (HACKNEY) LTD," 5,356.00 ",11/04/2016
Delivery Units,Adults and Communities,Other Agencies - Third Party P,30120138,CLEARWATER CARE (HACKNEY) LTD," 5,356.00 ",28/04/2016
Delivery Units,Adults and Communities,Other Agencies - Third Party P,30120267,CLEARWATER CARE (HACKNEY) LTD," 5,356.00 ",29/04/2016
Delivery Units,Adults and Communities,Other Agencies - Third Party P,30117137,CLOVELLY HOUSE RESID. HOME LTD," 1,900.40 ",06/04/2016
Delivery Units,Adults and Communities,Other Agencies - Third Party P,30117136,CLOVELLY HOUSE RESID. HOME LTD," 2,211.80 ",06/04/2016
Delivery Units,Adults and Communities,Other Agencies - Third Party P,30117140,CLOVELLY HOUSE RESID. HOME LTD," 2,211.80 ",06/04/2016
Delivery Units,Adults and Communities,Other Agencies - Third Party P,30117139,CLOVELLY HOUSE RESID. HOME LTD," 2,211.80 ",06/04/2016
Delivery Units,Adults and Communities,Other Agencies - Third Party P,30117134,CLOVELLY HOUSE RESID. HOME LTD," 2,600.00 ",06/04/2016
Delivery Units,Adults and Communities,Other Agencies - Third Party P,30117135,CLOVELLY HOUSE RESID. HOME LTD," 2,600.00 ",06/04/2016
Delivery Units,Adults and Communities,Other Agencies - Third Party P,30117138,CLOVELLY HOUSE RESID. HOME LTD," 2,600.00 ",06/04/2016
Delivery Units,Adults and Communities,Other Agencies - Third Party P,30118081,CLOVELLY HOUSE RESID. HOME LTD," 1,900.40 ",18/04/2016
Delivery Units,Adults and Communities,Other Agencies - Third Party P,30118084,CLOVELLY HOUSE RESID. HOME LTD," 2,211.80 ",18/04/2016
Delivery Units,Adults and Communities,Other Agencies - Third Party P,30118086,CLOVELLY HOUSE RESID. HOME LTD," 2,211.80 ",18/04/2016
Delivery Units,Adults and Communities,Other Agencies - Third Party P,30118080,CLOVELLY HOUSE RESID. HOME LTD," 2,211.80 ",18/04/2016
Delivery Units,Adults and Communities,Other Agencies - Third Party P,30118082,CLOVELLY HOUSE RESID. HOME LTD," 2,448.78 ",18/04/2016
Delivery Units,Adults and Communities,Other Agencies - Third Party P,30118079,CLOVELLY HOUSE RESID. HOME LTD," 2,600.00 ",18/04/2016
Delivery Units,Adults and Communities,Other Agencies - Third Party P,30118083,CLOVELLY HOUSE RESID. HOME LTD," 2,600.00 ",18/04/2016
Delivery Units,Adults and Communities,Other Agencies - Third Party P,30118085,CLOVELLY HOUSE RESID. HOME LTD," 2,600.00 ",18/04/2016
Delivery Units,Adults and Communities,Other Agencies - Third Party P,30117740,CMG HOMES LTD," 3,086.84 ",11/04/2016
Delivery Units,Adults and Communities,Other Agencies - Third Party P,30117319,COMPLETE CARE SERVICES LTD," 5,426.86 ",11/04/2016
Delivery Units,Adults and Communities,Other Agencies - Third Party P,30118429,COOPERSCROFT CARE HOME," 1,015.88 ",21/04/2016
Delivery Units,Adults and Communities,Other Agencies - Third Party P,30119627,CORE PROSPECTS," 1,887.50 ",26/04/2016
Delivery Units,Adults and Communities,Other Agencies - Third Party P,30120017,CRANSTOUN DRUG SERVICES," 1,639.29 ",28/04/2016
Delivery Units,Adults and Communities,Other Agencies - Third Party P,30117247,DANA CARE LIMITED," 9,902.29 ",08/04/2016
Delivery Units,Adults and Communities,Other Agencies - Third Party P,30117702,DANA CARE LIMITED," 9,263.43 ",11/04/2016
Delivery Units,Adults and Communities,Other Agencies - Third Party P,30118486,DELAMER HOUSE," 3,850.00 ",21/04/2016
Delivery Units,Adults and Communities,Other Agencies - Third Party P,30118406,DEVELOPMENT AND LEARNING OPPORTUNIT, 652.40 ,20/04/2016
Delivery Units,Adults and Communities,Other Agencies - Third Party P,30120024,DILLON CARE LTD," 3,900.00 ",28/04/2016
Delivery Units,Adults and Communities,Other Agencies - Third Party P,30120025,DILLON CARE LTD," 3,900.00 ",28/04/2016
Delivery Units,Adults and Communities,Other Agencies - Third Party P,30117065,DIMENSIONS UK, 74.80 ,06/04/2016
Delivery Units,Adults and Communities,Other Agencies - Third Party P,30117066,DIMENSIONS UK, 74.80 ,06/04/2016
Delivery Units,Adults and Communities,Other Agencies - Third Party P,30117067,DIMENSIONS UK, 74.80 ,06/04/2016
Delivery Units,Adults and Communities,Other Agencies - Third Party P,30117072,DIMENSIONS UK, 74.80 ,06/04/2016
Delivery Units,Adults and Communities,Other Agencies - Third Party P,30117073,DIMENSIONS UK, 74.80 ,06/04/2016
Delivery Units,Adults and Communities,Other Agencies - Third Party P,30117081,DIMENSIONS UK, 112.20 ,06/04/2016
Delivery Units,Adults and Communities,Other Agencies - Third Party P,30117080,DIMENSIONS UK, 149.60 ,06/04/2016
Delivery Units,Adults and Communities,Other Agencies - Third Party P,30117060,DIMENSIONS UK, 149.60 ,06/04/2016
Delivery Units,Adults and Communities,Other Agencies - Third Party P,30117063,DIMENSIONS UK, 149.60 ,06/04/2016
Delivery Units,Adults and Communities,Other Agencies - Third Party P,30117064,DIMENSIONS UK, 149.60 ,06/04/2016
Delivery Units,Adults and Communities,Other Agencies - Third Party P,30117068,DIMENSIONS UK, 149.60 ,06/04/2016
Delivery Units,Adults and Communities,Other Agencies - Third Party P,30117069,DIMENSIONS UK, 149.60 ,06/04/2016
Delivery Units,Adults and Communities,Other Agencies - Third Party P,30117070,DIMENSIONS UK, 149.60 ,06/04/2016
Delivery Units,Adults and Communities,Other Agencies - Third Party P,30117071,DIMENSIONS UK, 149.60 ,06/04/2016
Delivery Units,Adults and Communities,Other Agencies - Third Party P,30117078,DIMENSIONS UK, 149.60 ,06/04/2016
Delivery Units,Adults and Communities,Other Agencies - Third Party P,30117082,DIMENSIONS UK, 149.60 ,06/04/2016
Delivery Units,Adults and Communities,Other Agencies - Third Party P,30117083,DIMENSIONS UK, 149.60 ,06/04/2016
Delivery Units,Adults and Communities,Other Agencies - Third Party P,30117084,DIMENSIONS UK, 149.60 ,06/04/2016
Delivery Units,Adults and Communities,Other Agencies - Third Party P,30117061,DIMENSIONS UK, 149.60 ,06/04/2016
Delivery Units,Adults and Communities,Other Agencies - Third Party P,30117062,DIMENSIONS UK, 224.40 ,06/04/2016
Delivery Units,Adults and Communities,Other Agencies - Third Party P,30117076,DIMENSIONS UK, 224.40 ,06/04/2016
Delivery Units,Adults and Communities,Other Agencies - Third Party P,30117075,DIMENSIONS UK, 299.20 ,06/04/2016
Delivery Units,Adults and Communities,Other Agencies - Third Party P,30117077,DIMENSIONS UK, 299.20 ,06/04/2016
Delivery Units,Adults and Communities,Other Agencies - Third Party P,30117079,DIMENSIONS UK, 448.80 ,06/04/2016
Delivery Units,Adults and Communities,Other Agencies - Third Party P,30117074,DIMENSIONS UK, 523.60 ,06/04/2016
Delivery Units,Adults and Communities,Other Agencies - Third Party P,30117643,DIMENSIONS UK, 154.98 ,11/04/2016
Delivery Units,Adults and Communities,Other Agencies - Third Party P,30117642,DIMENSIONS UK, 309.96 ,11/04/2016
Delivery Units,Adults and Communities,Other Agencies - Third Party P,30117819,DIMENSIONS UK," 1,541.00 ",11/04/2016
Delivery Units,Adults and Communities,Other Agencies - Third Party P,30117639,DIMENSIONS UK," 4,495.76 ",11/04/2016
Delivery Units,Adults and Communities,Other Agencies - Third Party P,30117640,DIMENSIONS UK," 4,495.76 ",11/04/2016
Delivery Units,Adults and Communities,Other Agencies - Third Party P,30117816,DIMENSIONS UK," 7,950.68 ",11/04/2016
Delivery Units,Adults and Communities,Other Agencies - Third Party P,30117916,DIMENSIONS UK," 2,128.00 ",12/04/2016
Delivery Units,Adults and Communities,Other Agencies - Third Party P,30120020,DIMENSIONS UK, 154.98 ,28/04/2016
Delivery Units,Adults and Communities,Other Agencies - Third Party P,30120022,DIMENSIONS UK, 279.72 ,28/04/2016
Delivery Units,Adults and Communities,Other Agencies - Third Party P,30120019,DIMENSIONS UK, 309.96 ,28/04/2016
Delivery Units,Adults and Communities,Other Agencies - Third Party P,30120021,DIMENSIONS UK, 309.96 ,28/04/2016
Delivery Units,Adults and Communities,Other Agencies - Third Party P,30120023,DIMENSIONS UK, 419.58 ,28/04/2016
Delivery Units,Adults and Communities,Other Agencies - Third Party P,30117193,DOWNLANDS CARE LTD," 1,609.68 ",08/04/2016
Delivery Units,Adults and Communities,Other Agencies - Third Party P,30117194,DOWNLANDS CARE LTD," 2,040.05 ",08/04/2016
Delivery Units,Adults and Communities,Other Agencies - Third Party P,30120125,DOWNLANDS CARE LTD," 2,078.82 ",28/04/2016
Delivery Units,Adults and Communities,Other Agencies - Third Party P,30117989,DR FRENCH MEMORIAL HOME LTD, 710.94 ,13/04/2016
Delivery Units,Adults and Communities,Other Agencies - Third Party P,30120137,DR FRENCH MEMORIAL HOME LTD, 552.95 ,28/04/2016
Delivery Units,Adults and Communities,Other Agencies - Third Party P,30120266,DR FRENCH MEMORIAL HOME LTD," 1,658.85 ",29/04/2016
Delivery Units,Adults and Communities,Other Agencies - Third Party P,30119974,DYNAMIC PEOPLE LTD, 120.00 ,28/04/2016
Delivery Units,Adults and Communities,Other Agencies - Third Party P,30119590,EAST SUSSEX COUNTY COUNCIL, 183.30 ,27/04/2016
Delivery Units,Adults and Communities,Other Agencies - Third Party P,30119593,EAST SUSSEX COUNTY COUNCIL, 183.30 ,27/04/2016
Delivery Units,Adults and Communities,Other Agencies - Third Party P,30119595,EAST SUSSEX COUNTY COUNCIL, 183.30 ,27/04/2016
Delivery Units,Adults and Communities,Other Agencies - Third Party P,30119589,EAST SUSSEX COUNTY COUNCIL, 244.40 ,27/04/2016
Delivery Units,Adults and Communities,Other Agencies - Third Party P,30119591,EAST SUSSEX COUNTY COUNCIL, 244.40 ,27/04/2016
Delivery Units,Adults and Communities,Other Agencies - Third Party P,30119592,EAST SUSSEX COUNTY COUNCIL, 244.40 ,27/04/2016
Delivery Units,Adults and Communities,Other Agencies - Third Party P,30119596,EAST SUSSEX COUNTY COUNCIL, 305.50 ,27/04/2016
Delivery Units,Adults and Communities,Other Agencies - Third Party P,30119594,EAST SUSSEX COUNTY COUNCIL, 427.70 ,27/04/2016
Delivery Units,Adults and Communities,Other Agencies - Third Party P,30119597,EAST SUSSEX COUNTY COUNCIL, 244.40 ,28/04/2016
Delivery Units,Adults and Communities,Other Agencies - Third Party P,30119598,EAST SUSSEX COUNTY COUNCIL, 305.50 ,28/04/2016
Delivery Units,Adults and Communities,Other Agencies - Third Party P,30120030,EASTSIDE HOUSE RESIDENTIAL CARE HOM," 2,031.76 ",29/04/2016
Delivery Units,Adults and Communities,Other Agencies - Third Party P,30120031,EASTSIDE HOUSE RESIDENTIAL CARE HOM," 6,635.40 ",29/04/2016
Delivery Units,Adults and Communities,Other Agencies - Third Party P,30120260,ELEANOR PALMER TRUST NO 2 A/C., 552.95 ,29/04/2016
Delivery Units,Adults and Communities,Other Agencies - Third Party P,30117854,ELIZA HOUSE," 2,290.79 ",12/04/2016
Delivery Units,Adults and Communities,Other Agencies - Third Party P,30117856,ELIZA HOUSE," 2,369.78 ",12/04/2016
Delivery Units,Adults and Communities,Other Agencies - Third Party P,30117851,ELIZA HOUSE," 2,448.78 ",12/04/2016
Delivery Units,Adults and Communities,Other Agencies - Third Party P,30117853,ELIZA HOUSE," 2,448.78 ",12/04/2016
Delivery Units,Adults and Communities,Other Agencies - Third Party P,30117855,ELIZA HOUSE," 2,448.78 ",12/04/2016
Delivery Units,Adults and Communities,Other Agencies - Third Party P,30118487,ELIZABETH HOUSE," 2,448.78 ",21/04/2016
Delivery Units,Adults and Communities,Other Agencies - Third Party P,30117629,ELM PARK LODGE, 327.86 ,11/04/2016
Delivery Units,Adults and Communities,Other Agencies - Third Party P,30117561,ELM PARK LODGE," 2,103.31 ",11/04/2016
Delivery Units,Adults and Communities,Other Agencies - Third Party P,30117572,ELM PARK LODGE," 2,161.85 ",11/04/2016
Delivery Units,Adults and Communities,Other Agencies - Third Party P,30117707,ELM PARK LODGE," 3,170.86 ",11/04/2016
Delivery Units,Adults and Communities,Other Agencies - Third Party P,30117592,ELM PARK LODGE," 3,210.71 ",11/04/2016
Delivery Units,Adults and Communities,Other Agencies - Third Party P,30117445,ELM PARK LODGE," 3,299.29 ",11/04/2016
Delivery Units,Adults and Communities,Other Agencies - Third Party P,30117625,ELM PARK LODGE," 3,432.14 ",11/04/2016
Delivery Units,Adults and Communities,Other Agencies - Third Party P,30117570,ELM PARK LODGE," 3,432.14 ",11/04/2016
Delivery Units,Adults and Communities,Other Agencies - Third Party P,30117630,ELM PARK LODGE," 3,432.14 ",11/04/2016
Delivery Units,Adults and Communities,Other Agencies - Third Party P,30117560,ELM PARK LODGE," 3,441.00 ",11/04/2016
Delivery Units,Adults and Communities,Other Agencies - Third Party P,30117685,ELM PARK LODGE," 3,455.61 ",11/04/2016
Delivery Units,Adults and Communities,Other Agencies - Third Party P,30117471,ELM PARK LODGE," 3,484.80 ",11/04/2016
Delivery Units,Adults and Communities,Other Agencies - Third Party P,30117470,ELM PARK LODGE," 3,520.71 ",11/04/2016
Delivery Units,Adults and Communities,Other Agencies - Third Party P,20029556,ELM PARK LODGE," 3,520.71 ",20/04/2016
Delivery Units,Adults and Communities,Other Agencies - Third Party P,30118049,ELMHURST RESIDENTIAL HOME," 9,750.00 ",18/04/2016
Delivery Units,Adults and Communities,Other Agencies - Third Party P,30118052,ELMHURST RESIDENTIAL HOME," 12,037.64 ",18/04/2016
Delivery Units,Adults and Communities,Other Agencies - Third Party P,30118053,ELMHURST RESIDENTIAL HOME," 12,037.64 ",18/04/2016
Delivery Units,Adults and Communities,Other Agencies - Third Party P,30118054,ELMHURST RESIDENTIAL HOME," 12,037.64 ",18/04/2016
Delivery Units,Adults and Communities,Other Agencies - Third Party P,30118056,ELMHURST RESIDENTIAL HOME," 12,037.64 ",18/04/2016
Delivery Units,Adults and Communities,Other Agencies - Third Party P,30118058,ELMHURST RESIDENTIAL HOME," 12,037.64 ",18/04/2016
Delivery Units,Adults and Communities,Other Agencies - Third Party P,30118055,ELMHURST RESIDENTIAL HOME," 12,037.64 ",18/04/2016
Delivery Units,Adults and Communities,Other Agencies - Third Party P,30118124,ELMHURST RESIDENTIAL HOME," 12,485.71 ",18/04/2016
Delivery Units,Adults and Communities,Other Agencies - Third Party P,30118057,ELMHURST RESIDENTIAL HOME," 12,651.92 ",18/04/2016
Delivery Units,Adults and Communities,Other Agencies - Third Party P,30118051,ELMHURST RESIDENTIAL HOME," 13,028.57 ",18/04/2016
Delivery Units,Adults and Communities,Other Agencies - Third Party P,30118123,ELMHURST RESIDENTIAL HOME," 14,578.57 ",18/04/2016
Delivery Units,Adults and Communities,Other Agencies - Third Party P,30118521,EMPOWERING LIVES LTD," 9,849.00 ",21/04/2016
Delivery Units,Adults and Communities,Other Agencies - Third Party P,30119625,ENABLE U SENSORY SUPPORT LTD, 240.00 ,26/04/2016
Delivery Units,Adults and Communities,Other Agencies - Third Party P,30117207,FERNBANK NURSING HOME.," 2,397.54 ",08/04/2016
Delivery Units,Adults and Communities,Other Agencies - Third Party P,30117394,FERNBANK NURSING HOME.," 1,392.12 ",11/04/2016
Delivery Units,Adults and Communities,Other Agencies - Third Party P,30117388,FERNBANK NURSING HOME.," 2,397.54 ",11/04/2016
Delivery Units,Adults and Communities,Other Agencies - Third Party P,30117390,FERNBANK NURSING HOME.," 2,397.54 ",11/04/2016
Delivery Units,Adults and Communities,Other Agencies - Third Party P,30117391,FERNBANK NURSING HOME.," 2,397.54 ",11/04/2016
Delivery Units,Adults and Communities,Other Agencies - Third Party P,30117392,FERNBANK NURSING HOME.," 2,397.54 ",11/04/2016
Delivery Units,Adults and Communities,Other Agencies - Third Party P,30117393,FERNBANK NURSING HOME.," 2,397.54 ",11/04/2016
Delivery Units,Adults and Communities,Other Agencies - Third Party P,30117389,FERNBANK NURSING HOME.," 2,655.46 ",11/04/2016
Delivery Units,Adults and Communities,Other Agencies - Third Party P,30117874,FERNBANK NURSING HOME.," 1,027.92 ",12/04/2016
Delivery Units,Adults and Communities,Other Agencies - Third Party P,30117384,FINBOND LIMITED," 2,216.41 ",11/04/2016
Delivery Units,Adults and Communities,Other Agencies - Third Party P,30117382,FINBOND LIMITED," 2,418.04 ",11/04/2016
Delivery Units,Adults and Communities,Other Agencies - Third Party P,30117385,FINBOND LIMITED," 2,431.29 ",11/04/2016
Delivery Units,Adults and Communities,Other Agencies - Third Party P,30117383,FINBOND LIMITED," 2,657.14 ",11/04/2016
Delivery Units,Adults and Communities,Other Agencies - Third Party P,30117593,FLAGSWAN TWO LTD," 2,382.14 ",11/04/2016
Delivery Units,Adults and Communities,Other Agencies - Third Party P,30118104,FLAGSWAN TWO LTD," 2,546.43 ",18/04/2016
Delivery Units,Adults and Communities,Other Agencies - Third Party P,30118709,FLEXSERVE RESOURCE LTD, 212.50 ,21/04/2016
Delivery Units,Adults and Communities,Other Agencies - Third Party P,30118802,FLEXSERVE RESOURCE LTD, 356.25 ,21/04/2016
Delivery Units,Adults and Communities,Other Agencies - Third Party P,30118706,FLEXSERVE RESOURCE LTD, 696.83 ,21/04/2016
Delivery Units,Adults and Communities,Other Agencies - Third Party P,30118708,FLEXSERVE RESOURCE LTD, 824.70 ,21/04/2016
Delivery Units,Adults and Communities,Other Agencies - Third Party P,30118707,FLEXSERVE RESOURCE LTD," 1,447.82 ",21/04/2016
Delivery Units,Adults and Communities,Other Agencies - Third Party P,30118801,FLEXSERVE RESOURCE LTD," 1,452.62 ",21/04/2016
Delivery Units,Adults and Communities,Other Agencies - Third Party P,30118800,FLEXSERVE RESOURCE LTD," 2,682.69 ",21/04/2016
Delivery Units,Adults and Communities,Other Agencies - Third Party P,30118705,FLEXSERVE RESOURCE LTD," 2,820.94 ",21/04/2016
Delivery Units,Adults and Communities,Other Agencies - Third Party P,30117230,FOUR SEASONS HEALTH CARE," 2,123.48 ",08/04/2016
Delivery Units,Adults and Communities,Other Agencies - Third Party P,30117229,FOUR SEASONS HEALTH CARE," 2,123.48 ",08/04/2016
Delivery Units,Adults and Communities,Other Agencies - Third Party P,30117227,FOUR SEASONS HEALTH CARE," 2,165.68 ",08/04/2016
Delivery Units,Adults and Communities,Other Agencies - Third Party P,30117228,FOUR SEASONS HEALTH CARE," 2,165.68 ",08/04/2016
Delivery Units,Adults and Communities,Other Agencies - Third Party P,30117233,FOUR SEASONS HEALTH CARE," 2,165.68 ",08/04/2016
Delivery Units,Adults and Communities,Other Agencies - Third Party P,30117234,FOUR SEASONS HEALTH CARE," 2,165.68 ",08/04/2016
Delivery Units,Adults and Communities,Other Agencies - Third Party P,30117235,FOUR SEASONS HEALTH CARE," 2,165.68 ",08/04/2016
Delivery Units,Adults and Communities,Other Agencies - Third Party P,30117236,FOUR SEASONS HEALTH CARE," 2,165.68 ",08/04/2016
Delivery Units,Adults and Communities,Other Agencies - Third Party P,30117239,FOUR SEASONS HEALTH CARE," 2,165.68 ",08/04/2016
Delivery Units,Adults and Communities,Other Agencies - Third Party P,30117240,FOUR SEASONS HEALTH CARE," 2,165.68 ",08/04/2016
Delivery Units,Adults and Communities,Other Agencies - Third Party P,30117237,FOUR SEASONS HEALTH CARE," 2,321.92 ",08/04/2016
Delivery Units,Adults and Communities,Other Agencies - Third Party P,30117238,FOUR SEASONS HEALTH CARE," 2,321.92 ",08/04/2016
Delivery Units,Adults and Communities,Other Agencies - Third Party P,30117231,FOUR SEASONS HEALTH CARE," 2,398.56 ",08/04/2016
Delivery Units,Adults and Communities,Other Agencies - Third Party P,30117232,FOUR SEASONS HEALTH CARE," 2,398.56 ",08/04/2016
Delivery Units,Adults and Communities,Other Agencies - Third Party P,30117226,FOUR SEASONS HEALTH CARE," 2,443.32 ",08/04/2016
Delivery Units,Adults and Communities,Other Agencies - Third Party P,30118005,FOUR SEASONS HEALTH CARE," 2,123.48 ",13/04/2016
Delivery Units,Adults and Communities,Other Agencies - Third Party P,30118004,FOUR SEASONS HEALTH CARE," 2,123.48 ",13/04/2016
Delivery Units,Adults and Communities,Other Agencies - Third Party P,30118002,FOUR SEASONS HEALTH CARE," 2,165.68 ",13/04/2016
Delivery Units,Adults and Communities,Other Agencies - Third Party P,30118003,FOUR SEASONS HEALTH CARE," 2,165.68 ",13/04/2016
Delivery Units,Adults and Communities,Other Agencies - Third Party P,30118009,FOUR SEASONS HEALTH CARE," 2,165.68 ",13/04/2016
Delivery Units,Adults and Communities,Other Agencies - Third Party P,30118010,FOUR SEASONS HEALTH CARE," 2,165.68 ",13/04/2016
Delivery Units,Adults and Communities,Other Agencies - Third Party P,30118013,FOUR SEASONS HEALTH CARE," 2,165.68 ",13/04/2016
Delivery Units,Adults and Communities,Other Agencies - Third Party P,30118014,FOUR SEASONS HEALTH CARE," 2,165.68 ",13/04/2016
Delivery Units,Adults and Communities,Other Agencies - Third Party P,30118008,FOUR SEASONS HEALTH CARE," 2,313.08 ",13/04/2016
Delivery Units,Adults and Communities,Other Agencies - Third Party P,30118011,FOUR SEASONS HEALTH CARE," 2,321.92 ",13/04/2016
Delivery Units,Adults and Communities,Other Agencies - Third Party P,30118012,FOUR SEASONS HEALTH CARE," 2,321.92 ",13/04/2016
Delivery Units,Adults and Communities,Other Agencies - Third Party P,30118006,FOUR SEASONS HEALTH CARE," 2,398.56 ",13/04/2016
Delivery Units,Adults and Communities,Other Agencies - Third Party P,30118007,FOUR SEASONS HEALTH CARE," 2,398.56 ",13/04/2016
Delivery Units,Adults and Communities,Other Agencies - Third Party P,30118001,FOUR SEASONS HEALTH CARE," 2,443.32 ",13/04/2016
Delivery Units,Adults and Communities,Other Agencies - Third Party P,30119488,FOUR SEASONS HEALTH CARE, 188.57 ,25/04/2016
Delivery Units,Adults and Communities,Other Agencies - Third Party P,30119489,FOUR SEASONS HEALTH CARE," 1,469.57 ",25/04/2016
Delivery Units,Adults and Communities,Other Agencies - Third Party P,30119490,FOUR SEASONS HEALTH CARE," 2,329.08 ",25/04/2016
Delivery Units,Adults and Communities,Other Agencies - Third Party P,30120111,FOUR SEASONS HEALTH CARE," 1,546.91 ",28/04/2016
Delivery Units,Adults and Communities,Other Agencies - Third Party P,30120112,FOUR SEASONS HEALTH CARE," 2,165.68 ",28/04/2016
Delivery Units,Adults and Communities,Other Agencies - Third Party P,30120113,FOUR SEASONS HEALTH CARE," 2,165.68 ",28/04/2016
Delivery Units,Adults and Communities,Other Agencies - Third Party P,30120273,FOUR SEASONS HEALTH CARE," 2,165.68 ",29/04/2016
Delivery Units,Adults and Communities,Other Agencies - Third Party P,30120274,FOUR SEASONS HEALTH CARE," 2,165.68 ",29/04/2016
Delivery Units,Adults and Communities,Other Agencies - Third Party P,30117201,FOUR SEASONS HEALTH CARE (NO.4) LTD," 2,004.00 ",08/04/2016
Delivery Units,Adults and Communities,Other Agencies - Third Party P,30117687,FREEWAYS TRUST LIMITED, 829.80 ,11/04/2016
Delivery Units,Adults and Communities,Other Agencies - Third Party P,30117584,FREMANTLE TRUST," 1,525.20 ",11/04/2016
Delivery Units,Adults and Communities,Other Agencies - Third Party P,30117585,FREMANTLE TRUST," 2,274.44 ",11/04/2016
Delivery Units,Adults and Communities,Other Agencies - Third Party P,30117444,FREMANTLE TRUST," 2,908.00 ",11/04/2016
Delivery Units,Adults and Communities,Other Agencies - Third Party P,30117586,FREMANTLE TRUST," 3,160.00 ",11/04/2016
Delivery Units,Adults and Communities,Other Agencies - Third Party P,30117347,FRIARY LODGE," 2,249.44 ",11/04/2016
Delivery Units,Adults and Communities,Other Agencies - Third Party P,30117346,FRIARY LODGE," 2,448.78 ",11/04/2016
Delivery Units,Adults and Communities,Other Agencies - Third Party P,30117364,FRIARY LODGE," 2,448.78 ",11/04/2016
Delivery Units,Adults and Communities,Other Agencies - Third Party P,30117379,FRIARY LODGE," 2,448.78 ",11/04/2016
Delivery Units,Adults and Communities,Other Agencies - Third Party P,30120056,FRIARY LODGE," 2,176.88 ",28/04/2016
Delivery Units,Adults and Communities,Other Agencies - Third Party P,30120055,FRIARY LODGE," 2,369.78 ",28/04/2016
Delivery Units,Adults and Communities,Other Agencies - Third Party P,30120057,FRIARY LODGE," 2,369.78 ",28/04/2016
Delivery Units,Adults and Communities,Other Agencies - Third Party P,30120059,FRIARY LODGE," 2,369.78 ",28/04/2016
Delivery Units,Adults and Communities,Other Agencies - Third Party P,30117449,FRIERN RESIDENTIAL CARE HOME," 1,967.61 ",11/04/2016
Delivery Units,Adults and Communities,Other Agencies - Third Party P,30117455,FRIERN RESIDENTIAL CARE HOME," 3,728.57 ",11/04/2016
Delivery Units,Adults and Communities,Other Agencies - Third Party P,30117962,GENTLE CARE, 222.32 ,13/04/2016
Delivery Units,Adults and Communities,Other Agencies - Third Party P,30117963,GENTLE CARE, 222.32 ,13/04/2016
Delivery Units,Adults and Communities,Other Agencies - Third Party P,30117961,GENTLE CARE, 246.14 ,13/04/2016
Delivery Units,Adults and Communities,Other Agencies - Third Party P,30117943,GENTLE CARE, 296.24 ,13/04/2016
Delivery Units,Adults and Communities,Other Agencies - Third Party P,30117944,GENTLE CARE, 296.24 ,13/04/2016
Delivery Units,Adults and Communities,Other Agencies - Third Party P,30117946,GENTLE CARE, 296.24 ,13/04/2016
Delivery Units,Adults and Communities,Other Agencies - Third Party P,30117947,GENTLE CARE, 296.24 ,13/04/2016
Delivery Units,Adults and Communities,Other Agencies - Third Party P,30117954,GENTLE CARE, 296.24 ,13/04/2016
Delivery Units,Adults and Communities,Other Agencies - Third Party P,30117955,GENTLE CARE, 296.24 ,13/04/2016
Delivery Units,Adults and Communities,Other Agencies - Third Party P,30117956,GENTLE CARE, 296.24 ,13/04/2016
Delivery Units,Adults and Communities,Other Agencies - Third Party P,30117959,GENTLE CARE, 296.24 ,13/04/2016
Delivery Units,Adults and Communities,Other Agencies - Third Party P,30117960,GENTLE CARE, 296.24 ,13/04/2016
Delivery Units,Adults and Communities,Other Agencies - Third Party P,30117952,GENTLE CARE, 306.82 ,13/04/2016
Delivery Units,Adults and Communities,Other Agencies - Third Party P,30117953,GENTLE CARE, 306.82 ,13/04/2016
Delivery Units,Adults and Communities,Other Agencies - Third Party P,30117957,GENTLE CARE, 306.82 ,13/04/2016
Delivery Units,Adults and Communities,Other Agencies - Third Party P,30117951,GENTLE CARE, 317.40 ,13/04/2016
Delivery Units,Adults and Communities,Other Agencies - Third Party P,30117945,GENTLE CARE, 327.98 ,13/04/2016
Delivery Units,Adults and Communities,Other Agencies - Third Party P,30118407,GENTLE HANDS CARE AGENCY, 544.95 ,20/04/2016
Delivery Units,Adults and Communities,Other Agencies - Third Party P,30118408,GENTLE HANDS CARE AGENCY, 916.60 ,20/04/2016
Delivery Units,Adults and Communities,Other Agencies - Third Party P,30118409,GENTLE HANDS CARE AGENCY, 931.00 ,20/04/2016
Delivery Units,Adults and Communities,Other Agencies - Third Party P,30118411,GENTLE HANDS CARE AGENCY, 932.30 ,20/04/2016
Delivery Units,Adults and Communities,Other Agencies - Third Party P,30118410,GENTLE HANDS CARE AGENCY, 958.40 ,20/04/2016
Delivery Units,Adults and Communities,Other Agencies - Third Party P,30118048,GLEBELANDS," 12,000.00 ",18/04/2016
Delivery Units,Adults and Communities,Other Agencies - Third Party P,30118500,GLENHOLME PSYCHIATRIC AFTER CARE HO," 3,728.99 ",21/04/2016
Delivery Units,Adults and Communities,Other Agencies - Third Party P,30118464,GLENHOLME PSYCHIATRIC AFTER CARE HO," 3,832.72 ",21/04/2016
Delivery Units,Adults and Communities,Other Agencies - Third Party P,30118518,GLENHOLME PSYCHIATRIC AFTER CARE HO," 3,935.71 ",21/04/2016
Delivery Units,Adults and Communities,Other Agencies - Third Party P,30118501,GLENHOLME PSYCHIATRIC AFTER CARE HO," 3,986.16 ",21/04/2016
Delivery Units,Adults and Communities,Other Agencies - Third Party P,30118465,GLENHOLME PSYCHIATRIC AFTER CARE HO," 4,097.05 ",21/04/2016
Delivery Units,Adults and Communities,Other Agencies - Third Party P,30118519,GLENHOLME PSYCHIATRIC AFTER CARE HO," 4,207.14 ",21/04/2016
Delivery Units,Adults and Communities,Other Agencies - Third Party P,30117142,HALLMARK CARE (KINGS LYNN) LTD," 2,890.31 ",06/04/2016
Delivery Units,Adults and Communities,Other Agencies - Third Party P,30117587,HARDEN," 4,343.12 ",11/04/2016
Delivery Units,Adults and Communities,Other Agencies - Third Party P,30117913,HARDEN," 4,343.12 ",12/04/2016
Delivery Units,Adults and Communities,Other Agencies - Third Party P,30120145,HARDEN," 4,343.12 ",28/04/2016
Delivery Units,Adults and Communities,Other Agencies - Third Party P,30116918,HARTLEY CENTRE," 4,069.80 ",06/04/2016
Delivery Units,Adults and Communities,Other Agencies - Third Party P,30116915,HARTLEY CENTRE," 5,997.60 ",06/04/2016
Delivery Units,Adults and Communities,Other Agencies - Third Party P,30116916,HARTLEY CENTRE," 5,997.60 ",06/04/2016
Delivery Units,Adults and Communities,Other Agencies - Third Party P,30116917,HARTLEY CENTRE," 5,997.60 ",06/04/2016
Delivery Units,Adults and Communities,Other Agencies - Third Party P,30116914,HARTLEY CENTRE," 7,344.00 ",06/04/2016
Delivery Units,Adults and Communities,Other Agencies - Third Party P,30120253,HARTWIG CARE LIMITED, 143.98 ,29/04/2016
Delivery Units,Adults and Communities,Other Agencies - Third Party P,30120241,HARTWIG CARE LIMITED, 203.19 ,29/04/2016
Delivery Units,Adults and Communities,Other Agencies - Third Party P,30120243,HARTWIG CARE LIMITED, 203.19 ,29/04/2016
Delivery Units,Adults and Communities,Other Agencies - Third Party P,30120245,HARTWIG CARE LIMITED, 203.19 ,29/04/2016
Delivery Units,Adults and Communities,Other Agencies - Third Party P,30120248,HARTWIG CARE LIMITED, 203.19 ,29/04/2016
Delivery Units,Adults and Communities,Other Agencies - Third Party P,30120250,HARTWIG CARE LIMITED, 203.19 ,29/04/2016
Delivery Units,Adults and Communities,Other Agencies - Third Party P,30120252,HARTWIG CARE LIMITED, 203.19 ,29/04/2016
Delivery Units,Adults and Communities,Other Agencies - Third Party P,30120254,HARTWIG CARE LIMITED, 203.19 ,29/04/2016
Delivery Units,Adults and Communities,Other Agencies - Third Party P,30120233,HARTWIG CARE LIMITED, 225.78 ,29/04/2016
Delivery Units,Adults and Communities,Other Agencies - Third Party P,30120234,HARTWIG CARE LIMITED, 225.78 ,29/04/2016
Delivery Units,Adults and Communities,Other Agencies - Third Party P,30120235,HARTWIG CARE LIMITED, 225.78 ,29/04/2016
Delivery Units,Adults and Communities,Other Agencies - Third Party P,30120239,HARTWIG CARE LIMITED, 225.78 ,29/04/2016
Delivery Units,Adults and Communities,Other Agencies - Third Party P,30120249,HARTWIG CARE LIMITED, 225.78 ,29/04/2016
Delivery Units,Adults and Communities,Other Agencies - Third Party P,30120251,HARTWIG CARE LIMITED, 225.78 ,29/04/2016
Delivery Units,Adults and Communities,Other Agencies - Third Party P,30120236,HARTWIG CARE LIMITED, 257.11 ,29/04/2016
Delivery Units,Adults and Communities,Other Agencies - Third Party P,30120237,HARTWIG CARE LIMITED, 288.44 ,29/04/2016
Delivery Units,Adults and Communities,Other Agencies - Third Party P,30118766,HEADWAY EAST LONDON, 376.08 ,28/04/2016
Delivery Units,Adults and Communities,Other Agencies - Third Party P,30117339,HENRY NIHILL HOUSE," 2,165.68 ",11/04/2016
Delivery Units,Adults and Communities,Other Agencies - Third Party P,30117338,HENRY NIHILL HOUSE," 2,398.56 ",11/04/2016
Delivery Units,Adults and Communities,Other Agencies - Third Party P,30118894,HFH HEALTHCARE LTD," 8,118.92 ",21/04/2016
Delivery Units,Adults and Communities,Other Agencies - Third Party P,30118892,HFH HEALTHCARE LTD," 8,650.12 ",21/04/2016
Delivery Units,Adults and Communities,Other Agencies - Third Party P,30118893,HFH HEALTHCARE LTD," 8,805.82 ",21/04/2016
Delivery Units,Adults and Communities,Other Agencies - Third Party P,30117361,HILLGREEN CARE LTD," 6,632.71 ",11/04/2016
Delivery Units,Adults and Communities,Other Agencies - Third Party P,30118492,HILLSIDE CLUBHOUSE LTD, 385.00 ,21/04/2016
Delivery Units,Adults and Communities,Other Agencies - Third Party P,30118493,HILLSIDE CLUBHOUSE LTD, 455.00 ,21/04/2016
Delivery Units,Adults and Communities,Other Agencies - Third Party P,30117573,HILTON LODGE LTD.," 2,184.04 ",11/04/2016
Delivery Units,Adults and Communities,Other Agencies - Third Party P,30117582,HILTON LODGE LTD.," 2,184.04 ",11/04/2016
Delivery Units,Adults and Communities,Other Agencies - Third Party P,30117589,HILTON LODGE LTD.," 2,184.04 ",11/04/2016
Delivery Units,Adults and Communities,Other Agencies - Third Party P,30117590,HILTON LODGE LTD.," 2,184.04 ",11/04/2016
Delivery Units,Adults and Communities,Other Agencies - Third Party P,30117705,HILTON LODGE LTD.," 2,184.04 ",11/04/2016
Delivery Units,Adults and Communities,Other Agencies - Third Party P,30117711,HILTON LODGE LTD.," 2,184.04 ",11/04/2016
Delivery Units,Adults and Communities,Other Agencies - Third Party P,30117580,HILTON LODGE LTD.," 2,256.04 ",11/04/2016
Delivery Units,Adults and Communities,Other Agencies - Third Party P,30117579,HILTON LODGE LTD.," 2,400.00 ",11/04/2016
Delivery Units,Adults and Communities,Other Agencies - Third Party P,30118489,HILTON LODGE LTD.," 2,184.04 ",21/04/2016
Delivery Units,Adults and Communities,Other Agencies - Third Party P,30118499,HILTON LODGE LTD.," 2,184.04 ",21/04/2016
Delivery Units,Adults and Communities,Other Agencies - Third Party P,30118506,HILTON LODGE LTD.," 2,184.04 ",21/04/2016
Delivery Units,Adults and Communities,Other Agencies - Third Party P,30118507,HILTON LODGE LTD.," 2,184.04 ",21/04/2016
Delivery Units,Adults and Communities,Other Agencies - Third Party P,30118516,HILTON LODGE LTD.," 2,184.04 ",21/04/2016
Delivery Units,Adults and Communities,Other Agencies - Third Party P,30118517,HILTON LODGE LTD.," 2,184.04 ",21/04/2016
Delivery Units,Adults and Communities,Other Agencies - Third Party P,30118497,HILTON LODGE LTD.," 2,400.00 ",21/04/2016
Delivery Units,Adults and Communities,Other Agencies - Third Party P,20029756,HILTON LODGE LTD.," 2,256.04 ",25/04/2016
Delivery Units,Adults and Communities,Other Agencies - Third Party P,80003053,HMCTS, 400.00 ,08/04/2016
Delivery Units,Adults and Communities,Other Agencies - Third Party P,20029648,HMCTS, 400.00 ,19/04/2016
Delivery Units,Adults and Communities,Other Agencies - Third Party P,20029649,HMCTS, 400.00 ,19/04/2016
Delivery Units,Adults and Communities,Other Agencies - Third Party P,20029650,HMCTS, 400.00 ,19/04/2016
Delivery Units,Adults and Communities,Other Agencies - Third Party P,30117709,HOLLY HOUSE, 725.63 ,11/04/2016
Delivery Units,Adults and Communities,Other Agencies - Third Party P,30117708,HOLLY HOUSE," 2,031.76 ",11/04/2016
Delivery Units,Adults and Communities,Other Agencies - Third Party P,30118484,HOLLY HOUSE CARE HOME," 5,460.10 ",21/04/2016
Delivery Units,Adults and Communities,Other Agencies - Third Party P,30102730,HOME FARM TRUST LTD,"-11,293.98 ",18/04/2016
Delivery Units,Adults and Communities,Other Agencies - Third Party P,30113564,HOME FARM TRUST LTD," 2,304.64 ",18/04/2016
Delivery Units,Adults and Communities,Other Agencies - Third Party P,30117453,HONISTER RESIDENTIAL CARE LTD," 2,418.04 ",11/04/2016
Delivery Units,Adults and Communities,Other Agencies - Third Party P,30117904,HOUSING 21 (BARNET),-246.00 ,12/04/2016
Delivery Units,Adults and Communities,Other Agencies - Third Party P,30118198,HOUSING 21 (BARNET),-246.00 ,18/04/2016
Delivery Units,Adults and Communities,Other Agencies - Third Party P,30118199,HOUSING 21 (BARNET),-246.00 ,18/04/2016
Delivery Units,Adults and Communities,Other Agencies - Third Party P,30118200,HOUSING 21 (BARNET),-246.00 ,18/04/2016
Delivery Units,Adults and Communities,Other Agencies - Third Party P,30120265,HOUSING 21 (BARNET),-246.00 ,29/04/2016
Delivery Units,Adults and Communities,Other Agencies - Third Party P,30117706,HUSKARDS NEW CARE LTD," 2,216.50 ",11/04/2016
Delivery Units,Adults and Communities,Other Agencies - Third Party P,30119504,HUSKARDS NEW CARE LTD," 2,145.00 ",25/04/2016
Delivery Units,Adults and Communities,Other Agencies - Third Party P,30119911,INDEPENDENCE HOMES LIMITED," 2,900.00 ",28/04/2016
Delivery Units,Adults and Communities,Other Agencies - Third Party P,30116884,INDIVIDUALISED CARE LIMITED, 280.00 ,06/04/2016
Delivery Units,Adults and Communities,Other Agencies - Third Party P,30116891,INDIVIDUALISED CARE LIMITED, 528.50 ,06/04/2016
Delivery Units,Adults and Communities,Other Agencies - Third Party P,30116886,INDIVIDUALISED CARE LIMITED, 700.00 ,06/04/2016
Delivery Units,Adults and Communities,Other Agencies - Third Party P,30116889,INDIVIDUALISED CARE LIMITED, 800.00 ,06/04/2016
Delivery Units,Adults and Communities,Other Agencies - Third Party P,30116890,INDIVIDUALISED CARE LIMITED," 1,000.00 ",06/04/2016
Delivery Units,Adults and Communities,Other Agencies - Third Party P,30116887,INDIVIDUALISED CARE LIMITED," 1,400.00 ",06/04/2016
Delivery Units,Adults and Communities,Other Agencies - Third Party P,30116888,INDIVIDUALISED CARE LIMITED," 1,650.00 ",06/04/2016
Delivery Units,Adults and Communities,Other Agencies - Third Party P,30116885,INDIVIDUALISED CARE LIMITED," 2,400.00 ",06/04/2016
Delivery Units,Adults and Communities,Other Agencies - Third Party P,30117728,INDIVIDUALISED CARE LIMITED, 140.00 ,11/04/2016
Delivery Units,Adults and Communities,Other Agencies - Third Party P,30117727,INDIVIDUALISED CARE LIMITED, 224.00 ,11/04/2016
Delivery Units,Adults and Communities,Other Agencies - Third Party P,30117726,INDIVIDUALISED CARE LIMITED, 224.00 ,11/04/2016
Delivery Units,Adults and Communities,Other Agencies - Third Party P,30117731,INDIVIDUALISED CARE LIMITED, 255.00 ,11/04/2016
Delivery Units,Adults and Communities,Other Agencies - Third Party P,30117725,INDIVIDUALISED CARE LIMITED, 255.00 ,11/04/2016
Delivery Units,Adults and Communities,Other Agencies - Third Party P,30117722,INDIVIDUALISED CARE LIMITED, 256.00 ,11/04/2016
Delivery Units,Adults and Communities,Other Agencies - Third Party P,30117734,INDIVIDUALISED CARE LIMITED, 279.00 ,11/04/2016
Delivery Units,Adults and Communities,Other Agencies - Third Party P,30117733,INDIVIDUALISED CARE LIMITED, 280.00 ,11/04/2016
Delivery Units,Adults and Communities,Other Agencies - Third Party P,30117732,INDIVIDUALISED CARE LIMITED, 300.00 ,11/04/2016
Delivery Units,Adults and Communities,Other Agencies - Third Party P,30117736,INDIVIDUALISED CARE LIMITED, 300.00 ,11/04/2016
Delivery Units,Adults and Communities,Other Agencies - Third Party P,30117735,INDIVIDUALISED CARE LIMITED, 360.00 ,11/04/2016
Delivery Units,Adults and Communities,Other Agencies - Third Party P,30117737,INDIVIDUALISED CARE LIMITED, 400.00 ,11/04/2016
Delivery Units,Adults and Communities,Other Agencies - Third Party P,30117723,INDIVIDUALISED CARE LIMITED, 600.00 ,11/04/2016
Delivery Units,Adults and Communities,Other Agencies - Third Party P,30117724,INDIVIDUALISED CARE LIMITED, 600.00 ,11/04/2016
Delivery Units,Adults and Communities,Other Agencies - Third Party P,30117730,INDIVIDUALISED CARE LIMITED, 700.00 ,11/04/2016
Delivery Units,Adults and Communities,Other Agencies - Third Party P,30117729,INDIVIDUALISED CARE LIMITED," 1,050.00 ",11/04/2016
Delivery Units,Adults and Communities,Other Agencies - Third Party P,30117858,INSIGHT SPECIALIST BEHAVIOURAL," 5,944.08 ",12/04/2016
Delivery Units,Adults and Communities,Other Agencies - Third Party P,20029755,IVER HOUSE LTD," 3,151.48 ",25/04/2016
Delivery Units,Adults and Communities,Other Agencies - Third Party P,30118321,JACARANDA HEALTHCARE, 121.50 ,20/04/2016
Delivery Units,Adults and Communities,Other Agencies - Third Party P,30118322,JACARANDA HEALTHCARE, 202.50 ,20/04/2016
Delivery Units,Adults and Communities,Other Agencies - Third Party P,30117265,JEMINI RESPONSE," 9,100.00 ",11/04/2016
Delivery Units,Adults and Communities,Other Agencies - Third Party P,30117396,JEWISH CARE,-734.40 ,11/04/2016
Delivery Units,Adults and Communities,Other Agencies - Third Party P,30117401,JEWISH CARE, 746.49 ,11/04/2016
Delivery Units,Adults and Communities,Other Agencies - Third Party P,30117397,JEWISH CARE," 3,200.00 ",11/04/2016
Delivery Units,Adults and Communities,Other Agencies - Third Party P,30117980,JEWISH CARE," 1,658.86 ",13/04/2016
Delivery Units,Adults and Communities,Other Agencies - Third Party P,30117981,JEWISH CARE," 2,690.16 ",13/04/2016
Delivery Units,Adults and Communities,Other Agencies - Third Party P,30118066,JEWISH CARE,"-1,055.77 ",18/04/2016
Delivery Units,Adults and Communities,Other Agencies - Third Party P,30118072,JEWISH CARE,-605.48 ,18/04/2016
Delivery Units,Adults and Communities,Other Agencies - Third Party P,30118064,JEWISH CARE,-533.34 ,18/04/2016
Delivery Units,Adults and Communities,Other Agencies - Third Party P,30118073,JEWISH CARE, 99.64 ,18/04/2016
Delivery Units,Adults and Communities,Other Agencies - Third Party P,30118062,JEWISH CARE, 409.51 ,18/04/2016
Delivery Units,Adults and Communities,Other Agencies - Third Party P,30118065,JEWISH CARE, 457.25 ,18/04/2016
Delivery Units,Adults and Communities,Other Agencies - Third Party P,30118068,JEWISH CARE," 2,322.40 ",18/04/2016
Delivery Units,Adults and Communities,Other Agencies - Third Party P,30118069,JEWISH CARE," 2,322.40 ",18/04/2016
Delivery Units,Adults and Communities,Other Agencies - Third Party P,30118070,JEWISH CARE," 2,518.48 ",18/04/2016
Delivery Units,Adults and Communities,Other Agencies - Third Party P,30118063,JEWISH CARE," 4,266.72 ",18/04/2016
Delivery Units,Adults and Communities,Other Agencies - Third Party P,30118433,JEWISH CARE,"-13,934.41 ",21/04/2016
Delivery Units,Adults and Communities,Other Agencies - Third Party P,30118431,JEWISH CARE," 2,571.23 ",21/04/2016
Delivery Units,Adults and Communities,Other Agencies - Third Party P,30118430,JEWISH CARE," 11,446.12 ",21/04/2016
Delivery Units,Adults and Communities,Other Agencies - Third Party P,30118432,JEWISH CARE," 15,925.04 ",21/04/2016
Delivery Units,Adults and Communities,Other Agencies - Third Party P,30119455,JEWISH CARE,"-5,081.42 ",25/04/2016
Delivery Units,Adults and Communities,Other Agencies - Third Party P,30119450,JEWISH CARE, 914.30 ,25/04/2016
Delivery Units,Adults and Communities,Other Agencies - Third Party P,30119449,JEWISH CARE," 1,161.20 ",25/04/2016
Delivery Units,Adults and Communities,Other Agencies - Third Party P,30119451,JEWISH CARE," 3,200.00 ",25/04/2016
Delivery Units,Adults and Communities,Other Agencies - Third Party P,30120063,JEWISH CARE,"-4,872.77 ",28/04/2016
Delivery Units,Adults and Communities,Other Agencies - Third Party P,30119986,JEWISH CARE,"-2,322.40 ",28/04/2016
Delivery Units,Adults and Communities,Other Agencies - Third Party P,30120135,JEWISH CARE,-995.31 ,28/04/2016
Delivery Units,Adults and Communities,Other Agencies - Third Party P,30119976,JEWISH CARE, 11.20 ,28/04/2016
Delivery Units,Adults and Communities,Other Agencies - Third Party P,30119987,JEWISH CARE, 248.83 ,28/04/2016
Delivery Units,Adults and Communities,Other Agencies - Third Party P,30120067,JEWISH CARE, 479.36 ,28/04/2016
Delivery Units,Adults and Communities,Other Agencies - Third Party P,30120060,JEWISH CARE," 1,136.98 ",28/04/2016
Delivery Units,Adults and Communities,Other Agencies - Third Party P,30120133,JEWISH CARE," 2,273.96 ",28/04/2016
Delivery Units,Adults and Communities,Other Agencies - Third Party P,30119977,JEWISH CARE," 2,322.40 ",28/04/2016
Delivery Units,Adults and Communities,Other Agencies - Third Party P,30120062,JEWISH CARE," 2,517.60 ",28/04/2016
Delivery Units,Adults and Communities,Other Agencies - Third Party P,30120061,JEWISH CARE," 2,761.24 ",28/04/2016
Delivery Units,Adults and Communities,Other Agencies - Third Party P,30120130,JEWISH CARE," 3,234.77 ",28/04/2016
Delivery Units,Adults and Communities,Other Agencies - Third Party P,30120134,JEWISH CARE," 3,780.00 ",28/04/2016
Delivery Units,Adults and Communities,Other Agencies - Third Party P,30120131,JEWISH CARE," 5,059.52 ",28/04/2016
Delivery Units,Adults and Communities,Other Agencies - Third Party P,30119988,JEWISH CARE," 5,409.59 ",28/04/2016
Delivery Units,Adults and Communities,Other Agencies - Third Party P,30120064,JEWISH CARE," 7,146.74 ",28/04/2016
Delivery Units,Adults and Communities,Other Agencies - Third Party P,30117841,JIGSAW CREATIVE CARE LIMITED," 4,236.00 ",12/04/2016
Delivery Units,Adults and Communities,Other Agencies - Third Party P,30117842,JIGSAW CREATIVE CARE LIMITED," 8,349.00 ",12/04/2016
Delivery Units,Adults and Communities,Other Agencies - Third Party P,30117840,JIGSAW CREATIVE CARE LIMITED," 9,065.28 ",12/04/2016
Delivery Units,Adults and Communities,Other Agencies - Third Party P,30119538,JIGSAW CREATIVE CARE LIMITED," 1,412.00 ",26/04/2016
Delivery Units,Adults and Communities,Other Agencies - Third Party P,30119539,JIGSAW CREATIVE CARE LIMITED," 2,783.00 ",26/04/2016
Delivery Units,Adults and Communities,Other Agencies - Third Party P,30119537,JIGSAW CREATIVE CARE LIMITED," 3,021.76 ",26/04/2016
Delivery Units,Adults and Communities,Other Agencies - Third Party P,30117267,KEMBLE HOUSE," 8,192.99 ",11/04/2016
Delivery Units,Adults and Communities,Other Agencies - Third Party P,30120230,KEMBLE HOUSE," 3,231.30 ",29/04/2016
Delivery Units,Adults and Communities,Other Agencies - Third Party P,30120223,KEMBLE HOUSE," 3,339.01 ",29/04/2016
Delivery Units,Adults and Communities,Other Agencies - Third Party P,30120228,KEMBLE HOUSE," 9,368.10 ",29/04/2016
Delivery Units,Adults and Communities,Other Agencies - Third Party P,30119628,KILCULLEN HOMES (UK) LLP," 1,569.48 ",26/04/2016
Delivery Units,Adults and Communities,Other Agencies - Third Party P,30117753,KISHARON DAY SCHOOL, 381.54 ,11/04/2016
Delivery Units,Adults and Communities,Other Agencies - Third Party P,30117755,KISHARON DAY SCHOOL, 397.11 ,11/04/2016
Delivery Units,Adults and Communities,Other Agencies - Third Party P,30117750,KISHARON DAY SCHOOL, 686.88 ,11/04/2016
Delivery Units,Adults and Communities,Other Agencies - Third Party P,30117761,KISHARON DAY SCHOOL, 733.72 ,11/04/2016
Delivery Units,Adults and Communities,Other Agencies - Third Party P,30117752,KISHARON DAY SCHOOL, 794.08 ,11/04/2016
Delivery Units,Adults and Communities,Other Agencies - Third Party P,30117758,KISHARON DAY SCHOOL," 1,241.16 ",11/04/2016
Delivery Units,Adults and Communities,Other Agencies - Third Party P,30117763,KISHARON DAY SCHOOL," 1,275.96 ",11/04/2016
Delivery Units,Adults and Communities,Other Agencies - Third Party P,30117757,KISHARON DAY SCHOOL," 1,340.18 ",11/04/2016
Delivery Units,Adults and Communities,Other Agencies - Third Party P,30117759,KISHARON DAY SCHOOL," 1,369.23 ",11/04/2016
Delivery Units,Adults and Communities,Other Agencies - Third Party P,30117751,KISHARON DAY SCHOOL," 1,373.49 ",11/04/2016
Delivery Units,Adults and Communities,Other Agencies - Third Party P,30117754,KISHARON DAY SCHOOL," 1,373.49 ",11/04/2016
Delivery Units,Adults and Communities,Other Agencies - Third Party P,30117760,KISHARON DAY SCHOOL," 1,373.68 ",11/04/2016
Delivery Units,Adults and Communities,Other Agencies - Third Party P,30117746,KISHARON DAY SCHOOL," 1,464.03 ",11/04/2016
Delivery Units,Adults and Communities,Other Agencies - Third Party P,30117756,KISHARON DAY SCHOOL," 1,679.87 ",11/04/2016
Delivery Units,Adults and Communities,Other Agencies - Third Party P,30117768,KISHARON DAY SCHOOL," 1,914.00 ",11/04/2016
Delivery Units,Adults and Communities,Other Agencies - Third Party P,30117748,KISHARON DAY SCHOOL," 2,144.10 ",11/04/2016
Delivery Units,Adults and Communities,Other Agencies - Third Party P,30117749,KISHARON DAY SCHOOL," 2,284.24 ",11/04/2016
Delivery Units,Adults and Communities,Other Agencies - Third Party P,30117747,KISHARON DAY SCHOOL," 4,260.72 ",11/04/2016
Delivery Units,Adults and Communities,Other Agencies - Third Party P,30117769,KISHARON DAY SCHOOL," 6,128.00 ",11/04/2016
Delivery Units,Adults and Communities,Other Agencies - Third Party P,30117866,KISHARON DAY SCHOOL," 1,595.00 ",12/04/2016
Delivery Units,Adults and Communities,Other Agencies - Third Party P,30118326,KISHARON DAY SCHOOL, 980.00 ,20/04/2016
Delivery Units,Adults and Communities,Other Agencies - Third Party P,30118417,KOLBE HOUSE SOCIETY," 6,960.00 ",21/04/2016
Delivery Units,Adults and Communities,Other Agencies - Third Party P,30119859,LANGDON COMMUNITY LTD, 60.80 ,28/04/2016
Delivery Units,Adults and Communities,Other Agencies - Third Party P,30119872,LANGDON COMMUNITY LTD, 106.40 ,28/04/2016
Delivery Units,Adults and Communities,Other Agencies - Third Party P,30119876,LANGDON COMMUNITY LTD, 106.40 ,28/04/2016
Delivery Units,Adults and Communities,Other Agencies - Third Party P,30119866,LANGDON COMMUNITY LTD, 152.00 ,28/04/2016
Delivery Units,Adults and Communities,Other Agencies - Third Party P,30119877,LANGDON COMMUNITY LTD, 212.80 ,28/04/2016
Delivery Units,Adults and Communities,Other Agencies - Third Party P,30119842,LANGDON COMMUNITY LTD, 239.09 ,28/04/2016
Delivery Units,Adults and Communities,Other Agencies - Third Party P,30119861,LANGDON COMMUNITY LTD, 243.20 ,28/04/2016
Delivery Units,Adults and Communities,Other Agencies - Third Party P,30119870,LANGDON COMMUNITY LTD, 266.00 ,28/04/2016
Delivery Units,Adults and Communities,Other Agencies - Third Party P,30119874,LANGDON COMMUNITY LTD, 319.20 ,28/04/2016
Delivery Units,Adults and Communities,Other Agencies - Third Party P,30119864,LANGDON COMMUNITY LTD, 328.78 ,28/04/2016
Delivery Units,Adults and Communities,Other Agencies - Third Party P,30119846,LANGDON COMMUNITY LTD, 410.40 ,28/04/2016
Delivery Units,Adults and Communities,Other Agencies - Third Party P,30119873,LANGDON COMMUNITY LTD, 425.60 ,28/04/2016
Delivery Units,Adults and Communities,Other Agencies - Third Party P,30119862,LANGDON COMMUNITY LTD, 440.80 ,28/04/2016
Delivery Units,Adults and Communities,Other Agencies - Third Party P,30119852,LANGDON COMMUNITY LTD, 443.08 ,28/04/2016
Delivery Units,Adults and Communities,Other Agencies - Third Party P,30119850,LANGDON COMMUNITY LTD, 524.40 ,28/04/2016
Delivery Units,Adults and Communities,Other Agencies - Third Party P,30119856,LANGDON COMMUNITY LTD, 600.98 ,28/04/2016
Delivery Units,Adults and Communities,Other Agencies - Third Party P,30119867,LANGDON COMMUNITY LTD, 608.00 ,28/04/2016
Delivery Units,Adults and Communities,Other Agencies - Third Party P,30119878,LANGDON COMMUNITY LTD, 851.20 ,28/04/2016
Delivery Units,Adults and Communities,Other Agencies - Third Party P,30119843,LANGDON COMMUNITY LTD, 956.36 ,28/04/2016
Delivery Units,Adults and Communities,Other Agencies - Third Party P,30119871,LANGDON COMMUNITY LTD," 1,064.00 ",28/04/2016
Delivery Units,Adults and Communities,Other Agencies - Third Party P,30119844,LANGDON COMMUNITY LTD," 1,250.66 ",28/04/2016
Delivery Units,Adults and Communities,Other Agencies - Third Party P,30119875,LANGDON COMMUNITY LTD," 1,276.80 ",28/04/2016
Delivery Units,Adults and Communities,Other Agencies - Third Party P,30119865,LANGDON COMMUNITY LTD," 1,315.12 ",28/04/2016
Delivery Units,Adults and Communities,Other Agencies - Third Party P,30119847,LANGDON COMMUNITY LTD," 1,641.60 ",28/04/2016
Delivery Units,Adults and Communities,Other Agencies - Third Party P,30119863,LANGDON COMMUNITY LTD," 1,763.20 ",28/04/2016
Delivery Units,Adults and Communities,Other Agencies - Third Party P,30119853,LANGDON COMMUNITY LTD," 1,772.32 ",28/04/2016
Delivery Units,Adults and Communities,Other Agencies - Third Party P,30119851,LANGDON COMMUNITY LTD," 2,097.60 ",28/04/2016
Delivery Units,Adults and Communities,Other Agencies - Third Party P,30119857,LANGDON COMMUNITY LTD," 2,403.92 ",28/04/2016
Delivery Units,Adults and Communities,Other Agencies - Third Party P,30119848,LANGDON COMMUNITY LTD," 3,411.48 ",28/04/2016
Delivery Units,Adults and Communities,Other Agencies - Third Party P,30119845,LANGDON COMMUNITY LTD," 5,002.64 ",28/04/2016
Delivery Units,Adults and Communities,Other Agencies - Third Party P,30119849,LANGDON COMMUNITY LTD," 6,335.32 ",28/04/2016
Delivery Units,Adults and Communities,Other Agencies - Third Party P,30118000,LEEMING BAR CARE HOME," 2,531.33 ",13/04/2016
Delivery Units,Adults and Communities,Other Agencies - Third Party P,30118039,LEWIS.W.HAMMERSON MEMORIAL HOME," 2,249.45 ",13/04/2016
Delivery Units,Adults and Communities,Other Agencies - Third Party P,30118042,LEWIS.W.HAMMERSON MEMORIAL HOME," 2,249.45 ",13/04/2016
Delivery Units,Adults and Communities,Other Agencies - Third Party P,30118043,LEWIS.W.HAMMERSON MEMORIAL HOME," 2,249.45 ",13/04/2016
Delivery Units,Adults and Communities,Other Agencies - Third Party P,30118425,LIFESTYLE CARE 2011 PLC," 2,138.00 ",21/04/2016
Delivery Units,Adults and Communities,Other Agencies - Third Party P,30117984,LIFESTYLE CARE PLC,"-2,094.52 ",18/04/2016
Delivery Units,Adults and Communities,Other Agencies - Third Party P,30117985,LIFESTYLE CARE PLC,"-2,094.52 ",18/04/2016
Delivery Units,Adults and Communities,Other Agencies - Third Party P,30117986,LIFESTYLE CARE PLC,"-2,094.52 ",18/04/2016
Delivery Units,Adults and Communities,Other Agencies - Third Party P,30119318,LIFESTYLE CARE PLC," 2,094.52 ",25/04/2016
Delivery Units,Adults and Communities,Other Agencies - Third Party P,30119617,LIFEWAYS," 2,377.20 ",26/04/2016
Delivery Units,Adults and Communities,Other Agencies - Third Party P,30119605,LIFEWAYS," 3,145.24 ",26/04/2016
Delivery Units,Adults and Communities,Other Agencies - Third Party P,30119615,LIFEWAYS," 3,656.00 ",26/04/2016
Delivery Units,Adults and Communities,Other Agencies - Third Party P,30119618,LIFEWAYS," 4,828.24 ",26/04/2016
Delivery Units,Adults and Communities,Other Agencies - Third Party P,30119608,LIFEWAYS," 5,037.40 ",26/04/2016
Delivery Units,Adults and Communities,Other Agencies - Third Party P,30119622,LIFEWAYS," 5,275.20 ",26/04/2016
Delivery Units,Adults and Communities,Other Agencies - Third Party P,30119616,LIFEWAYS," 5,766.44 ",26/04/2016
Delivery Units,Adults and Communities,Other Agencies - Third Party P,30119609,LIFEWAYS," 5,943.00 ",26/04/2016
Delivery Units,Adults and Communities,Other Agencies - Third Party P,30119606,LIFEWAYS," 6,930.00 ",26/04/2016
Delivery Units,Adults and Communities,Other Agencies - Third Party P,30117198,LORRAINES CARE HOME LTD," 1,820.00 ",08/04/2016
Delivery Units,Adults and Communities,Other Agencies - Third Party P,30118015,M D HOMES," 3,542.86 ",13/04/2016
Delivery Units,Adults and Communities,Other Agencies - Third Party P,30118511,MACINTYRE CARE, 750.40 ,21/04/2016
Delivery Units,Adults and Communities,Other Agencies - Third Party P,30117245,MADELAYNE COURT," 2,216.41 ",08/04/2016
Delivery Units,Adults and Communities,Other Agencies - Third Party P,30117682,MADELAYNE COURT," 2,073.42 ",11/04/2016
Delivery Units,Adults and Communities,Other Agencies - Third Party P,30117975,MAISON MOTI LTD," 3,260.00 ",13/04/2016
Delivery Units,Adults and Communities,Other Agencies - Third Party P,30117973,MAISON MOTI LTD," 3,400.00 ",13/04/2016
Delivery Units,Adults and Communities,Other Agencies - Third Party P,30117974,MAISON MOTI LTD," 3,400.00 ",13/04/2016
Delivery Units,Adults and Communities,Other Agencies - Third Party P,30117976,MAISON MOTI LTD," 3,400.00 ",13/04/2016
Delivery Units,Adults and Communities,Other Agencies - Third Party P,30118418,MAISON MOTI LTD," 3,260.00 ",21/04/2016
Delivery Units,Adults and Communities,Other Agencies - Third Party P,30120018,MAISON MOTI LTD, 343.40 ,28/04/2016
Delivery Units,Adults and Communities,Other Agencies - Third Party P,30119927,MAISON MOTI LTD," 1,026.00 ",28/04/2016
Delivery Units,Adults and Communities,Other Agencies - Third Party P,30119925,MAISON MOTI LTD," 2,440.00 ",28/04/2016
Delivery Units,Adults and Communities,Other Agencies - Third Party P,30119970,MAISON MOTI LTD," 2,440.00 ",28/04/2016
Delivery Units,Adults and Communities,Other Agencies - Third Party P,30119832,MAISON MOTI LTD," 2,500.00 ",28/04/2016
Delivery Units,Adults and Communities,Other Agencies - Third Party P,30119921,MAISON MOTI LTD," 2,500.00 ",28/04/2016
Delivery Units,Adults and Communities,Other Agencies - Third Party P,30119922,MAISON MOTI LTD," 2,500.00 ",28/04/2016
Delivery Units,Adults and Communities,Other Agencies - Third Party P,30119923,MAISON MOTI LTD," 2,500.00 ",28/04/2016
Delivery Units,Adults and Communities,Other Agencies - Third Party P,30119924,MAISON MOTI LTD," 2,500.00 ",28/04/2016
Delivery Units,Adults and Communities,Other Agencies - Third Party P,30117679,MARLBOROUGH HOUSE," 3,951.44 ",11/04/2016
Delivery Units,Adults and Communities,Other Agencies - Third Party P,30117052,MARRILYNE LODGE," 2,554.16 ",06/04/2016
Delivery Units,Adults and Communities,Other Agencies - Third Party P,30117808,MARRILYNE LODGE," 2,554.16 ",11/04/2016
Delivery Units,Adults and Communities,Other Agencies - Third Party P,30117591,MAYFIELD ADULT SERVICES," 9,875.71 ",11/04/2016
Delivery Units,Adults and Communities,Other Agencies - Third Party P,20029691,MEADOWBANK TRUST," 2,751.60 ",21/04/2016
Delivery Units,Adults and Communities,Other Agencies - Third Party P,30114138,MEERA NURSING HOME LIMITED,-571.61 ,11/04/2016
Delivery Units,Adults and Communities,Other Agencies - Third Party P,30117452,MEERA NURSING HOME LIMITED," 2,397.72 ",11/04/2016
Delivery Units,Adults and Communities,Other Agencies - Third Party P,30117473,MEERA NURSING HOME LIMITED," 2,397.72 ",11/04/2016
Delivery Units,Adults and Communities,Other Agencies - Third Party P,30117521,MEERA NURSING HOME LIMITED," 2,397.72 ",11/04/2016
Delivery Units,Adults and Communities,Other Agencies - Third Party P,30117563,MEERA NURSING HOME LIMITED," 2,397.72 ",11/04/2016
Delivery Units,Adults and Communities,Other Agencies - Third Party P,30117588,MEERA NURSING HOME LIMITED," 2,397.72 ",11/04/2016
Delivery Units,Adults and Communities,Other Agencies - Third Party P,30117626,MEERA NURSING HOME LIMITED," 2,397.72 ",11/04/2016
Delivery Units,Adults and Communities,Other Agencies - Third Party P,30117636,MEERA NURSING HOME LIMITED," 2,397.72 ",11/04/2016
Delivery Units,Adults and Communities,Other Agencies - Third Party P,30117681,MEERA NURSING HOME LIMITED," 2,397.72 ",11/04/2016
Delivery Units,Adults and Communities,Other Agencies - Third Party P,30117910,METHODIST HOMES FOR THE AGED," 2,001.92 ",12/04/2016
Delivery Units,Adults and Communities,Other Agencies - Third Party P,30117914,METHODIST HOMES FOR THE AGED," 2,500.00 ",12/04/2016
Delivery Units,Adults and Communities,Other Agencies - Third Party P,30117770,METRO RADIO CARS, 118.80 ,11/04/2016
Delivery Units,Adults and Communities,Other Agencies - Third Party P,30118936,METRO RADIO CARS, 118.80 ,21/04/2016
Delivery Units,Adults and Communities,Other Agencies - Third Party P,30116125,METROPOLITAN HOUSING TRUST," 1,079.68 ",12/04/2016
Delivery Units,Adults and Communities,Other Agencies - Third Party P,30117047,ML HOMES LTD," 1,417.24 ",05/04/2016
Delivery Units,Adults and Communities,Other Agencies - Third Party P,30117048,ML HOMES LTD," 1,428.68 ",05/04/2016
Delivery Units,Adults and Communities,Other Agencies - Third Party P,30117039,ML HOMES LTD," 1,433.56 ",05/04/2016
Delivery Units,Adults and Communities,Other Agencies - Third Party P,30117036,ML HOMES LTD," 1,740.00 ",05/04/2016
Delivery Units,Adults and Communities,Other Agencies - Third Party P,30117040,ML HOMES LTD," 1,751.16 ",05/04/2016
Delivery Units,Adults and Communities,Other Agencies - Third Party P,30117050,ML HOMES LTD," 1,751.16 ",05/04/2016
Delivery Units,Adults and Communities,Other Agencies - Third Party P,30117049,ML HOMES LTD," 1,765.80 ",05/04/2016
Delivery Units,Adults and Communities,Other Agencies - Third Party P,30117055,ML HOMES LTD," 1,767.40 ",05/04/2016
Delivery Units,Adults and Communities,Other Agencies - Third Party P,30117105,ML HOMES LTD," 1,780.00 ",05/04/2016
Delivery Units,Adults and Communities,Other Agencies - Third Party P,30116970,ML HOMES LTD," 1,780.80 ",05/04/2016
Delivery Units,Adults and Communities,Other Agencies - Third Party P,30117106,ML HOMES LTD," 1,780.80 ",05/04/2016
Delivery Units,Adults and Communities,Other Agencies - Third Party P,30117046,ML HOMES LTD," 1,955.84 ",05/04/2016
Delivery Units,Adults and Communities,Other Agencies - Third Party P,30117038,ML HOMES LTD," 2,118.36 ",05/04/2016
Delivery Units,Adults and Communities,Other Agencies - Third Party P,30117045,ML HOMES LTD," 2,118.36 ",05/04/2016
Delivery Units,Adults and Communities,Other Agencies - Third Party P,30116969,MOREWAYS HEALTHCARE," 2,600.00 ",06/04/2016
Delivery Units,Adults and Communities,Other Agencies - Third Party P,30117912,MOREWAYS HEALTHCARE," 1,800.00 ",12/04/2016
Delivery Units,Adults and Communities,Other Agencies - Third Party P,30117911,MOREWAYS HEALTHCARE," 2,907.00 ",12/04/2016
Delivery Units,Adults and Communities,Other Agencies - Third Party P,30120001,MOREWAYS HEALTHCARE," 2,600.00 ",28/04/2016
Delivery Units,Adults and Communities,Other Agencies - Third Party P,30120011,MOREWAYS HEALTHCARE," 2,824.00 ",28/04/2016
Delivery Units,Adults and Communities,Other Agencies - Third Party P,30117442,NAS SERVICES LTD," 2,035.64 ",11/04/2016
Delivery Units,Adults and Communities,Other Agencies - Third Party P,20029737,NATIONAL ASSOCIATION OF FINANCIAL ASSESS, 200.00 ,22/04/2016
Delivery Units,Adults and Communities,Other Agencies - Third Party P,30120108,NAVARA LODGE," 1,900.00 ",28/04/2016
Delivery Units,Adults and Communities,Other Agencies - Third Party P,30117500,NAZARETH HOUSE, 37.30 ,11/04/2016
Delivery Units,Adults and Communities,Other Agencies - Third Party P,30117502,NAZARETH HOUSE, 57.54 ,11/04/2016
Delivery Units,Adults and Communities,Other Agencies - Third Party P,30117501,NAZARETH HOUSE, 62.46 ,11/04/2016
Delivery Units,Adults and Communities,Other Agencies - Third Party P,30117499,NAZARETH HOUSE, 67.14 ,11/04/2016
Delivery Units,Adults and Communities,Other Agencies - Third Party P,30117503,NAZARETH HOUSE, 67.14 ,11/04/2016
Delivery Units,Adults and Communities,Other Agencies - Third Party P,30117506,NAZARETH HOUSE, 100.31 ,11/04/2016
Delivery Units,Adults and Communities,Other Agencies - Third Party P,30117491,NAZARETH HOUSE, 517.20 ,11/04/2016
Delivery Units,Adults and Communities,Other Agencies - Third Party P,30117492,NAZARETH HOUSE, 517.20 ,11/04/2016
Delivery Units,Adults and Communities,Other Agencies - Third Party P,30117490,NAZARETH HOUSE," 1,506.12 ",11/04/2016
Delivery Units,Adults and Communities,Other Agencies - Third Party P,30117494,NAZARETH HOUSE," 2,001.92 ",11/04/2016
Delivery Units,Adults and Communities,Other Agencies - Third Party P,30117498,NAZARETH HOUSE," 2,001.92 ",11/04/2016
Delivery Units,Adults and Communities,Other Agencies - Third Party P,30117504,NAZARETH HOUSE," 2,031.76 ",11/04/2016
Delivery Units,Adults and Communities,Other Agencies - Third Party P,30117505,NAZARETH HOUSE," 2,031.76 ",11/04/2016
Delivery Units,Adults and Communities,Other Agencies - Third Party P,30117508,NAZARETH HOUSE," 2,031.76 ",11/04/2016
Delivery Units,Adults and Communities,Other Agencies - Third Party P,30117509,NAZARETH HOUSE," 2,031.76 ",11/04/2016
Delivery Units,Adults and Communities,Other Agencies - Third Party P,30117513,NAZARETH HOUSE," 2,031.76 ",11/04/2016
Delivery Units,Adults and Communities,Other Agencies - Third Party P,30117514,NAZARETH HOUSE," 2,031.76 ",11/04/2016
Delivery Units,Adults and Communities,Other Agencies - Third Party P,30117515,NAZARETH HOUSE," 2,031.76 ",11/04/2016
Delivery Units,Adults and Communities,Other Agencies - Third Party P,30117493,NAZARETH HOUSE," 2,184.04 ",11/04/2016
Delivery Units,Adults and Communities,Other Agencies - Third Party P,30117511,NAZARETH HOUSE," 2,211.80 ",11/04/2016
Delivery Units,Adults and Communities,Other Agencies - Third Party P,30117523,NAZARETH HOUSE," 2,216.41 ",11/04/2016
Delivery Units,Adults and Communities,Other Agencies - Third Party P,30117510,NAZARETH HOUSE," 2,650.40 ",11/04/2016
Delivery Units,Adults and Communities,Other Agencies - Third Party P,30117507,NAZARETH HOUSE," 3,036.00 ",11/04/2016
Delivery Units,Adults and Communities,Other Agencies - Third Party P,30118087,NAZARETH HOUSE," 2,031.76 ",18/04/2016
Delivery Units,Adults and Communities,Other Agencies - Third Party P,30120095,NAZARETH HOUSE," 2,001.92 ",28/04/2016
Delivery Units,Adults and Communities,Other Agencies - Third Party P,30120096,NAZARETH HOUSE," 2,001.92 ",28/04/2016
Delivery Units,Adults and Communities,Other Agencies - Third Party P,30120097,NAZARETH HOUSE," 2,001.92 ",28/04/2016
Delivery Units,Adults and Communities,Other Agencies - Third Party P,30120099,NAZARETH HOUSE," 2,001.92 ",28/04/2016
Delivery Units,Adults and Communities,Other Agencies - Third Party P,30120101,NAZARETH HOUSE," 2,031.76 ",28/04/2016
Delivery Units,Adults and Communities,Other Agencies - Third Party P,30120102,NAZARETH HOUSE," 2,031.76 ",28/04/2016
Delivery Units,Adults and Communities,Other Agencies - Third Party P,30120103,NAZARETH HOUSE," 2,031.76 ",28/04/2016
Delivery Units,Adults and Communities,Other Agencies - Third Party P,30120105,NAZARETH HOUSE," 2,031.76 ",28/04/2016
Delivery Units,Adults and Communities,Other Agencies - Third Party P,30120139,NAZARETH HOUSE," 4,426.33 ",28/04/2016
Delivery Units,Adults and Communities,Other Agencies - Third Party P,30117283,NEWCENTURY CARE LTD," 2,655.55 ",11/04/2016
Delivery Units,Adults and Communities,Other Agencies - Third Party P,30117284,NEWCENTURY CARE LTD," 2,655.55 ",11/04/2016
Delivery Units,Adults and Communities,Other Agencies - Third Party P,30117285,NEWCENTURY CARE LTD," 2,655.55 ",11/04/2016
Delivery Units,Adults and Communities,Other Agencies - Third Party P,30117282,NEWCENTURY CARE LTD," 3,764.29 ",11/04/2016
Delivery Units,Adults and Communities,Other Agencies - Third Party P,30117966,NEWCENTURY CARE LTD," 2,398.56 ",13/04/2016
Delivery Units,Adults and Communities,Other Agencies - Third Party P,30117965,NEWCENTURY CARE LTD," 2,600.00 ",13/04/2016
Delivery Units,Adults and Communities,Other Agencies - Third Party P,30118121,NEWCENTURY CARE LTD, 557.14 ,18/04/2016
Delivery Units,Adults and Communities,Other Agencies - Third Party P,30118122,NEWCENTURY CARE LTD," 2,398.56 ",18/04/2016
Delivery Units,Adults and Communities,Other Agencies - Third Party P,30117104,NEXT STEP SUPPORT LIMITED," 2,000.00 ",06/04/2016
Delivery Units,Adults and Communities,Other Agencies - Third Party P,30117037,NEXT STEP SUPPORT LIMITED," 2,240.00 ",06/04/2016
Delivery Units,Adults and Communities,Other Agencies - Third Party P,30120028,NEXT STEP SUPPORT LIMITED," 2,000.00 ",28/04/2016
Delivery Units,Adults and Communities,Other Agencies - Third Party P,30120006,NEXT STEP SUPPORT LIMITED," 2,240.00 ",28/04/2016
Delivery Units,Adults and Communities,Other Agencies - Third Party P,30117628,NIGHTINGALES RESIDENTIAL CARE HOME," 2,766.75 ",11/04/2016
Delivery Units,Adults and Communities,Other Agencies - Third Party P,30119492,NIGHTINGALES RESIDENTIAL CARE HOME, 523.24 ,25/04/2016
Delivery Units,Adults and Communities,Other Agencies - Third Party P,30119493,NIGHTINGALES RESIDENTIAL CARE HOME, 523.24 ,25/04/2016
Delivery Units,Adults and Communities,Other Agencies - Third Party P,30119496,NIGHTINGALES RESIDENTIAL CARE HOME, 541.29 ,25/04/2016
Delivery Units,Adults and Communities,Other Agencies - Third Party P,30119497,NIGHTINGALES RESIDENTIAL CARE HOME, 541.29 ,25/04/2016
Delivery Units,Adults and Communities,Other Agencies - Third Party P,30119494,NIGHTINGALES RESIDENTIAL CARE HOME, 559.33 ,25/04/2016
Delivery Units,Adults and Communities,Other Agencies - Third Party P,30119495,NIGHTINGALES RESIDENTIAL CARE HOME, 559.33 ,25/04/2016
Delivery Units,Adults and Communities,Other Agencies - Third Party P,30119499,NIGHTINGALES RESIDENTIAL CARE HOME," 2,588.25 ",25/04/2016
Delivery Units,Adults and Communities,Other Agencies - Third Party P,30119500,NIGHTINGALES RESIDENTIAL CARE HOME," 2,588.25 ",25/04/2016
Delivery Units,Adults and Communities,Other Agencies - Third Party P,30119501,NIGHTINGALES RESIDENTIAL CARE HOME," 2,677.50 ",25/04/2016
Delivery Units,Adults and Communities,Other Agencies - Third Party P,30119502,NIGHTINGALES RESIDENTIAL CARE HOME," 2,677.50 ",25/04/2016
Delivery Units,Adults and Communities,Other Agencies - Third Party P,30117090,NORWOOD RAVENSWOOD SCHOOLS LTD, 182.40 ,06/04/2016
Delivery Units,Adults and Communities,Other Agencies - Third Party P,30117092,NORWOOD RAVENSWOOD SCHOOLS LTD, 243.20 ,06/04/2016
Delivery Units,Adults and Communities,Other Agencies - Third Party P,30117089,NORWOOD RAVENSWOOD SCHOOLS LTD, 304.00 ,06/04/2016
Delivery Units,Adults and Communities,Other Agencies - Third Party P,30117093,NORWOOD RAVENSWOOD SCHOOLS LTD, 486.40 ,06/04/2016
Delivery Units,Adults and Communities,Other Agencies - Third Party P,30117088,NORWOOD RAVENSWOOD SCHOOLS LTD, 729.60 ,06/04/2016
Delivery Units,Adults and Communities,Other Agencies - Third Party P,30117091,NORWOOD RAVENSWOOD SCHOOLS LTD, 790.40 ,06/04/2016
Delivery Units,Adults and Communities,Other Agencies - Third Party P,30117096,NORWOOD RAVENSWOOD SCHOOLS LTD," 1,021.44 ",06/04/2016
Delivery Units,Adults and Communities,Other Agencies - Third Party P,30117087,NORWOOD RAVENSWOOD SCHOOLS LTD," 1,520.00 ",06/04/2016
Delivery Units,Adults and Communities,Other Agencies - Third Party P,30117099,NORWOOD RAVENSWOOD SCHOOLS LTD," 5,810.92 ",06/04/2016
Delivery Units,Adults and Communities,Other Agencies - Third Party P,30117829,NORWOOD RAVENSWOOD SCHOOLS LTD, 121.60 ,11/04/2016
Delivery Units,Adults and Communities,Other Agencies - Third Party P,30117832,NORWOOD RAVENSWOOD SCHOOLS LTD, 364.80 ,11/04/2016
Delivery Units,Adults and Communities,Other Agencies - Third Party P,30117700,NORWOOD RAVENSWOOD SCHOOLS LTD," 5,935.71 ",11/04/2016
Delivery Units,Adults and Communities,Other Agencies - Third Party P,60049879,NOTTING HILL HOUSING TRUST," 322,120.26 ",26/04/2016
Delivery Units,Adults and Communities,Other Agencies - Third Party P,30117932,ONE STEP (SUPPORT) LTD, 273.14 ,12/04/2016
Delivery Units,Adults and Communities,Other Agencies - Third Party P,30117929,ONE STEP (SUPPORT) LTD, 638.00 ,12/04/2016
Delivery Units,Adults and Communities,Other Agencies - Third Party P,30117930,ONE STEP (SUPPORT) LTD, 638.00 ,12/04/2016
Delivery Units,Adults and Communities,Other Agencies - Third Party P,30117924,ONE STEP (SUPPORT) LTD," 1,339.80 ",12/04/2016
Delivery Units,Adults and Communities,Other Agencies - Third Party P,30117928,ONE STEP (SUPPORT) LTD," 2,618.20 ",12/04/2016
Delivery Units,Adults and Communities,Other Agencies - Third Party P,30117927,ONE STEP (SUPPORT) LTD," 3,395.80 ",12/04/2016
Delivery Units,Adults and Communities,Other Agencies - Third Party P,30117931,ONE STEP (SUPPORT) LTD," 5,431.16 ",12/04/2016
Delivery Units,Adults and Communities,Other Agencies - Third Party P,30118209,ORIGIN HOUSING LIMITED," 1,065.60 ",18/04/2016
Delivery Units,Adults and Communities,Other Agencies - Third Party P,30118208,ORIGIN HOUSING LIMITED," 1,324.80 ",18/04/2016
Delivery Units,Adults and Communities,Other Agencies - Third Party P,30119630,ORIGIN HOUSING LIMITED, 576.00 ,26/04/2016
Delivery Units,Adults and Communities,Other Agencies - Third Party P,30119629,ORIGIN HOUSING LIMITED," 1,728.00 ",26/04/2016
Delivery Units,Adults and Communities,Other Agencies - Third Party P,80003048,PANDAPOPS DOG WALKING, 61.00 ,08/04/2016
Delivery Units,Adults and Communities,Other Agencies - Third Party P,80003012,PANDAPOPS DOG WALKING, 61.00 ,12/04/2016
Delivery Units,Adults and Communities,Other Agencies - Third Party P,30118724,PILLARCARE," 6,780.00 ",21/04/2016
Delivery Units,Adults and Communities,Other Agencies - Third Party P,30117522,PLATINUM HEALTH RESOURCES LTD," 3,764.29 ",11/04/2016
Delivery Units,Adults and Communities,Other Agencies - Third Party P,30117571,PLATINUM HEALTH RESOURCES LTD," 3,764.29 ",11/04/2016
Delivery Units,Adults and Communities,Other Agencies - Third Party P,30117489,PLATINUM HEALTH RESOURCES LTD," 3,893.11 ",11/04/2016
Delivery Units,Adults and Communities,Other Agencies - Third Party P,30114754,PRACTICAL CARE, 105.00 ,06/04/2016
Delivery Units,Adults and Communities,Other Agencies - Third Party P,30114752,PRACTICAL CARE, 339.50 ,06/04/2016
Delivery Units,Adults and Communities,Other Agencies - Third Party P,30114753,PRACTICAL CARE, 604.50 ,06/04/2016
Delivery Units,Adults and Communities,Other Agencies - Third Party P,30114750,PRACTICAL CARE, 672.00 ,06/04/2016
Delivery Units,Adults and Communities,Other Agencies - Third Party P,30114751,PRACTICAL CARE, 980.00 ,06/04/2016
Delivery Units,Adults and Communities,Other Agencies - Third Party P,30116095,PRACTICAL CARE, 574.00 ,13/04/2016
Delivery Units,Adults and Communities,Other Agencies - Third Party P,30116094,PRACTICAL CARE, 588.00 ,13/04/2016
Delivery Units,Adults and Communities,Other Agencies - Third Party P,30116096,PRACTICAL CARE, 770.00 ,13/04/2016
Delivery Units,Adults and Communities,Other Agencies - Third Party P,30116100,PRACTICAL CARE, 784.00 ,13/04/2016
Delivery Units,Adults and Communities,Other Agencies - Third Party P,30116098,PRACTICAL CARE, 882.00 ,13/04/2016
Delivery Units,Adults and Communities,Other Agencies - Third Party P,30116097,PRACTICAL CARE," 1,764.00 ",13/04/2016
Delivery Units,Adults and Communities,Other Agencies - Third Party P,30118308,PROSPECTS STAFF BUREAU LTD, 362.25 ,20/04/2016
Delivery Units,Adults and Communities,Other Agencies - Third Party P,30118726,PROSPECTS STAFF BUREAU LTD, 276.00 ,21/04/2016
Delivery Units,Adults and Communities,Other Agencies - Third Party P,30118725,PROSPECTS STAFF BUREAU LTD, 373.75 ,21/04/2016
Delivery Units,Adults and Communities,Other Agencies - Third Party P,30118727,PROSPECTS STAFF BUREAU LTD, 406.25 ,21/04/2016
Delivery Units,Adults and Communities,Other Agencies - Third Party P,30119819,PROSPECTS STAFF BUREAU LTD, 406.25 ,28/04/2016
Delivery Units,Adults and Communities,Other Agencies - Third Party P,30118309,PRT BARNET CARERS CENTRE, 731.64 ,20/04/2016
Delivery Units,Adults and Communities,Other Agencies - Third Party P,30119825,PRT BARNET CARERS CENTRE, 36.25 ,28/04/2016
Delivery Units,Adults and Communities,Other Agencies - Third Party P,30119823,PRT BARNET CARERS CENTRE, 39.17 ,28/04/2016
Delivery Units,Adults and Communities,Other Agencies - Third Party P,30119830,PRT BARNET CARERS CENTRE, 137.75 ,28/04/2016
Delivery Units,Adults and Communities,Other Agencies - Third Party P,30119829,PRT BARNET CARERS CENTRE, 248.07 ,28/04/2016
Delivery Units,Adults and Communities,Other Agencies - Third Party P,30119824,PRT BARNET CARERS CENTRE, 312.62 ,28/04/2016
Delivery Units,Adults and Communities,Other Agencies - Third Party P,30119827,PRT BARNET CARERS CENTRE," 1,073.00 ",28/04/2016
Delivery Units,Adults and Communities,Other Agencies - Third Party P,30119828,PRT BARNET CARERS CENTRE," 1,109.25 ",28/04/2016
Delivery Units,Adults and Communities,Other Agencies - Third Party P,30119826,PRT BARNET CARERS CENTRE," 1,463.88 ",28/04/2016
Delivery Units,Adults and Communities,Other Agencies - Third Party P,30119831,PRT BARNET CARERS CENTRE," 1,514.67 ",28/04/2016
Delivery Units,Adults and Communities,Other Agencies - Third Party P,30119820,PRT BARNET CARERS CENTRE," 2,436.90 ",28/04/2016
Delivery Units,Adults and Communities,Other Agencies - Third Party P,30118424,QUANTUM CARE LIMITED," 2,922.86 ",21/04/2016
Delivery Units,Adults and Communities,Other Agencies - Third Party P,20029527,R.S. LOCKSMITHS, 86.40 ,08/04/2016
Delivery Units,Adults and Communities,Other Agencies - Third Party P,20029528,R.S. LOCKSMITHS, 186.00 ,08/04/2016
Delivery Units,Adults and Communities,Other Agencies - Third Party P,30117345,RAPKYNS CARE CENTRE," 6,394.86 ",11/04/2016
Delivery Units,Adults and Communities,Other Agencies - Third Party P,30117363,RIDGEWAY NURSING HOME," 2,435.67 ",11/04/2016
Delivery Units,Adults and Communities,Other Agencies - Third Party P,30118106,RIDGEWAY RESIDENTIAL HOME," 2,095.56 ",18/04/2016
Delivery Units,Adults and Communities,Other Agencies - Third Party P,30118203,ROLAND RESIDENTIAL CARE HOMES," 3,741.39 ",18/04/2016
Delivery Units,Adults and Communities,Other Agencies - Third Party P,30117446,ROLAND RESIDENTIAL CARE HOMES LTD," 3,225.24 ",11/04/2016
Delivery Units,Adults and Communities,Other Agencies - Third Party P,30117581,ROLAND RESIDENTIAL CARE HOMES LTD," 3,426.96 ",11/04/2016
Delivery Units,Adults and Communities,Other Agencies - Third Party P,30117558,ROLAND RESIDENTIAL CARE HOMES LTD," 4,196.51 ",11/04/2016
Delivery Units,Adults and Communities,Other Agencies - Third Party P,30117243,ROSEACRES CARE HOME LIMITED," 2,290.79 ",08/04/2016
Delivery Units,Adults and Communities,Other Agencies - Third Party P,30117609,ROSEACRES CARE HOME LIMITED, 394.96 ,11/04/2016
Delivery Units,Adults and Communities,Other Agencies - Third Party P,30117611,ROSEACRES CARE HOME LIMITED," 2,290.79 ",11/04/2016
Delivery Units,Adults and Communities,Other Agencies - Third Party P,30117612,ROSEACRES CARE HOME LIMITED," 2,290.79 ",11/04/2016
Delivery Units,Adults and Communities,Other Agencies - Third Party P,30117613,ROSEACRES CARE HOME LIMITED," 2,290.79 ",11/04/2016
Delivery Units,Adults and Communities,Other Agencies - Third Party P,30117615,ROSEACRES CARE HOME LIMITED," 2,290.79 ",11/04/2016
Delivery Units,Adults and Communities,Other Agencies - Third Party P,30117616,ROSEACRES CARE HOME LIMITED," 2,290.79 ",11/04/2016
Delivery Units,Adults and Communities,Other Agencies - Third Party P,30117617,ROSEACRES CARE HOME LIMITED," 2,290.79 ",11/04/2016
Delivery Units,Adults and Communities,Other Agencies - Third Party P,30117620,ROSEACRES CARE HOME LIMITED," 2,290.79 ",11/04/2016
Delivery Units,Adults and Communities,Other Agencies - Third Party P,30117610,ROSEACRES CARE HOME LIMITED," 2,290.79 ",11/04/2016
Delivery Units,Adults and Communities,Other Agencies - Third Party P,30117614,ROSEACRES CARE HOME LIMITED," 2,290.79 ",11/04/2016
Delivery Units,Adults and Communities,Other Agencies - Third Party P,30117618,ROSEACRES CARE HOME LIMITED," 2,290.79 ",11/04/2016
Delivery Units,Adults and Communities,Other Agencies - Third Party P,30117619,ROSEACRES CARE HOME LIMITED," 2,290.79 ",11/04/2016
Delivery Units,Adults and Communities,Other Agencies - Third Party P,30117621,ROSEACRES CARE HOME LIMITED," 2,290.79 ",11/04/2016
Delivery Units,Adults and Communities,Other Agencies - Third Party P,30117599,ROSEACRES CARE HOME LIMITED," 2,340.04 ",11/04/2016
Delivery Units,Adults and Communities,Other Agencies - Third Party P,30117600,ROSEACRES CARE HOME LIMITED," 2,340.04 ",11/04/2016
Delivery Units,Adults and Communities,Other Agencies - Third Party P,30117603,ROSEACRES CARE HOME LIMITED," 2,400.53 ",11/04/2016
Delivery Units,Adults and Communities,Other Agencies - Third Party P,30117604,ROSEACRES CARE HOME LIMITED," 2,400.53 ",11/04/2016
Delivery Units,Adults and Communities,Other Agencies - Third Party P,30117595,ROSEACRES CARE HOME LIMITED," 2,418.04 ",11/04/2016
Delivery Units,Adults and Communities,Other Agencies - Third Party P,30117597,ROSEACRES CARE HOME LIMITED," 2,418.04 ",11/04/2016
Delivery Units,Adults and Communities,Other Agencies - Third Party P,30117601,ROSEACRES CARE HOME LIMITED," 2,418.04 ",11/04/2016
Delivery Units,Adults and Communities,Other Agencies - Third Party P,30117596,ROSEACRES CARE HOME LIMITED," 2,418.04 ",11/04/2016
Delivery Units,Adults and Communities,Other Agencies - Third Party P,30117598,ROSEACRES CARE HOME LIMITED," 2,418.04 ",11/04/2016
Delivery Units,Adults and Communities,Other Agencies - Third Party P,30117602,ROSEACRES CARE HOME LIMITED," 2,418.04 ",11/04/2016
Delivery Units,Adults and Communities,Other Agencies - Third Party P,30117605,ROSEACRES CARE HOME LIMITED," 2,448.78 ",11/04/2016
Delivery Units,Adults and Communities,Other Agencies - Third Party P,30117608,ROSEACRES CARE HOME LIMITED," 2,448.78 ",11/04/2016
Delivery Units,Adults and Communities,Other Agencies - Third Party P,30117606,ROSEACRES CARE HOME LIMITED," 2,448.78 ",11/04/2016
Delivery Units,Adults and Communities,Other Agencies - Third Party P,30117607,ROSEACRES CARE HOME LIMITED," 2,448.78 ",11/04/2016
Delivery Units,Adults and Communities,Other Agencies - Third Party P,30117718,ROSEACRES CARE HOME LIMITED," 10,901.01 ",11/04/2016
Delivery Units,Adults and Communities,Other Agencies - Third Party P,30118029,ROSEACRES CARE HOME LIMITED, 236.98 ,13/04/2016
Delivery Units,Adults and Communities,Other Agencies - Third Party P,30118020,ROSEACRES CARE HOME LIMITED," 2,448.78 ",13/04/2016
Delivery Units,Adults and Communities,Other Agencies - Third Party P,30118021,ROSEACRES CARE HOME LIMITED," 2,448.78 ",13/04/2016
Delivery Units,Adults and Communities,Other Agencies - Third Party P,30118022,ROSEACRES CARE HOME LIMITED," 2,448.78 ",13/04/2016
Delivery Units,Adults and Communities,Other Agencies - Third Party P,30118024,ROSEACRES CARE HOME LIMITED," 2,448.78 ",13/04/2016
Delivery Units,Adults and Communities,Other Agencies - Third Party P,30118025,ROSEACRES CARE HOME LIMITED," 2,448.78 ",13/04/2016
Delivery Units,Adults and Communities,Other Agencies - Third Party P,30118026,ROSEACRES CARE HOME LIMITED," 2,448.78 ",13/04/2016
Delivery Units,Adults and Communities,Other Agencies - Third Party P,30118027,ROSEACRES CARE HOME LIMITED," 2,448.78 ",13/04/2016
Delivery Units,Adults and Communities,Other Agencies - Third Party P,30118030,ROSEACRES CARE HOME LIMITED," 2,448.78 ",13/04/2016
Delivery Units,Adults and Communities,Other Agencies - Third Party P,30118031,ROSEACRES CARE HOME LIMITED," 2,448.78 ",13/04/2016
Delivery Units,Adults and Communities,Other Agencies - Third Party P,30118019,ROSEACRES CARE HOME LIMITED," 2,448.78 ",13/04/2016
Delivery Units,Adults and Communities,Other Agencies - Third Party P,30118023,ROSEACRES CARE HOME LIMITED," 2,448.78 ",13/04/2016
Delivery Units,Adults and Communities,Other Agencies - Third Party P,30118028,ROSEACRES CARE HOME LIMITED," 2,448.78 ",13/04/2016
